Workbook

Sheet Штатное расписание субвенция
O2: УТВЕРЖДЕНО
O3: Приказом МБДОУ "ДС " "Руслан"
O4: № от
O7: Штат в количестве 42 единиц
O8: с месячным фондом должностных окладов
O9: 458548.75 | P9: (Четыреста пятьдесят восемь тысяч
O10: пятьсот сорок восемь рублей рублей, 75 копеек)
A11: ШТАТНОЕ РАСПИСАНИЕ
A12: МБДОУ "Детский сад " "Руслан"
A13: (наименование образовательного учреждения)
A14: 01.09.2017г.
B15: По государственным полномочиям
B16: Наименование должности | C16: Кол-во единиц | D16: Разряд по тарифной сетке | E16: Базовый оклад | F16: Тарифный коэффициент (коэффициент разряда) | G16: Коэффициент уровня образования | H16: Коэффициент стажа | I16: Коэффициент специфики работы | J16: Коэффициент квалификации | K16: Коэффициент масштаба управления | L16: Коэффициент уровня управления | M16: Коэффициент вакансий | N16: Итого должностной оклад | O16: Районный коэффициент | P16: Процентная надбавка за работу в районах Крайнего севера | R16: Всего должностных окладов в месяц
F17: сумма | G17: сумма | H17: сумма | I17: сумма | J17: сумма | K17: сумма | L17: сумма | M17: сумма | P17: коэ-т | Q17: сумма
A18: II | B18: СПЕЦИАЛИСТЫ
B19: 1 квалификационный уровень
B20: Инструктор по физической культуре (с обучением плаванию) | C20: ='пед кадры'!AF17+'пед кадры'!AF18+'пед кадры'!AF22 -> 1.75 | E20: 5500 | G20: ='пед кадры'!J17+'пед кадры'!J18+'пед кадры'!J22 -> 12375 | H20: ='пед кадры'!L17+'пед кадры'!L18+'пед кадры'!L22 -> 2475 | K20: 0 | L20: 0 | M20: ='пед кадры'!AC21 -> 2578.125 | N20: =SUM(G20,H20,I20,J20,K20,L20,M20) -> 17428.125 | O20: =SUM(N20*0.7) -> 12199.6875 | P20: 0.8 | Q20: =SUM(N20*P20) -> 13942.5 | R20: =N20+O20+Q20 -> 43570.3125
B21: Инструктор по физической культуре (без обучения плаванию) | C21: ='пед кадры'!AF19+'пед кадры'!AF20+'пед кадры'!AF21 -> 1.75 | E21: 5500 | G21: ='пед кадры'!J19+'пед кадры'!J20+'пед кадры'!J21 -> 10725 | H21: ='пед кадры'!L20+'пед кадры'!L19+'пед кадры'!L21 -> 1072.5 | K21: 0 | L21: 0 | M21: ='пед кадры'!AC22 -> 2578.125 | N21: =SUM(G21,H21,I21,J21,K21,L21,M21) -> 14375.625 | O21: =SUM(N21*0.7) -> 10062.9375 | P21: 0.8 | Q21: =SUM(N21*P21) -> 11500.5 | R21: =N21+O21+Q21 -> 35939.0625
B22: хореорграф | C22: ='пед кадры'!AF25+'пед кадры'!AF24 -> 1 | E22: 5500 | G22: ='пед кадры'!J24+'пед кадры'!J25 -> 7700 | H22: ='пед кадры'!L24+'пед кадры'!L25 -> 1182.5 | J22: ='пед кадры'!Y24+'пед кадры'!Y25 -> 2062.5 | M22: ='пед кадры'!AC26 -> 0 | N22: =SUM(G22,H22,I22,J22,K22,L22,M22) -> 10945 | O22: =SUM(N22*0.7) -> 7661.5 | P22: 0.8 | Q22: =SUM(N22*P22) -> 8756 | R22: =N22+O22+Q22 -> 27362.5
B23: Музыкальный руководитель | C23: ='пед кадры'!AF23+'пед кадры'!AF26 -> 3 | E23: 5500 | G23: ='пед кадры'!J23+'пед кадры'!J26 -> 21450 | H23: ='пед кадры'!L23+'пед кадры'!L26 -> 2681.25 | J23: ='пед кадры'!Y23+'пед кадры'!Y26 -> 3217.5 | K23: 0 | L23: 0 | M23: ='пед кадры'!AC26 -> 0 | N23: =SUM(G23,H23,I23,J23,K23,L23,M23) -> 27348.75 | O23: =SUM(N23*0.7) -> 19144.125 | P23: 0.8 | Q23: =SUM(N23*P23) -> 21879 | R23: =N23+O23+Q23 -> 68371.875
B25: Итого | C25: =SUM(C20:C23) -> 7.5 | F25: =SUM(F18:F20) -> 0 | G25: =SUM(G20:G23) -> 52250 | H25: 7411.25 | I25: 0 | J25: 5280 | K25: 0 | L25: 0 | M25: 5156.25 | N25: 70097.5 | O25: 49068.25 | Q25: =SUM(Q20:Q23) -> 56078 | R25: =SUM(R20:R23) -> 175243.75
B26: 2 квалификационный уровень
B27: 3 квалификационный уровень
B28: Педагог-психолог | C28: ='пед кадры'!AF46+'пед кадры'!AF47 -> 1.5 | E28: 5500 | G28: ='пед кадры'!J46+'пед кадры'!J47 -> 12375 | H28: ='пед кадры'!L46+'пед кадры'!L47 -> 2475 | K28: 0 | L28: 0 | M28: 0 | N28: =SUM(G28,H28,I28,J28,K28,L28,M28) -> 14850 | O28: =SUM(N28*0.7) -> 10395 | P28: 0.8 | Q28: =SUM(N28*P28) -> 11880 | R28: =N28+O28+Q28 -> 37125
B29: Воспитатель | C29: =SUM('пед кадры'!AF29:AF56)-1.5 -> 30 | E29: 5500 | G29: ='пед кадры'!J29+'пед кадры'!J30+'пед кадры'!J31+'пед кадры'!J32+'пед кадры'!J33+'пед кадры'!J35+'пед кадры'!J36+'пед кадры'!J37+'пед кадры'!J38+'пед кадры'!J39+'пед кадры'!J40+'пед кадры'!J41+'пед кадры'!J42+'пед кадры'!J44+'пед кадры'!J45+'пед кадры'!J48+'пед кадры'!J49+'пед кадры'!J50+'пед кадры'!J51+'пед кадры'!J52+'пед кадры'!J53+'пед кадры'!J54+'пед кадры'!J55 -> 202950 | H29: ='пед кадры'!L29+'пед кадры'!L30+'пед кадры'!L31+'пед кадры'!L32+'пед кадры'!L33+'пед кадры'!L34+'пед кадры'!L35+'пед кадры'!L36+'пед кадры'!L37+'пед кадры'!L38+'пед кадры'!L39+'пед кадры'!L40+'пед кадры'!L41+'пед кадры'!L42+'пед кадры'!L43+'пед кадры'!L44+'пед кадры'!L45+'пед кадры'!L48+'пед кадры'!L49+'пед кадры'!L50+'пед кадры'!L51+'пед кадры'!L52+'пед кадры'!L53+'пед кадры'!L54+'пед кадры'!L55+'пед кадры'!L56 -> 36382.5 | I29: ='пед кадры'!P29+'пед кадры'!P30+'пед кадры'!P31+'пед кадры'!P32+'пед кадры'!P33+'пед кадры'!P34+'пед кадры'!P35+'пед кадры'!P36+'пед кадры'!P37+'пед кадры'!P38+'пед кадры'!P39+'пед кадры'!P40+'пед кадры'!P41+'пед кадры'!P42+'пед кадры'!P43+'пед кадры'!P44+'пед кадры'!P45+'пед кадры'!P48+'пед кадры'!P49+'пед кадры'!P50+'пед кадры'!P51+'пед кадры'!P52+'пед кадры'!P53+'пед кадры'!P54+'пед кадры'!P55+'пед кадры'!P56 -> 9735 | J29: ='пед кадры'!Y29+'пед кадры'!Y30+'пед кадры'!Y31+'пед кадры'!Y32+'пед кадры'!Y33+'пед кадры'!Y34+'пед кадры'!Y35+'пед кадры'!Y36+'пед кадры'!Y37+'пед кадры'!Y38+'пед кадры'!Y39+'пед кадры'!Y40+'пед кадры'!Y41+'пед кадры'!Y42+'пед кадры'!Y43+'пед кадры'!Y44+'пед кадры'!Y45+'пед кадры'!Y48+'пед кадры'!Y49+'пед кадры'!Y50+'пед кадры'!Y51+'пед кадры'!Y52+'пед кадры'!Y53+'пед кадры'!Y54+'пед кадры'!Y55+'пед кадры'!Y56 -> 35640 | K29: ='пед кадры'!M29+'пед кадры'!M30+'пед кадры'!M31+'пед кадры'!M32+'пед кадры'!M33+'пед кадры'!M35+'пед кадры'!M36+'пед кадры'!M37+'пед кадры'!M38+'пед кадры'!M39+'пед кадры'!M40+'пед кадры'!M41+'пед кадры'!M42+'пед кадры'!M44+'пед кадры'!M45+'пед кадры'!M48+'пед кадры'!M49+'пед кадры'!M50+'пед кадры'!M51+'пед кадры'!M52+'пед кадры'!M53+'пед кадры'!M54+'пед кадры'!M55 -> 0 | L29: ='пед кадры'!N29+'пед кадры'!N30+'пед кадры'!N31+'пед кадры'!N32+'пед кадры'!N33+'пед кадры'!N35+'пед кадры'!N36+'пед кадры'!N37+'пед кадры'!N38+'пед кадры'!N39+'пед кадры'!N40+'пед кадры'!N41+'пед кадры'!N42+'пед кадры'!N44+'пед кадры'!N45+'пед кадры'!N48+'пед кадры'!N49+'пед кадры'!N50+'пед кадры'!N51+'пед кадры'!N52+'пед кадры'!N53+'пед кадры'!N54+'пед кадры'!N55 -> 0 | M29: ='пед кадры'!AC29+'пед кадры'!AC30+'пед кадры'!AC31+'пед кадры'!AC32+'пед кадры'!AC33+'пед кадры'!AC34+'пед кадры'!AC35+'пед кадры'!AC36+'пед кадры'!AC37+'пед кадры'!AC38+'пед кадры'!AC39+'пед кадры'!AC40+'пед кадры'!AC41+'пед кадры'!AC41+'пед кадры'!AC42+'пед кадры'!AC43+'пед кадры'!AC44+'пед кадры'!AC45+'пед кадры'!AC48+'пед кадры'!AC49+'пед кадры'!AC50+'пед кадры'!AC51+'пед кадры'!AC52+'пед кадры'!AC53+'пед кадры'!AC54+'пед кадры'!AC55+'пед кадры'!AC56 -> 46406.25 | N29: 331113.75 | O29: =SUM(N29*0.7) -> 231779.625 | P29: 0.8 | Q29: =SUM(N29*P29) -> 264891 | R29: =N29+O29+Q29 -> 827784.375
B30: Итого | C30: =SUM(C28:C29) -> 31.5 | F30: =SUM(F28:F29) -> 0 | G30: 215325 | H30: 38857.5 | I30: 9735 | J30: 35640 | K30: 0 | L30: 0 | M30: 46406.25 | N30: 345963.75 | O30: 242174.625 | Q30: =SUM(Q28:Q29) -> 276771 | R30: =SUM(R28:R29) -> 864909.375
B31: 4 квалификационный уровень
B32: Учитель-логопед | C32: =SUM('пед кадры'!AF59:AF62) -> 3 | E32: 5500 | G32: =SUM('пед кадры'!J59:J62) -> 24750 | H32: =SUM('пед кадры'!L59:L62) -> 3712.5 | I32: =SUM('пед кадры'!P59:P62) -> 6600 | J32: =SUM('пед кадры'!Y59:Y62) -> 7425 | K32: 0 | L32: 0 | M32: 0 | N32: =SUM(G32,H32,I32,J32,K32,L32,M32) -> 42487.5 | O32: =SUM(N32*0.7) -> 29741.25 | P32: 0.8 | Q32: =SUM(N32*P32) -> 33990 | R32: =ROUND(N32+O32+Q32,2) -> 106218.75
B33: Итого | C33: =SUM(C32:C32) -> 3 | F33: =SUM(F32:F32) -> 0 | G33: 24750 | H33: 3712.5 | I33: 6600 | J33: 7425 | K33: 0 | L33: 0 | M33: 0 | N33: 42487.5 | O33: 29741.25 | Q33: =SUM(Q32:Q32) -> 33990 | R33: =SUM(R32:R32) -> 106218.75
B34: Итого по профессиональной квалификационной группе "СПЕЦИАЛИСТЫ" | C34: =SUM(C25+C30+C33) -> 42 | F34: =SUM(F25+F30+F33) -> 0 | G34: =G25+G30+G33 -> 292325 | H34: 49981.25 | I34: 16335 | J34: 48345 | K34: 0 | L34: 0 | M34: 51562.5 | N34: 458548.75 | O34: 320984.125 | Q34: =Q25+Q30+Q33 -> 366839 | R34: =R25+R30+R33 -> 1146371.875
B36: ВСЕГО | C36: =SUM(C34) -> 42 | F36: =F33+F30+F25 -> 0 | G36: =SUM(G34,) -> 292325 | H36: =SUM(H34,) -> 49981.25 | I36: =SUM(I34,) -> 16335 | J36: =SUM(J34,) -> 48345 | K36: =SUM(K34,) -> 0 | L36: 0 | M36: 51562.5 | N36: =SUM(N34,) -> 458548.75 | O36: 320984.125 | P36: 0 | Q36: 366839 | R36: 1146371.875
N37: =N36-'пед кадры'!AD65 -> 0
B38: Заведующий | M38: Б.А. Джемакулова
B40: Ведущий экономист | M40: В.А. Тычкина
B42: Специалист по кадрам | M42: Л.И. Утяганова

Sheet Штатное расписание Местный
O2: УТВЕРЖДЕНО
O3: Приказом МБДОУ" Детский сад "Руслан"
O4: № от
O7: Штат в количестве 56 единиц
O8: с месячным фондом должностных окладов
O9: 351157,28 (Триста пятьдесят одна тысяча сто пятьдесят
O10: семь рублей 28 коп.)
A11: ШТАТНОЕ РАСПИСАНИЕ
A12: МБДОУ "Детский сад "Руслан"
A13: (наименование образовательного учреждения)
A14: на 01.09.2017г.
B15: По полномочиям муниципального образования город Новый Уренгой
B16: Наименование должности | C16: Кол-во единиц | D16: Разряд по тарифной сетке | E16: Базовый оклад | F16: Тарифный коэффициент (коэффициент разряда) | G16: Коэффициент уровня образования | H16: Коэффициент стажа | I16: Коэффициент специфики работы | J16: Коэффициент квалификации | K16: Коэффициент масштаба управления | L16: Коэффициент уровня управления | M16: Коэффициент вакансий | N16: Итого должностной оклад | O16: Районный коэффициент | P16: Процентная надбавка за работу в районах Крайнего севера | R16: Всего должностных окладов в месяц
F17: сумма | G17: сумма | H17: сумма | I17: сумма | J17: сумма | K17: сумма | L17: сумма | M17: сумма | P17: коэ-т | Q17: сумма
A18: I | B18: РУКОВОДИТЕЛИ
B19: 1 квалификационный уровень
G20: 0 | H20: 0 | I20: 0 | J20: 0 | K20: 0 | L20: 0 | M20: 0 | N20: =SUM(G20,H20,I20,J20,K20,L20,M20) -> 0 | O20: =SUM(N20*0.7) -> 0 | P20: 0.8 | Q20: =SUM(N20*P20) -> 0 | R20: =ROUND(N20+O20+Q20,2) -> 0
B21: Итого | C21: =SUM(C20:C20) -> 0 | F21: =SUM(F20:F20) -> 0 | G21: 0 | H21: 0 | I21: 0 | J21: 0 | K21: 0 | L21: 0 | M21: 0 | N21: 0 | O21: 0 | Q21: =SUM(Q20:Q20) -> 0 | R21: =SUM(R20:R20) -> 0
B22: 2 квалификационный уровень
B23: Заместитель по ВМР | C23: =руководители!X23 -> 1 | F23: =руководители!W23 -> 26400 | G23: =руководители!J23 -> 0 | H23: =руководители!L23 -> 0 | I23: =руководители!N23 -> 0 | J23: =руководители!P23 -> 0 | K23: =руководители!R23 -> 0 | L23: =руководители!T23 -> 0 | M23: 0 | N23: =руководители!W23 -> 26400 | O23: =SUM(N23*0.7) -> 18480 | P23: 0.8 | Q23: =SUM(N23*P23) -> 21120 | R23: =N23+O23+Q23 -> 66000
B24: Заместитель по АХР | C24: =руководители!X24 -> 1 | F24: =руководители!W24 -> 26400 | G24: 0 | H24: =руководители!L24 -> 0 | I24: =руководители!N24 -> 0 | J24: 0 | K24: 0 | L24: 0 | M24: 0 | N24: =руководители!W24 -> 26400 | O24: =SUM(N24*0.7) -> 18480 | P24: 0.8 | Q24: =SUM(N24*P24) -> 21120 | R24: =N24+O24+Q24 -> 66000
B25: Итого | C25: =SUM(C23:C24) -> 2 | F25: =SUM(F23:F24) -> 52800 | G25: =SUM(G23:G24) -> 0 | H25: 0 | I25: 0 | J25: 0 | K25: 0 | L25: 0 | M25: 0 | N25: =SUM(N23:N24) -> 52800 | O25: 36960 | Q25: =SUM(Q23:Q24) -> 42240 | R25: =SUM(R23:R24) -> 132000
B26: Заведующий | C26: =руководители!X27 -> 1 | F26: =руководители!W27 -> 29404 | G26: =руководители!J27 -> 0 | H26: =руководители!L27 -> 0 | I26: =руководители!N27 -> 0 | J26: =руководители!P27 -> 0 | K26: =руководители!R27 -> 0 | L26: =руководители!T27 -> 0 | M26: 0 | N26: =руководители!W27 -> 29404 | O26: =SUM(N26*0.7) -> 20582.8 | P26: 0.8 | Q26: =SUM(N26*P26) -> 23523.2 | R26: =N26+O26+Q26 -> 73510
B27: Итого | C27: =SUM(C26:C26) -> 1 | F27: =SUM(F26:F26) -> 29404 | G27: 0 | H27: 0 | I27: 0 | J27: 0 | K27: 0 | L27: 0 | M27: 0 | N27: 29404 | O27: 20582.8 | Q27: =SUM(Q26:Q26) -> 23523.2 | R27: =SUM(R26:R26) -> 73510
B28: 4 квалификационный уровень
G29: 0 | H29: 0 | I29: 0 | J29: 0 | K29: 0 | L29: 0 | M29: 0 | N29: =SUM(G29,H29,I29,J29,K29,L29,M29) -> 0 | O29: =SUM(N29*0.7) -> 0 | P29: 0.8 | Q29: =SUM(N29*P29) -> 0 | R29: =ROUND(N29+O29+Q29,2) -> 0
B30: Итого | C30: =SUM(C29:C29) -> 0 | F30: =SUM(F29:F29) -> 0 | G30: 0 | H30: 0 | I30: 0 | J30: 0 | K30: 0 | L30: 0 | M30: 0 | N30: 0 | O30: 0 | Q30: =SUM(Q29:Q29) -> 0 | R30: =SUM(R29:R29) -> 0
B31: Итого по профессиональной квалификационной группе "РУКОВОДИТЕЛИ" | C31: =SUM(C21,C25,C27,C30) -> 3 | F31: =SUM(F21,F25,F27,F30) -> 82204 | G31: 0 | H31: 0 | I31: 0 | J31: 0 | K31: 0 | L31: 0 | M31: 0 | N31: 82204 | O31: 57542.8 | Q31: =SUM(Q21,Q25,Q27,Q30) -> 65763.2 | R31: =SUM(R21,R25,R27,R30) -> 205510
A33: III | B33: СЛУЖАЩИЕ
B34: ПКГ работников учебно-вспомогательного персонала 2 уровня
B35: 1 квалификационный уровень
B36: Младший воспитатель | C36: =SUM(служащие!X17:X33) -> 23.5 | E36: 4094 | G36: =SUM(служащие!J17:J33) -> 90886.8 | H36: =SUM(служащие!L17:L33) -> 17757.725 | I36: =SUM(служащие!N17:N33) -> 2161.632 | J36: =SUM(служащие!P17:P33) -> 0 | K36: 0 | L36: 0 | M36: =служащие!V34 -> 13305.5 | N36: =G36+H36+I36+J36+K36+L36+M36 -> 124111.657 | O36: =SUM(N36*0.7) -> 86878.1599 | P36: 0.8 | Q36: =SUM(N36*P36) -> 99289.3256 | R36: =ROUND(N36+O36+Q36,2) -> 310279.14
B37: Итого | C37: =SUM(C36:C36) -> 23.5 | F37: =SUM(F36:F36) -> 0 | G37: 90886.8 | H37: 17757.725 | I37: 2161.632 | J37: 0 | K37: 0 | L37: 0 | M37: 13305.5 | N37: 124111.657 | O37: 86878.1599 | Q37: =SUM(Q36:Q36) -> 99289.3256 | R37: =SUM(R36:R36) -> 310279.14
B38: 2 квалификационный уровень
G39: 0 | H39: 0 | I39: 0 | J39: 0 | K39: 0 | L39: 0 | M39: 0 | N39: =G39+H39+I39+J39+K39+L39+M39 -> 0 | O39: =SUM(N39*0.7) -> 0 | P39: 0.8 | Q39: =SUM(N39*P39) -> 0 | R39: =ROUND(N39+O39+Q39,2) -> 0
G40: 0 | H40: 0 | I40: 0 | J40: 0 | K40: 0 | L40: 0 | M40: 0 | N40: =G40+H40+I40+J40+K40+L40+M40 -> 0 | O40: =SUM(N40*0.7) -> 0 | Q40: =SUM(N40*P40) -> 0 | R40: =ROUND(N40+O40+Q40,2) -> 0
B41: Итого | C41: =SUM(C39:C40) -> 0 | F41: =SUM(F39:F40) -> 0 | G41: 0 | H41: 0 | I41: 0 | J41: 0 | K41: 0 | L41: 0 | M41: 0 | N41: 0 | O41: 0 | Q41: =SUM(Q39:Q40) -> 0 | R41: =SUM(R39:R40) -> 0
B43: ПКГ работников учебно-вспомогательного персонала 1 уровня
G44: 0 | H44: 0 | I44: 0 | J44: 0 | K44: 0 | L44: 0 | M44: 0 | N44: =G44+H44+I44+J44+K44+L44+M44 -> 0 | O44: =SUM(N44*0.7) -> 0 | P44: 0.8 | Q44: =SUM(N44*P44) -> 0 | R44: =ROUND(N44+O44+Q44,2) -> 0
B45: Итого | C45: =SUM(C44:C44) -> 0 | F45: =SUM(F44:F44) -> 0 | G45: 0 | H45: 0 | I45: 0 | J45: 0 | K45: 0 | L45: 0 | M45: 0 | N45: 0 | O45: 0 | Q45: =SUM(Q44:Q44) -> 0 | R45: =SUM(R44:R44) -> 0
B47: ПКГ работников общеотраслевых должностей служащих 1 уровня
B48: 1 квалификационный уровень
B49: Делопроизводитель | C49: =служащие!X50+служащие!X49 -> 1 | E49: 4094 | G49: =служащие!J50+служащие!J49 -> 5526.9 | H49: =служащие!L50+служащие!L49 -> 276.345 | I49: =служащие!N50 -> 0 | J49: 0 | K49: 0 | L49: 0 | M49: =служащие!V50 -> 0 | N49: =G49+H49+I49+J49+K49+L49+M49 -> 5803.245 | O49: =SUM(N49*0.7) -> 4062.2715 | P49: 0.8 | Q49: =SUM(N49*P49) -> 4642.596 | R49: =ROUND(N49+O49+Q49,2) -> 14508.11
B50: Итого | C50: =SUM(C49:C49) -> 1 | F50: =SUM(F49:F49) -> 0 | G50: 5526.9 | H50: 276.345 | I50: 0 | J50: 0 | K50: 0 | L50: 0 | M50: 0 | N50: 5803.245 | O50: 4062.2715 | Q50: =SUM(Q49:Q49) -> 4642.596 | R50: =SUM(R49:R49) -> 14508.11
B51: 2 квалификационный уровень
G52: 0 | H52: 0 | I52: 0 | J52: 0 | K52: 0 | L52: 0 | M52: 0 | N52: =G52+H52+I52+J52+K52+L52+M52 -> 0 | O52: =SUM(N52*0.7) -> 0 | Q52: =SUM(N52*P52) -> 0 | R52: =ROUND(N52+O52+Q52,2) -> 0
B53: Итого | C53: =SUM(C52:C52) -> 0 | F53: =SUM(F52:F52) -> 0 | G53: 0 | H53: 0 | I53: 0 | J53: 0 | K53: 0 | L53: 0 | M53: 0 | N53: 0 | O53: 0 | Q53: =SUM(Q52:Q52) -> 0 | R53: =SUM(R52:R52) -> 0
B55: ПКГ работников общеотраслевых должностей служащих 2 уровня
B56: 1 квалификационный уровень
G57: 0 | H57: 0 | I57: 0 | J57: 0 | K57: 0 | L57: 0 | M57: 0 | N57: =G57+H57+I57+J57+K57+L57+M57 -> 0 | O57: =SUM(N57*0.7) -> 0 | Q57: =SUM(N57*P57) -> 0 | R57: =ROUND(N57+O57+Q57,2) -> 0
B58: Итого | C58: =SUM(C57:C57) -> 0 | F58: =SUM(F57:F57) -> 0 | G58: 0 | H58: 0 | I58: 0 | J58: 0 | K58: 0 | L58: 0 | M58: 0 | N58: 0 | O58: 0 | Q58: =SUM(Q57:Q57) -> 0 | R58: =SUM(R57:R57) -> 0
B59: 2 квалификационный уровень
G60: 0 | H60: 0 | I60: 0 | J60: 0 | K60: 0 | L60: 0 | M60: 0 | N60: =G60+H60+I60+J60+K60+L60+M60 -> 0 | O60: =SUM(N60*0.7) -> 0 | Q60: =SUM(N60*P60) -> 0 | R60: =ROUND(N60+O60+Q60,2) -> 0
B61: Итого | C61: =SUM(C60:C60) -> 0 | F61: =SUM(F60:F60) -> 0 | G61: 0 | H61: 0 | I61: 0 | J61: 0 | K61: 0 | L61: 0 | M61: 0 | N61: 0 | O61: 0 | Q61: =SUM(Q60:Q60) -> 0 | R61: =SUM(R60:R60) -> 0
B62: 3 квалификационный уровень
B63: Шеф-повар | C63: =служащие!X64 -> 1 | G63: =служащие!J64 -> 5322.2 | H63: =служащие!L64 -> 1064.44 | I63: 0 | J63: 0 | K63: =служащие!R64 -> 3193.32 | L63: =служащие!T64 -> 3193.32 | M63: 0 | N63: =G63+H63+I63+J63+K63+L63+M63 -> 12773.28 | O63: =SUM(N63*0.7) -> 8941.296 | P63: 0.8 | Q63: =SUM(N63*P63) -> 10218.624 | R63: =ROUND(N63+O63+Q63,2) -> 31933.2
B64: Итого | C64: =SUM(C63:C63) -> 1 | F64: =SUM(F63:F63) -> 0 | G64: 5322.2 | H64: 1064.44 | I64: 0 | J64: 0 | K64: 3193.32 | L64: 3193.32 | M64: 0 | N64: 12773.28 | O64: 8941.296 | Q64: =SUM(Q63:Q63) -> 10218.624 | R64: =SUM(R63:R63) -> 31933.2
B65: 4 квалификационный уровень
G66: 0 | H66: 0 | I66: 0 | J66: 0 | K66: 0 | L66: 0 | M66: 0 | N66: =G66+H66+I66+J66+K66+L66+M66 -> 0 | O66: =SUM(N66*0.7) -> 0 | Q66: =SUM(N66*P66) -> 0 | R66: =ROUND(N66+O66+Q66,2) -> 0
B67: Итого | C67: =SUM(C66:C66) -> 0 | F67: =SUM(F66:F66) -> 0 | G67: 0 | H67: 0 | I67: 0 | J67: 0 | K67: 0 | L67: 0 | M67: 0 | N67: 0 | O67: 0 | Q67: =SUM(Q66:Q66) -> 0 | R67: =SUM(R66:R66) -> 0
B68: 5 квалификационный уровень
G69: 0 | H69: 0 | I69: 0 | J69: 0 | K69: 0 | L69: 0 | M69: 0 | N69: =G69+H69+I69+J69+K69+L69+M69 -> 0 | O69: =SUM(N69*0.7) -> 0 | Q69: =SUM(N69*P69) -> 0 | R69: =ROUND(N69+O69+Q69,2) -> 0
B70: Итого | C70: =SUM(C69:C69) -> 0 | F70: =SUM(F69:F69) -> 0 | G70: 0 | H70: 0 | I70: 0 | J70: 0 | K70: 0 | L70: 0 | M70: 0 | N70: 0 | O70: 0 | Q70: =SUM(Q69:Q69) -> 0 | R70: =SUM(R69:R69) -> 0
B72: ПКГ работников общеотраслевых должностей служащих 3 уровня
B73: 1 квалификационный уровень
B74: Специалист по кадрам | C74: =служащие!X75+служащие!X76 -> 1 | E74: 4094 | G74: =служащие!J75+служащие!J76 -> 3070.5 | H74: =служащие!L75 -> 153.525 | I74: =служащие!N75 -> 0 | J74: =служащие!P75 -> 0 | K74: 0 | L74: 0 | M74: =служащие!V76 -> 7676.25 | N74: =G74+H74+I74+J74+K74+L74+M74 -> 10900.275 | O74: =SUM(N74*0.7) -> 7630.1925 | P74: 0.8 | Q74: =SUM(N74*P74) -> 8720.22 | R74: =N74+O74+Q74 -> 27250.6875
B75: специалист по ОТ | C75: =служащие!X48 -> 1 | E75: 4094 | G75: =служащие!J48 -> 5731.6 | H75: =служащие!L48 -> 286.58 | I75: =служащие!N77 -> 0 | J75: 0 | K75: 0 | L75: 0 | M75: 0 | N75: =G75+H75+I75+J75+K75+L75+M75 -> 6018.18 | O75: =SUM(N75*0.7) -> 4212.726 | P75: 0.8 | Q75: =SUM(N75*P75) -> 4814.544 | R75: =N75+O75+Q75 -> 15045.45
B76: Контрактный управляющий | E76: 4094 | N76: 0 | O76: =SUM(N76*0.7) -> 0 | P76: 0.8 | Q76: =SUM(N76*P76) -> 0 | R76: =N76+O76+Q76 -> 0
B77: Экономист | C77: =служащие!X77 -> 0.25 | E77: 4094 | G77: =служащие!J77 -> 1535.25 | H77: =служащие!L77 -> 307.05 | I77: 0 | J77: 0 | K77: 0 | L77: 0 | M77: 0 | N77: 1842.3 | O77: =SUM(N77*0.7) -> 1289.61 | P77: 0.8 | Q77: =SUM(N77*P77) -> 1473.84 | R77: =N77+O77+Q77 -> 4605.75
B78: Итого | C78: =SUM(C74:C77) -> 2.25 | F78: =SUM(F74:F75) -> 0 | G78: =SUM(G74:G77) -> 10337.35 | H78: 747.155 | I78: 0 | J78: 0 | K78: 0 | L78: 0 | M78: 7676.25 | N78: 18760.755 | O78: 13132.5285 | Q78: =SUM(Q74:Q77) -> 15008.604 | R78: =SUM(R74:R77) -> 46901.8875
B79: 2 квалификационный уровень
G80: 0 | H80: 0 | I80: 0 | J80: 0 | K80: 0 | L80: 0 | M80: 0 | N80: =G80+H80+I80+J80+K80+L80+M80 -> 0 | O80: =SUM(N80*0.7) -> 0 | P80: 0.8 | Q80: =SUM(N80*P80) -> 0 | R80: =ROUND(N80+O80+Q80,2) -> 0
B81: Итого | C81: =SUM(C80:C80) -> 0 | F81: =SUM(F80:F80) -> 0 | G81: 0 | H81: 0 | I81: 0 | J81: 0 | K81: 0 | L81: 0 | M81: 0 | N81: 0 | O81: 0 | Q81: =SUM(Q80:Q80) -> 0 | R81: =SUM(R80:R80) -> 0
B82: 3 квалификационный уровень
B83: Инженер | C83: =служащие!X83 -> 0.5 | E83: 4094 | G83: =служащие!J83 -> 3070.5 | H83: =служащие!L83 -> 153.525 | I83: 0 | J83: 0 | K83: 0 | L83: 0 | M83: 0 | N83: =G83+H83+I83+J83+K83+L83+M83 -> 3224.025 | O83: =SUM(N83*0.7) -> 2256.8175 | P83: 0.8 | Q83: =SUM(N83*P83) -> 2579.22 | R83: =ROUND(N83+O83+Q83,2) -> 8060.06
B84: Итого | C84: =SUM(C83:C83) -> 0.5 | F84: =SUM(F83:F83) -> 0 | G84: 3070.5 | H84: 153.525 | I84: 0 | J84: 0 | K84: 0 | L84: 0 | M84: 0 | N84: 3224.025 | O84: 2256.8175 | Q84: =SUM(Q83:Q83) -> 2579.22 | R84: =SUM(R83:R83) -> 8060.06
B85: 4 квалификационный уровень
G86: 0 | H86: 0 | I86: 0 | J86: 0 | K86: 0 | L86: 0 | M86: 0 | N86: =G86+H86+I86+J86+K86+L86+M86 -> 0 | O86: =SUM(N86*0.7) -> 0 | P86: 0.8 | Q86: =SUM(N86*P86) -> 0 | R86: =ROUND(N86+O86+Q86,2) -> 0
G87: 0 | H87: 0 | I87: 0 | J87: 0 | K87: 0 | L87: 0 | M87: 0 | N87: 0 | O87: =SUM(N87*0.7) -> 0 | Q87: =SUM(N87*P87) -> 0 | R87: =ROUND(N87+O87+Q87,2) -> 0
B88: Итого | C88: =SUM(C86:C87) -> 0 | F88: =SUM(F86:F87) -> 0 | G88: 0 | H88: 0 | I88: 0 | J88: 0 | K88: 0 | L88: 0 | M88: 0 | N88: 0 | O88: 0 | Q88: =SUM(Q86:Q87) -> 0 | R88: =SUM(R86:R87) -> 0
B89: 5 квалификационный уровень
G90: 0 | H90: 0 | I90: 0 | J90: 0 | K90: 0 | L90: 0 | M90: 0 | N90: =G90+H90+I90+J90+K90+L90+M90 -> 0 | O90: =SUM(N90*0.7) -> 0 | P90: 0.8 | Q90: =SUM(N90*P90) -> 0 | R90: =ROUND(N90+O90+Q90,2) -> 0
G91: 0 | H91: 0 | I91: 0 | J91: 0 | K91: 0 | L91: 0 | M91: 0 | N91: 0 | O91: =SUM(N91*0.7) -> 0 | Q91: =SUM(N91*P91) -> 0 | R91: =ROUND(N91+O91+Q91,2) -> 0
B92: Итого | C92: =SUM(C90:C91) -> 0 | F92: =SUM(F90:F91) -> 0 | G92: 0 | H92: 0 | I92: 0 | J92: 0 | K92: 0 | L92: 0 | M92: 0 | N92: 0 | O92: 0 | Q92: =SUM(Q90:Q91) -> 0 | R92: =SUM(R90:R91) -> 0
B93: ПКГ работников общеотраслевых должностей служащих 4 уровня
B94: 1 квалификационный уровень
G95: 0 | H95: 0 | I95: 0 | J95: 0 | K95: 0 | L95: 0 | M95: 0 | N95: =G95+H95+I95+J95+K95+L95+M95 -> 0 | O95: =SUM(N95*0.7) -> 0 | P95: 0.8 | Q95: =SUM(N95*P95) -> 0 | R95: =ROUND(N95+O95+Q95,2) -> 0
G96: 0 | H96: 0 | I96: 0 | J96: 0 | K96: 0 | L96: 0 | M96: 0 | N96: 0 | O96: =SUM(N96*0.7) -> 0 | Q96: =SUM(N96*P96) -> 0 | R96: =ROUND(N96+O96+Q96,2) -> 0
B97: Итого | C97: =SUM(C95:C96) -> 0 | F97: =SUM(F95:F96) -> 0 | G97: 0 | H97: 0 | I97: 0 | J97: 0 | K97: 0 | L97: 0 | M97: 0 | N97: 0 | O97: 0 | Q97: =SUM(Q95:Q96) -> 0 | R97: =SUM(R95:R96) -> 0
B98: 2 квалификационный уровень
G99: 0 | H99: 0 | I99: 0 | J99: 0 | K99: 0 | L99: 0 | M99: 0 | N99: =G99+H99+I99+J99+K99+L99+M99 -> 0 | O99: =SUM(N99*0.7) -> 0 | P99: 0.8 | Q99: =SUM(N99*P99) -> 0 | R99: =ROUND(N99+O99+Q99,2) -> 0
G100: 0 | H100: 0 | I100: 0 | J100: 0 | K100: 0 | L100: 0 | M100: 0 | N100: 0 | O100: =SUM(N100*0.7) -> 0 | Q100: =SUM(N100*P100) -> 0 | R100: =ROUND(N100+O100+Q100,2) -> 0
B101: Итого | C101: =SUM(C99:C100) -> 0 | F101: =SUM(F99:F100) -> 0 | G101: 0 | H101: 0 | I101: 0 | J101: 0 | K101: 0 | L101: 0 | M101: 0 | N101: 0 | O101: 0 | Q101: =SUM(Q99:Q100) -> 0 | R101: =SUM(R99:R100) -> 0
B102: Итого по профессиональной квалификационной группе "СЛУЖАЩИЕ" | C102: =SUM(C37,C41,C45,C50,C53,C58,C61,C64,C67,C70,C78,C81,C84,C88,C92,C97,C101) -> 28.25 | F102: =SUM(F37,F41,F45,F50,F53,F58,F61,F64,F67,F70,F78,F81,F84,F88,F92,F97,F101) -> 0 | G102: 115143.75 | H102: 19999.19 | I102: 2161.632 | J102: 0 | K102: 3193.32 | L102: 3193.32 | M102: 20981.75 | N102: 164672.962 | O102: 115271.0734 | Q102: =SUM(Q37,Q41,Q45,Q50,Q53,Q58,Q61,Q64,Q67,Q70,Q78,Q81,Q84,Q88,Q92,Q97,Q101) -> 131738.3696 | R102: =SUM(R37,R41,R45,R50,R53,R58,R61,R64,R67,R70,R78,R81,R84,R88,R92,R97,R101) -> 411682.3975
A104: IV | B104: РАБОЧИЕ
B105: ПКГ работников общеотраслевых профессий 1 уровня
B106: 1 квалификационный уровень
B107: Кладовщик | C107: =рабочие!M15 -> 1 | E107: 4094 | F107: =рабочие!G15 -> 4094 | G107: х | H107: х | I107: =SUM(рабочие!I15) -> 0 | J107: х | K107: х | M107: 0 | N107: =SUM(F107,I107,M107) -> 4094 | O107: =SUM(N107*0.7) -> 2865.8 | P107: 0.8 | Q107: =SUM(N107*P107) -> 3275.2 | R107: =N107+O107+Q107 -> 10235
B108: Грузчик | C108: =рабочие!M16 -> 0.5 | E108: 4094 | F108: =рабочие!G16 -> 2047 | G108: х | H108: х | I108: =SUM(рабочие!I16) -> 0 | J108: х | K108: х | M108: =SUM(рабочие!K17:K17) -> 0 | N108: 2047 | O108: =SUM(N108*0.7) -> 1432.9 | P108: 0.8 | Q108: =SUM(N108*P108) -> 1637.6 | R108: =N108+O108+Q108 -> 5117.5
B109: Кухонный рабочий | C109: =рабочие!M17+рабочие!M18 -> 3 | E109: 4094 | F109: =рабочие!G17+рабочие!G18 -> 12282 | G109: х | H109: х | I109: =SUM(рабочие!I17:I17) -> 0 | J109: х | K109: х | M109: =SUM(рабочие!K18:K18) -> 0 | N109: 12282 | O109: =SUM(N109*0.7) -> 8597.4 | P109: 0.8 | Q109: =SUM(N109*P109) -> 9825.6 | R109: =N109+O109+Q109 -> 30705
B110: Машинист по стирке и ремонту спецодежды | C110: =рабочие!M19+рабочие!M20+рабочие!M21 -> 1.75 | E110: 4094 | F110: =рабочие!G19+рабочие!G20+рабочие!G21 -> 7164.5 | G110: х | H110: х | I110: =SUM(рабочие!I18:I19) -> 0 | J110: х | K110: х | M110: =SUM(рабочие!K18:K19) -> 0 | N110: 7164.5 | O110: =SUM(N110*0.7) -> 5015.15 | P110: 0.8 | Q110: =SUM(N110*P110) -> 5731.6 | R110: =N110+O110+Q110 -> 17911.25
B111: Кастелянша | C111: =рабочие!M22 -> 1 | E111: 4094 | F111: =рабочие!G22 -> 4094 | G111: х | H111: х | I111: =SUM(рабочие!I22) -> 0 | J111: х | K111: х | M111: 0 | N111: 4094 | O111: =SUM(N111*0.7) -> 2865.8 | P111: 0.8 | Q111: =SUM(N111*P111) -> 3275.2 | R111: =N111+O111+Q111 -> 10235
B112: Плотник | C112: =рабочие!M24 -> 0.5 | E112: 4094 | F112: =рабочие!G24 -> 2047 | G112: х | H112: х | I112: =SUM(рабочие!I23:I24) -> 0 | J112: х | K112: х | M112: 0 | N112: 2047 | O112: 1432.9 | P112: 0.8 | Q112: 1637.6 | R112: 5117.5
B113: Вахтер | C113: =рабочие!M25+рабочие!M26 -> 2 | E113: 4094 | F113: =рабочие!G25+рабочие!G26 -> 8188 | G113: х | H113: х | I113: =SUM(рабочие!I24:I25) -> 0 | J113: х | K113: х | M113: 0 | N113: 8188 | O113: =SUM(N113*0.7) -> 5731.6 | P113: 1.8 | Q113: =SUM(N113*P113) -> 14738.4 | R113: =N113+O113+Q113 -> 28658
B114: Уборщик служебных помещений | C114: =рабочие!M27+рабочие!M28 -> 2.5 | E114: 4094 | F114: =рабочие!G27+рабочие!G28 -> 10235 | G114: х | H114: х | I114: =SUM(рабочие!I27:I28) -> 0 | J114: х | K114: х | M114: =SUM(рабочие!K27:K28) -> 0 | N114: 10235 | O114: 7164.5 | P114: 0.8 | Q114: 8188 | R114: 25587.5
B115: Уборщик бассейна | C115: =рабочие!M29+рабочие!M30 -> 1 | E115: 4094 | F115: =рабочие!G29+рабочие!G30 -> 4094 | G115: х | H115: х | I115: 0 | J115: х | K115: х | M115: 0 | N115: 4094 | O115: 2865.8 | P115: 0.8 | Q115: 3275.2 | R115: 10235
B116: Садовник | C116: =рабочие!M31 -> 1 | E116: 4094 | F116: =рабочие!G31 -> 4094 | G116: х | H116: х | I116: =SUM(рабочие!I31:I31) -> 0 | J116: х | K116: х | M116: =SUM(рабочие!K31:K31) -> 0 | N116: 4094 | O116: 2865.8 | P116: 0.8 | Q116: 3275.2 | R116: 10235
B117: Сторож | C117: =рабочие!M32+рабочие!M33+рабочие!M34 -> 3 | E117: 4094 | F117: =рабочие!G32+рабочие!G33+рабочие!G34 -> 12282 | G117: х | H117: х | I117: =SUM(рабочие!I32:I34) -> 0 | J117: х | K117: х | M117: =SUM(рабочие!K32:K32) -> 0 | N117: 12282 | O117: 8597.4 | P117: 0.8 | Q117: 9825.6 | R117: 30705
B118: Дворник | C118: =рабочие!M23 -> 1 | E118: 4094 | F118: =рабочие!G23 -> 4094 | G118: х | H118: х | I118: =SUM(рабочие!I34:I35) -> 0 | J118: х | K118: х | M118: =SUM(рабочие!K33:K34) -> 0 | N118: 4094 | O118: =SUM(N118*0.7) -> 2865.8 | P118: 0.8 | Q118: =SUM(N118*P118) -> 3275.2 | R118: =N118+O118+Q118 -> 10235
B119: Итого | C119: =SUM(C107:C118) -> 18.25 | D119: =SUM(D107:D117) -> 0 | F119: =SUM(F107:F118) -> 74715.5 | G119: 0 | H119: 0 | I119: 0 | J119: 0 | K119: 0 | L119: 0 | M119: 0 | N119: 74715.5 | O119: 52300.85 | Q119: =SUM(Q107:Q118) -> 67960.4 | R119: =SUM(R107:R118) -> 194976.75
B120: 2 квалификационный уровень
F121: 0 | G121: х | H121: х | I121: 0 | J121: х | K121: х | M121: 0 | N121: =SUM(F121,I121,M121) -> 0 | O121: =SUM(N121*0.7) -> 0 | P121: 0.8 | Q121: =SUM(N121*P121) -> 0 | R121: =ROUND(N121+O121+Q121,2) -> 0
B122: Итого | C122: =SUM(C121:C121) -> 0 | F122: =SUM(F121:F121) -> 0 | G122: 0 | H122: 0 | I122: 0 | J122: 0 | K122: 0 | L122: 0 | M122: 0 | N122: 0 | O122: 0 | Q122: =SUM(Q121:Q121) -> 0 | R122: =SUM(R121:R121) -> 0
B124: ПКГ работников общеотраслевых профессий 2 уровня
B125: 1 квалификационный уровень
B126: Повар | C126: =SUM(рабочие!M42:M50) -> 5.5 | E126: 4094 | F126: =SUM(рабочие!G42:G50) -> 23178.181 | G126: х | H126: х | I126: =SUM(рабочие!I42:I50) -> 0 | J126: х | K126: х | M126: =SUM(рабочие!K42:K50) -> 0 | N126: =SUM(F126,I126,M126) -> 23178.181 | O126: =SUM(N126*0.7) -> 16224.7267 | P126: 0.8 | Q126: =SUM(N126*P126) -> 18542.5448 | R126: =ROUND(N126+O126+Q126,2) -> 57945.45
B127: Итого | C127: =SUM(C126:C126) -> 5.5 | F127: =SUM(F126:F126) -> 23178.181 | G127: 0 | H127: 0 | I127: 0 | J127: 0 | K127: 0 | L127: 0 | M127: 0 | N127: 23178.181 | O127: 16224.7267 | Q127: =SUM(Q126:Q126) -> 18542.5448 | R127: =SUM(R126:R126) -> 57945.45
B128: 2 квалификационный уровень
F129: 0 | G129: х | H129: х | I129: 0 | J129: х | K129: х | M129: 0 | N129: =SUM(F129,I129,M129) -> 0 | O129: =SUM(N129*0.7) -> 0 | P129: 0.8 | Q129: =SUM(N129*P129) -> 0 | R129: =ROUND(N129+O129+Q129,2) -> 0
B130: Итого | C130: =SUM(C129:C129) -> 0 | F130: =SUM(F129:F129) -> 0 | G130: 0 | H130: 0 | I130: 0 | J130: 0 | K130: 0 | L130: 0 | M130: 0 | N130: 0 | O130: 0 | Q130: =SUM(Q129:Q129) -> 0 | R130: =SUM(R129:R129) -> 0
B131: 3 квалификационный уровень
F132: 0 | G132: х | H132: х | I132: 0 | J132: х | K132: х | M132: 0 | N132: =SUM(F132,I132,M132) -> 0 | O132: =SUM(N132*0.7) -> 0 | P132: 0.8 | Q132: =SUM(N132*P132) -> 0 | R132: =ROUND(N132+O132+Q132,2) -> 0
B133: Итого | C133: =SUM(C132:C132) -> 0 | F133: =SUM(F132:F132) -> 0 | G133: 0 | H133: 0 | I133: 0 | J133: 0 | K133: 0 | L133: 0 | M133: 0 | N133: 0 | O133: 0 | Q133: =SUM(Q132:Q132) -> 0 | R133: =SUM(R132:R132) -> 0
B134: 4 квалификационный уровень
F135: 0 | G135: х | H135: х | I135: 0 | J135: х | K135: х | M135: 0 | N135: =SUM(F135,I135,M135) -> 0 | O135: =SUM(N135*0.7) -> 0 | P135: 0.8 | Q135: =SUM(N135*P135) -> 0 | R135: =ROUND(N135+O135+Q135,2) -> 0
B136: Итого | C136: =SUM(C135:C135) -> 0 | F136: =SUM(F135:F135) -> 0 | G136: 0 | H136: 0 | I136: 0 | J136: 0 | K136: 0 | L136: 0 | M136: 0 | N136: 0 | O136: 0 | Q136: =SUM(Q135:Q135) -> 0 | R136: =SUM(R135:R135) -> 0
B137: Итого по профессиональной квалификационной группе "РАБОЧИЕ" | C137: =SUM(C119,C122,C127,C130,C133,C136) -> 23.75 | F137: =SUM(F119,F122,F127,F130,F133,F136) -> 97893.681 | G137: 0 | H137: 0 | I137: 0 | J137: 0 | K137: 0 | L137: 0 | M137: 0 | N137: 97893.681 | O137: 68525.5767 | Q137: =SUM(Q119,Q122,Q127,Q130,Q133,Q136) -> 86502.9448 | R137: =SUM(R119,R122,R127,R130,R133,R136) -> 252922.2
A139: V | B139: ДОЛЖНОСТИ МЕДИЦИНСКИХ И ФАРМАЦЕВТИЧЕСКИХ РАБОТНИКОВ
B140: ПКГ работников среднего медицинского и фармацевтического персонала
B141: 2 квалификационный уровень
B142: Медицинская сестра диетическая | C142: ='Мед. персонал'!X16+'Мед. персонал'!X17 -> 1 | E142: 4094 | G142: ='Мед. персонал'!J16+'Мед. персонал'!J17 -> 5322.2 | H142: ='Мед. персонал'!L16+'Мед. персонал'!L17 -> 1064.44 | I142: 0 | J142: 0 | K142: 0 | L142: 0 | M142: ='Мед. персонал'!V16 -> 0 | N142: =SUM(F142+G142,H142,I142,J142,K142,L142,M142) -> 6386.64 | O142: =SUM(N142*0.7) -> 4470.648 | P142: 0.8 | Q142: =SUM(N142*P142) -> 5109.312 | R142: =N142+O142+Q142 -> 15966.6
B143: Итого по профессиональной квалификационной группе "ДОЛЖНОСТИ МЕДИЦИНСКИХ И ФАРМАЦЕВТИЧЕСКИХ РАБОТНИКОВ" | C143: =C142 -> 1 | D143: =D142 -> 0 | F143: 0 | G143: 5322.2 | H143: 1064.44 | I143: 0 | J143: 0 | K143: 0 | L143: 0 | M143: 0 | N143: 6386.64 | O143: 4470.648 | P143: 0.8 | Q143: 5109.312 | R143: 15966.6
B145: ВСЕГО | C145: =C143+C137+C102+C31 -> 56 | D145: =D143+D137+D102+D31 -> 0 | F145: =F143+F137+F102+F31 -> 180097.681 | G145: 120465.95 | H145: 21063.63 | I145: 2161.632 | J145: 0 | K145: 3193.32 | L145: 3193.32 | M145: 20981.75 | N145: =N143+N137+N102+N31 -> 351157.283 | O145: 245810.0981 | Q145: =Q143+Q137+Q102+Q31 -> 289113.8264 | R145: =R143+R137+R102+R31 -> 886081.1975
C146: =C145-руководители!X34-служащие!X100-рабочие!M61-'Мед. персонал'!X18 -> 0 | N146: =N145-служащие!W100-'Мед. персонал'!Y18-рабочие!N61-руководители!W34 -> 0
B147: Заведующий МБДОУ " Детский сад "Руслан" | L147: Б.А.Джемакулова
F148: =C145+'Штатное расписание субвенция'!C36 -> 98
B149: Ведущий экономист | F149: =103.95-F148 -> 5.95 | L149: В.А. Тычкина
B151: Специалист по кадрам | L151: Л.И.Утяганова
C153: =C145+'Штатное расписание субвенция'!C36 -> 98

Sheet руководители
W3: УТВЕРЖДЕНО
W4: Приказом МБДОУ "Детский сад " "Руслан"
W5: № от
A9: ТАРИФИКАЦИОННЫЙ СПИСОК
A11: работников профессиональной квалификационной группы должностей руководителей
A12: Муниципальное бюджетное дошкольное образовательное учреждение "Детский сад "Руслан"
A13: (наименование образовательного учреждения)
A14: по состоянию на 01.09.2017
A16: № | B16: Фамилия, Имя, Отчество | C16: Должность | D16: Уровень образования | E16: Наименование образовательного учреждения, дата окончания, полученная специальность | F16: Стаж работы | G16: Квалификационная категория, наличие ученой степени, звания, наград | H16: Базовый оклад | I16: Коэффициент уровня образования | K16: Коэффициент стажа | M16: Коэффициент специфики работы | O16: Коэффициент квалификации | Q16: Коэффициент масштаба управления | S16: Коэффициент уровня управления | U16: Коэффициент вакансий | W16: Итого должностной оклад | X16: Кол-во занимаемых ставок | Y16: Районный коэффициент | Z16: Процентная надбавка за работу в районах Крайнего севера | AB16: Итогр должностной оклад в месяц
I17: К1 | J17: сумма | K17: К2 | L17: сумма | M17: К3 | N17: сумма | O17: К4 | P17: сумма | Q17: К5 | R17: сумма | S17: К6 | T17: сумма | U17: К8 | V17: сумма | Z17: коэ-т | AA17: сумма
A18: I | B18: РУКОВОДИТЕЛИ | G18: \ | H18: \
B19: 1 квалификационный уровень
J20: =SUM(H20*I20) -> 0 | L20: =SUM(J20*K20) -> 0 | N20: =SUM(J20*M20) -> 0 | P20: =SUM(J20*O20) -> 0 | R20: =SUM(J20*Q20) -> 0 | T20: =SUM(J20*S20) -> 0 | V20: =SUM(J20*U20) -> 0 | W20: =SUM(J20,L20,N20,P20,R20,T20,V20) -> 0 | Y20: =SUM(W20*0.7) -> 0 | Z20: 0.8 | AA20: =SUM(W20*Z20) -> 0 | AB20: =ROUND(X20+Y20+AA20,2) -> 0
B21: Итого | J21: =SUM(J20:J20) -> 0 | L21: =SUM(L20:L20) -> 0 | N21: =SUM(N20:N20) -> 0 | P21: =SUM(P20:P20) -> 0 | R21: =SUM(R20:R20) -> 0 | T21: =SUM(T20:T20) -> 0 | V21: =SUM(V20:V20) -> 0 | W21: =SUM(W20:W20) -> 0 | Y21: =SUM(Y20:Y20) -> 0 | AA21: =SUM(AA20:AA20) -> 0 | AB21: =SUM(AB20:AB20) -> 0
B22: 2 квалификационный уровень
B23: Андриеш Татьяна Григорьевна | C23: Заместитель по ВМР | D23: Высшее | E23: высшее Шадринский гос.педагогический институт диплом ВСВ 1345691 | F23: 20.3 | G23: высшая приказ ДО от 24.12.2013 № 1751 | W23: 26400 | X23: 1 | Y23: =SUM(W23*0.7) -> 18480 | Z23: 0.8 | AA23: =SUM(W23*Z23) -> 21120 | AB23: =W23+Y23+AA23 -> 66000
B24: Рубаник Наталья Михайловна | C24: Заместитель по АХР | D24: Высшее | E24: Высшее Северо-кавказский федеральный университет Диплом КО № 43609 от 23.06.2013 | F24: 28,7 | G24: 1 кат Приказ № 221 от 28.02.2014 ДО | W24: 26400 | X24: 1 | Y24: =SUM(W24*0.7) -> 18480 | Z24: 0.8 | AA24: =SUM(W24*Z24) -> 21120 | AB24: =W24+Y24+AA24 -> 66000
B25: Итого | J25: =SUM(J23:J24) -> 0 | L25: =SUM(L23:L24) -> 0 | N25: =SUM(N23:N24) -> 0 | P25: =SUM(P23:P24) -> 0 | R25: =SUM(R23:R24) -> 0 | T25: =SUM(T23:T24) -> 0 | V25: =SUM(V24:V24) -> 0 | W25: =SUM(W23:W24) -> 52800 | X25: =SUM(X23:X24) -> 2 | Y25: =SUM(Y23:Y24) -> 36960 | AA25: =SUM(AA23:AA24) -> 42240 | AB25: =SUM(AB23:AB24) -> 132000
B27: Джемакулова Бопай Амербиевна | C27: Заведующий | D27: Высшее | E27: высшее, г Мосвка "Российский новый униврситет" диплом ВСГ 1418627 от 30.03.2007 . | F27: 33.7 | G27: Высшая кв.кат. Пр.№ 1820 от 23.12.2015 г | W27: 29404 | X27: 1 | Y27: =SUM(W27*0.7) -> 20582.8 | Z27: 0.8 | AA27: =SUM(W27*Z27) -> 23523.2 | AB27: =W27+Y27+AA27 -> 73510
J28: =SUM(H28*I28) -> 0 | L28: =SUM(J28*K28) -> 0 | N28: =SUM(J28*M28) -> 0 | P28: =SUM(J28*O28) -> 0 | R28: =SUM(J28*Q28) -> 0 | T28: =SUM(J28*S28) -> 0 | V28: =SUM(J28*U28) -> 0 | W28: =SUM(J28,L28,N28,P28,R28,T28,V28) -> 0 | Y28: =SUM(W28*0.7) -> 0 | AA28: =SUM(W28*Z28) -> 0 | AB28: =ROUND(X28+Y28+AA28,2) -> 0
B29: Итого | J29: =SUM(J27:J28) -> 0 | L29: =SUM(L27:L28) -> 0 | N29: =SUM(N27:N28) -> 0 | P29: =SUM(P27:P28) -> 0 | R29: =SUM(R27:R28) -> 0 | T29: =SUM(T27:T28) -> 0 | V29: =SUM(V28:V28) -> 0 | W29: =SUM(W27:W28:W28) -> 29404 | Y29: =SUM(Y27:Y28) -> 20582.8 | AA29: =SUM(AA27:AA28) -> 23523.2 | AB29: =SUM(AB27:AB28) -> 73510
B30: 4 квалификационный уровень
J31: =SUM(H31*I31) -> 0 | L31: =SUM(J31*K31) -> 0 | N31: =SUM(J31*M31) -> 0 | P31: =SUM(J31*O31) -> 0 | R31: =SUM(J31*Q31) -> 0 | T31: =SUM(J31*S31) -> 0 | V31: =SUM(J31*U31) -> 0 | W31: =SUM(J31,L31,N31,P31,R31,T31,V31) -> 0 | Y31: =SUM(W31*0.7) -> 0 | AA31: =SUM(W31*Z31) -> 0 | AB31: =ROUND(X31+Y31+AA31,2) -> 0
B32: Итого | J32: =SUM(J31:J31) -> 0 | L32: =SUM(L31:L31) -> 0 | N32: =SUM(N31:N31) -> 0 | P32: =SUM(P31:P31) -> 0 | R32: =SUM(R31:R31) -> 0 | T32: =SUM(T31:T31) -> 0 | V32: =SUM(V31:V31) -> 0 | W32: =SUM(W31:W31) -> 0 | Y32: =SUM(Y31:Y31) -> 0 | AA32: =SUM(AA31:AA31) -> 0 | AB32: =SUM(AB31:AB31) -> 0
A34: Итого по профессиональной квалификационной группе "РУКОВОДИТЕЛИ" | J34: =SUM(J21,J25,J29,J32) -> 0 | L34: =SUM(L21,L25,L29,L32) -> 0 | N34: =SUM(N21,N25,N29,N32) -> 0 | P34: =SUM(P21,P25,P29,P32) -> 0 | R34: =SUM(R21,R25,R29,R32) -> 0 | T34: =SUM(T21,T25,T29,T32) -> 0 | V34: =SUM(V21,V25,V29,V32) -> 0 | W34: =SUM(W21,W25,W29,W32) -> 82204 | X34: =X23+X24+X27 -> 3 | Y34: =SUM(Y21,Y25,Y29,Y32) -> 57542.8 | AA34: =SUM(AA21,AA25,AA29,AA32) -> 65763.2 | AB34: =SUM(AB21,AB25,AB29,AB32) -> 205510
B36: Зам зав по АХР МБДОУ ДС "Руслан" | H36: Б. А. Джемакулова
B38: Ведущий экономист | H38: В. А Тычкина
B40: Специалист по кадрам | H40: Л. И. Утяганова

Sheet декретПед раб
AG2: УТВЕРЖДЕНО
AG3: Приказом МБДОУ "Детский сад "Руслан"
AG4: № от
A7: ТАРИФИКАЦИОННЫЙ СПИСОК
A9: работников профессиональной квалификационной группы должностей педагогических работников (ОСНОВНОЕ ОБЩЕЕ ОБРАЗОВАНИЕ)
A10: Муниципальное бюджетное дошкольное образовательное учреждение" Детский сад " "Руслан"
A11: (наименование образовательного учреждения)
A12: по состоянию на 01.09.2017 года
B13: декрет
A14: № | B14: Фамилия, Имя, Отчество | C14: Должность | D14: Уровень образования | E14: Наименование образовательного учреждения, дата окончания, полученная специальность | F14: Стаж работы | G14: Квалификационная категория, наличие ученой степени, звания, наград | H14: Базовый оклад | I14: Коэффициент уровня образования | K14: Коэффициент стажа | M14: Коэффициент специфики работы | X14: Коэффициент квалификации | Z14: Коэффициент молодых специалистов | AB14: Коэффициент вакансий | AD14: Итого должностной оклад | AE14: Кол-во преподаваемых часов | AF14: Кол-во занимаемых ставок (за исключением работающих по учебному плану) | AG14: Должностной оклад по нагрузке | AH14: Районный коэффициент | AI14: Процентная надбавка за работу в районах Крайнего севера | AK14: Итогр должностной оклад в месяц
I15: К1 | J15: сумма | K15: К2 | L15: сумма | M15: Наименование показателя | N15: сумма | O15: коэффициент спицифики | P15: сумма | Q15: Методическое объединение | R15: сумма | S15: Наименование показателя | T15: сумма | U15: Наименование показателя | V15: сумма | W15: Итого | X15: К4 | Y15: сумма | Z15: К7 | AA15: сумма | AB15: К8 | AC15: сумма | AI15: коэ-т | AJ15: сумма
B16: 1 квалификационный уровень
A17: 1 | B17: Баисова Радима Рамазановна | C17: воспитатель | D17: Высшее | E17: Ставропольский гос.университет,диплом ВСГ 4802635 от 25.06.2009 | F17: 5 | H17: 5500 | I17: 1.5 | J17: =SUM(H17*I17)*AF17 -> 8250 | K17: 0.1 | L17: =SUM(J17*K17) -> 825 | N17: =SUM(J17*M17) -> 0 | O17: 0 | P17: =SUM(J17*O17) -> 0 | R17: =SUM(J17*Q17) -> 0 | T17: =SUM(J17*S17) -> 0 | V17: =SUM(J17*U17) -> 0 | W17: =SUM(N17,P17,R17,T17,V17) -> 0 | Y17: =SUM(J17*X17) -> 0 | AA17: =SUM(J17*Z17) -> 0 | AC17: =SUM(J17*AB17) -> 0 | AD17: =SUM(J17,L17,W17,Y17,AA17,AC17) -> 9075 | AF17: 1 | AH17: =AD17*0.7 -> 6352.5 | AI17: 0.8 | AJ17: =AD17*AI17 -> 7260 | AK17: =AD17+AH17+AJ17 -> 22687.5
A18: 2 | B18: Дакаева Седа Анзоровна | C18: Воспитатель | D18: высшее | E18: Казань Диплом о профессиональной переподготовеи | F18: 2 | H18: 5500 | I18: 1.5 | J18: =SUM(H18*I18)*AF18 -> 8250 | K18: 0.05 | L18: =SUM(J18*K18) -> 412.5 | M18: 0 | N18: =SUM(J18*M18) -> 0 | O18: 0 | P18: =SUM(J18*O18) -> 0 | R18: =SUM(J18*Q18) -> 0 | T18: =SUM(J18*S18) -> 0 | V18: =SUM(J18*U18) -> 0 | W18: =SUM(N18,P18,R18,T18,V18) -> 0 | Y18: =SUM(J18*X18) -> 0 | AA18: =SUM(J18*Z18) -> 0 | AC18: =SUM(J18*AB18) -> 0 | AD18: =SUM(J18,L18,W18,Y18,AA18,AC18) -> 8662.5 | AF18: 1 | AH18: 6063.75 | AI18: 0.8 | AJ18: 6930 | AK18: 21656.25
A19: 3 | B19: Ибрагимова Джамиля Ибрагимовна | C19: Воспитатель | D19: Высшее | E19: Дагестанский государственный педагогический универститет, Диплом № 2452 от 16.01.2015 | F19: 4 | G19: Соответствие пр.128 от 28.04.2014 | H19: 5500 | I19: 1.5 | J19: 8250 | K19: 0.1 | L19: 825 | M19: 0 | N19: =SUM(J19*M19) -> 0 | O19: 0 | P19: =SUM(J19*O19) -> 0 | R19: =SUM(J19*Q19) -> 0 | T19: =SUM(J19*S19) -> 0 | V19: =SUM(J19*U19) -> 0 | W19: 0 | Y19: 0 | AA19: 0 | AC19: 0 | AD19: 9075 | AF19: 1 | AH19: 6352.5 | AI19: 0.8 | AJ19: 7260 | AK19: 22687.5
A20: 4 | B20: Карасова Джамиля Муссовеа | C20: педагог доп образов | D20: Высшее | E20: неполное высшее студентка 5 курса | F20: 3,5 | H20: 5500 | I20: 1.3 | J20: =SUM(H20*I20)*AF20 -> 7150 | K20: 0.1 | L20: =SUM(J20*K20) -> 715 | P20: =SUM(J20*O20) -> 0 | R20: =SUM(J20*Q20) -> 0 | T20: =SUM(J20*S20) -> 0 | V20: =SUM(J20*U20) -> 0 | W20: =SUM(N20,P20,R20,T20,V20) -> 0 | Y20: =SUM(J20*X20) -> 0 | AA20: =SUM(J20*Z20) -> 0 | AC20: =SUM(J20*AB20) -> 0 | AD20: =SUM(J20,L20,W20,Y20,AA20,AC20) -> 7865 | AF20: 1 | AH20: 5505.5 | AI20: 0.8 | AJ20: 6292 | AK20: 19662.5
A21: 5 | B21: Кумукова Айнара Сергеевна | C21: Воспитатель | D21: высшее | E21: Ставропольский гос.университет,диплом ВСВ 1371546 | F21: 2 | H21: 5500 | I21: 1.5 | J21: =SUM(H21*I21)*AF21 -> 8250 | K21: 0.05 | L21: =SUM(J21*K21) -> 412.5 | M21: 0 | N21: =SUM(J21*M21) -> 0 | O21: 0 | P21: =SUM(J21*O21) -> 0 | R21: =SUM(J21*Q21) -> 0 | T21: =SUM(J21*S21) -> 0 | V21: =SUM(J21*U21) -> 0 | W21: 0 | Y21: 0 | AA21: 0 | AC21: 0 | AD21: 8662.5 | AF21: 1 | AH21: 6063.75 | AI21: 0.2 | AJ21: 1732.5 | AK21: 16458.75
A22: 6 | B22: Тхайцухова Рината Адамеевна | C22: воспитатель | D22: Высшее | E22: Московский открытый социальный Универси ВСГ 0670230 | F22: 4 | H22: 5500 | I22: 1.5 | J22: =SUM(H22*I22)*AF22 -> 8250 | K22: 0.1 | L22: =SUM(J22*K22) -> 825 | N22: =SUM(J22*M22) -> 0 | P22: 0 | R22: 0 | T22: 0 | V22: 0 | W22: 0 | Y22: 0 | AA22: 0 | AC22: 0 | AD22: 9075 | AF22: 1 | AH22: 6352.5 | AI22: 0.8 | AJ22: 7260 | AK22: 22687.5
A23: 7 | B23: Узденова Олеся Менглибиевна | C23: воспитатель | D23: Высшее | E23: карачаево- Черкесский пед институт ВСГ2072508 | F23: 11 | G23: 1 кат Приказ № 430 от 19.04.2012 г Мин. Образ. И науки КЧР | H23: 5500 | I23: 1.5 | J23: 8250 | K23: 0.2 | L23: 1650 | N23: =SUM(J23*M23) -> 0 | P23: 0 | R23: 0 | T23: 0 | V23: 0 | W23: 0 | Y23: 0 | AA23: 0 | AC23: 0 | AD23: 9900 | AF23: 1 | AH23: 6930 | AI23: 0.8 | AJ23: 7920 | AK23: 24750
A24: 8 | B24: Касбулатова Альмира Бейтулаевна | C24: Воспитатель | D24: Высшее | E24: Карачаево-Черкесский университет, диплом ВСГ 5716623 | F24: 6.8 | G24: Соответствие Пр.№ 288 от 21.11.2013 | H24: 5500 | I24: 1.5 | J24: =SUM(H24*I24)*AF24 -> 8250 | K24: 0.1 | L24: =SUM(J24*K24) -> 825 | N24: =SUM(J24*M24) -> 0 | O24: 0 | P24: =SUM(J24*O24) -> 0 | R24: =SUM(J24*Q24) -> 0 | T24: =SUM(J24*S24) -> 0 | V24: =SUM(J24*U24) -> 0 | W24: 0 | Y24: 0 | AA24: =SUM(J24*Z24) -> 0 | AC24: 0 | AD24: 9075 | AF24: 1 | AH24: 6352.5 | AI24: 0.8 | AJ24: 7260 | AK24: 22687.5
A25: 9 | B25: Керейтова Мадина Келеметовна | C25: Воспитатель | D25: Высшее | E25: Карачаево-Черкесский гос.универститет им. У.Д. Алиева, диплом ВСГ 2978726 | F25: 8.8 | G25: Соответствие Пр № 326 от 20.11.2014 | H25: 5500 | I25: 1.5 | J25: =SUM(H25*I25)*AF25 -> 8250 | K25: 0.1 | L25: =SUM(J25*K25) -> 825 | M25: 0 | N25: =SUM(J25*M25) -> 0 | P25: =SUM(J25*O25) -> 0 | R25: =SUM(J25*Q25) -> 0 | T25: =SUM(J25*S25) -> 0 | V25: =SUM(J25*U25) -> 0 | W25: 0 | Y25: 0 | AA25: =SUM(J25*Z25) -> 0 | AC25: 0 | AD25: 9075 | AF25: 1 | AH25: 6352.5 | AI25: 0.8 | AJ25: 7260 | AK25: 22687.5
A26: 10 | B26: Митрофанова Ольга Владимировна | C26: Воспитатель (логопедическакя группа) | D26: Высшее | E26: Новочеркасская гос мелиоративная академия, диплом ВСГ 2827819 Новоуренгойский педколледж 2-й курс | F26: 2.8 | G26: соответствие Приказ № 63 от 26.03.2015 | H26: 5500 | I26: 1.5 | J26: =SUM(H26*I26)*AF26 -> 8250 | K26: 0.1 | L26: =SUM(J26*K26) -> 825 | M26: 0 | N26: 0 | O26: 0.2 | P26: 1650 | R26: 0 | T26: 0 | V26: 0 | W26: 1650 | Y26: 0 | AA26: =SUM(J26*Z26) -> 0 | AC26: 0 | AD26: 10725 | AF26: 1 | AH26: 7507.5 | AI26: 0.8 | AJ26: 8580 | AK26: 26812.5
A27: 11 | B27: Мирошникова Анна Игоревна | C27: воспитатель | D27: Среднее-профессиональное | E27: Новоуренгойсре педучилище, диплом СБ № 4631366 | F27: 3 | H27: 5500 | I27: 1.3 | J27: =SUM(H27*I27)*AF27 -> 7150 | K27: 0.1 | L27: =SUM(J27*K27) -> 715 | N27: =SUM(J27*M27) -> 0 | O27: 0 | P27: =SUM(J27*O27) -> 0 | R27: =SUM(J27*Q27) -> 0 | T27: =SUM(J27*S27) -> 0 | V27: =SUM(J27*U27) -> 0 | W27: =SUM(N27,P27,R27,T27,V27) -> 0 | Y27: =SUM(J27*X27) -> 0 | AA27: =SUM(J27*Z27) -> 0 | AC27: =SUM(J27*AB27) -> 0 | AD27: =SUM(J27,L27,W27,Y27,AA27,AC27) -> 7865 | AF27: 1 | AH27: =AD27*0.7 -> 5505.5 | AI27: 0.8 | AJ27: =AD27*AI27 -> 6292 | AK27: =AD27+AH27+AJ27 -> 19662.5
A28: 12 | B28: Чупалаева Юлдузат Алимсултановна | C28: Воспитатель | D28: Высшее | E28: Дагестанский государственный университет , Диплом КГ № 16339,Институт новых техгологий в образовании | F28: 1.3 | H28: 5500 | I28: 1.5 | J28: =SUM(H28*I28)*AF28 -> 8250 | K28: 0.05 | L28: =SUM(J28*K28) -> 412.5 | M28: 0 | N28: =SUM(J28*M28) -> 0 | O28: 0 | P28: =SUM(J28*O28) -> 0 | R28: =SUM(J28*Q28) -> 0 | T28: =SUM(J28*S28) -> 0 | V28: =SUM(J28*U28) -> 0 | W28: =SUM(N28,P28,R28,T28,V28) -> 0 | Y28: =SUM(J28*X28) -> 0 | AA28: =SUM(J28*Z28) -> 0 | AC28: =SUM(J28*AB28) -> 0 | AD28: =SUM(J28,L28,W28,Y28,AA28,AC28) -> 8662.5 | AF28: 1 | AH28: =AD28*0.7 -> 6063.75 | AI28: 0.8 | AJ28: =AD28*AI28 -> 6930 | AK28: =AD28+AH28+AJ28 -> 21656.25
B29: Итого | J29: =SUM(J17:J28) -> 96800 | L29: =SUM(L17:L23) -> 5665 | M29: =SUM(M17:M23) -> 0 | N29: =SUM(N17:N23) -> 0 | P29: =SUM(P17:P23) -> 0 | Q29: 0 | R29: 0 | S29: 0 | T29: 0 | U29: 0 | V29: 0 | W29: 0 | Y29: =SUM(Y17:Y23) -> 0 | Z29: 0 | AA29: 0 | AB29: 0 | AC29: 0 | AD29: 62315 | AF29: =SUM(AF17:AF23) -> 7 | AH29: =SUM(AH17:AH23) -> 43620.5 | AJ29: =SUM(AJ17:AJ23) -> 44654.5 | AK29: =SUM(AK17:AK23) -> 150590
B30: Итого
A32: Итого
B34: Заведующий МБДОУ "Детский сад "Руслан" | AA34: Б. А. Джемакулова
B36: Ведущий экономист | AA36: В. А. Тычкина

Sheet пед кадры
AG2: УТВЕРЖДЕНО
AG3: Приказом МБДОУ "Детский сад "Руслан"
AG4: № 173 от 01.09.2017
A7: ТАРИФИКАЦИОННЫЙ СПИСОК
A9: работников профессиональной квалификационной группы должностей педагогических работников (ОСНОВНОЕ ОБЩЕЕ ОБРАЗОВАНИЕ)
A10: Муниципальное бюджетное дошкольное образовательное учреждение" Детский сад " "Руслан"
A11: (наименование образовательного учреждения)
A12: по состоянию на 01 09.2017года
A14: № | B14: Фамилия, Имя, Отчество | C14: Должность | D14: Уровень образования | E14: Наименование образовательного учреждения, дата окончания, полученная специальность | F14: Стаж работы | G14: Квалификационная категория, наличие ученой степени, звания, наград | H14: Базовый оклад | I14: Коэффициент уровня образования | K14: Коэффициент стажа | M14: Коэффициент специфики работы | X14: Коэффициент квалификации | Z14: Коэффициент молодых специалистов | AB14: Коэффициент вакансий | AD14: Итого должностной оклад | AE14: Кол-во преподаваемых часов | AF14: Кол-во занимаемых ставок (за исключением работающих по учебному плану) | AG14: Должностной оклад по нагрузке | AH14: Районный коэффициент | AI14: Процентная надбавка за работу в районах Крайнего севера | AK14: Итогр должностной оклад в месяц
I15: К1 | J15: сумма | K15: К2 | L15: сумма | M15: Наименование показателя | N15: сумма | O15: коэффициент спицифики | P15: сумма | Q15: Методическое объединение | R15: сумма | S15: Наименование показателя | T15: сумма | U15: Наименование показателя | V15: сумма | W15: Итого | X15: К4 | Y15: сумма | Z15: К7 | AA15: сумма | AB15: К8 | AC15: сумма | AI15: коэ-т | AJ15: сумма
B16: 1 квалификационный уровень
A17: 1 | B17: Куклин Сергей Леонидович | C17: инструктор по физической культуре (с обучением плаванию) | D17: Высшее | E17: Марийский гос.пед.институт диплом ЦВ 0166652 от 26.06.1992 | F17: 22.11 | G17: Соответствие пр. 26 от 20.01.2014 | H17: 5500 | I17: 1.5 | J17: =SUM(H17*I17)*AF17 -> 8250 | K17: 0.2 | L17: =SUM(J17*K17) -> 1650 | N17: =SUM(J17*M17) -> 0 | O17: 0 | P17: =SUM(J17*O17) -> 0 | Q17: 0 | R17: =SUM(J17*Q17) -> 0 | T17: =SUM(J17*S17) -> 0 | V17: =SUM(J17*U17) -> 0 | W17: =SUM(N17,P17,R17,T17,V17) -> 0 | Y17: =SUM(J17*X17) -> 0 | AA17: =SUM(J17*Z17) -> 0 | AC17: =SUM(J17*AB17) -> 0 | AD17: =SUM(J17,L17,W17,Y17,AA17,AC17) -> 9900 | AF17: 1 | AH17: =AD17*0.7 -> 6930 | AI17: 0.8 | AJ17: =AD17*AI17 -> 7920 | AK17: =AD17+AH17+AJ17 -> 24750
A18: 2 | B18: Куклин Сергей Леонидович | C18: инструктор по физической культуре (с обучением плаванию) | D18: Высшее | E18: Марийский гос.пед.институт диплом ЦВ 0166652 от 26.06.1992 | F18: 22.11 | G18: Соответствие пр. 26 от 20.01.2014 | H18: 5500 | I18: 1.5 | J18: 4125 | K18: 0.2 | L18: 825 | N18: 0 | O18: 0 | P18: 0 | Q18: 0 | R18: 0 | T18: 0 | V18: 0 | W18: 0 | Y18: 0 | AA18: 0 | AC18: 0 | AD18: 4950 | AF18: 0.5 | AH18: 3465 | AI18: 0.8 | AJ18: 3960 | AK18: 12375
A19: 3 | B19: Нифталиев Сахил Тельман оглы | C19: инструктор по физической культуре (без обучению плаванию) | D19: Среднее-профессиональное, | E19: Омский пед.колледж диплом 55 ПА 0001116 ,Пермский университет | F19: 5 | G19: Соответствие пр. 300 от 30.10.2014 | H19: 5500 | I19: 1.3 | J19: 7150 | K19: 0.1 | L19: 715 | N19: 0 | O19: 0 | P19: 0 | Q19: 0 | R19: 0 | T19: 0 | V19: 0 | W19: 0 | Y19: 0 | AA19: 0 | AC19: 0 | AD19: 7865 | AF19: 1 | AH19: 5505.5 | AI19: 0.8 | AJ19: =AD19*AI19 -> 6292 | AK19: =AD19+AH19+AJ19 -> 19662.5
A20: 4 | B20: Нифталиев Сахил Тельмае Оглы | C20: инструктор по физической культуре (без обучения плаванию) | D20: Среднее-профессиональное, | E20: Омский пед.колледж диплом 55 ПА 0001116 ,Пермский университет | F20: 5 | G20: Соответствие пр. 300 от 30.10.2014 | H20: 5500 | I20: 1.3 | J20: 3575 | K20: 0.1 | L20: 357.5 | N20: 0 | O20: 0 | P20: 0 | Q20: 0 | R20: 0 | T20: 0 | V20: 0 | W20: 0 | Y20: 0 | AA20: 0 | AC20: 0 | AD20: 3932.5 | AF20: 0.5 | AH20: 2752.75 | AI20: 0.8 | AJ20: =AD20*AI20 -> 3146 | AK20: 9831.25
A21: 5 | B21: Вакансия | C21: инструктор по физической культуре (без обучения плаванию) | F21: 0 | H21: 5500 | I21: 1.5 | L21: =SUM(J21*K21) -> 0 | N21: =SUM(J21*M21) -> 0 | O21: 0 | P21: =SUM(J21*O21) -> 0 | Q21: 0 | R21: =SUM(J21*Q21) -> 0 | T21: =SUM(J21*S21) -> 0 | V21: =SUM(J21*U21) -> 0 | W21: =SUM(N21,P21,R21,T21,V21) -> 0 | Y21: 0 | AA21: =SUM(J21*Z21) -> 0 | AB21: 1.25 | AC21: =H21*I21*AB21*AF21 -> 2578.125 | AD21: =SUM(J21,L21,W21,Y21,AA21,AC21) -> 2578.125 | AF21: 0.25 | AH21: =AD21*0.7 -> 1804.6875 | AI21: 0.8 | AJ21: =AD21*AI21 -> 2062.5 | AK21: =AD21+AH21+AJ21 -> 6445.3125
A22: 6 | B22: Вакансия | C22: инструктор по физической культуре (с обучением плаванию) | F22: 0 | H22: 5500 | I22: 1.5 | L22: =SUM(J22*K22) -> 0 | N22: =SUM(J22*M22) -> 0 | O22: 0 | P22: =SUM(J22*O22) -> 0 | Q22: 0 | R22: =SUM(J22*Q22) -> 0 | T22: =SUM(J22*S22) -> 0 | V22: =SUM(J22*U22) -> 0 | W22: =SUM(N22,P22,R22,T22,V22) -> 0 | Y22: =SUM(J22*X22) -> 0 | AA22: =SUM(J22*Z22) -> 0 | AB22: 1.25 | AC22: =H22*I22*AB22*AF22 -> 2578.125 | AD22: =SUM(J22,L22,W22,Y22,AA22,AC22) -> 2578.125 | AF22: 0.25 | AH22: =AD22*0.7 -> 1804.6875 | AI22: 0.8 | AJ22: =AD22*AI22 -> 2062.5 | AK22: =AD22+AH22+AJ22 -> 6445.3125
A23: 7 | B23: Шаброва Светлана Викторовна | C23: Музыкальный руководитель | D23: Среднее-профессиональное | E23: Вольское пед.училище диплом ИТ №302025 | F23: 30 | G23: 1 категория протокол заседания Атесстационной комиссс ДО ЯНАО № 10 от 27.05.2016 | H23: 5500 | I23: 1.3 | J23: 10725 | K23: 0.2 | L23: 2145 | N23: 0 | O23: 0 | P23: 0 | Q23: 0 | R23: 0 | T23: 0 | V23: 0 | W23: 0 | X23: 0.3 | Y23: 3217.5 | AA23: 0 | AC23: 0 | AD23: 16087.5 | AF23: 1.5 | AH23: 11261.25 | AI23: 0.8 | AJ23: 12870 | AK23: 40218.75
A24: 8 | B24: Герейханова Альбина Вазирхановна | C24: хореограф | D24: Среднее-профессиональное | E24: ГОУ "Чеченский государственный колледж культуры и искусства" | F24: 4 | H24: 5500 | I24: 1.3 | J24: =SUM(H24*I24)*AF24 -> 3575 | K24: 0.1 | L24: =SUM(J24*K24) -> 357.5 | N24: =SUM(J24*M24) -> 0 | O24: 0 | P24: =SUM(J24*O24) -> 0 | R24: =SUM(J24*Q24) -> 0 | T24: =SUM(J24*S24) -> 0 | V24: =SUM(J24*U24) -> 0 | W24: =SUM(N24,P24,R24,T24,V24) -> 0 | Y24: =SUM(J24*X24) -> 0 | AA24: =SUM(J24*Z24) -> 0 | AC24: =SUM(J24*AB24) -> 0 | AD24: =SUM(J24,L24,W24,Y24,AA24,AC24) -> 3932.5 | AF24: 0.5 | AH24: =AD24*0.7 -> 2752.75 | AI24: 0.8 | AJ24: =AD24*AI24 -> 3146 | AK24: =AD24+AH24+AJ24 -> 9831.25
A25: 9 | B25: Князева Маргарита Андреевна | C25: хореограф (внешний совмест.) | D25: Высшее | E25: ГОУ "Чеченский государственный колледж культуры и искусства" | F25: 15.2 | G25: высшая Приказ ДО ЯНАО № 607 от 3.04.2015 | H25: 5500 | I25: 1.5 | J25: =SUM(H25*I25)*AF25 -> 4125 | K25: 0.2 | L25: =SUM(J25*K25) -> 825 | N25: =SUM(J25*M25) -> 0 | O25: 0 | P25: =SUM(J25*O25) -> 0 | Q25: 0 | R25: =SUM(J25*Q25) -> 0 | T25: =SUM(J25*S25) -> 0 | V25: =SUM(J25*U25) -> 0 | W25: =SUM(N25,P25,R25,T25,V25) -> 0 | X25: 0.5 | Y25: =SUM(J25*X25) -> 2062.5 | AA25: 0 | AC25: =SUM(J25*AB25) -> 0 | AD25: =SUM(J25,L25,W25,Y25,AA25,AC25) -> 7012.5 | AF25: 0.5 | AH25: =AD25*0.7 -> 4908.75 | AI25: 0.8 | AJ25: =AD25*AI25 -> 5610 | AK25: =AD25+AH25+AJ25 -> 17531.25
A26: 10 | B26: Куруптурсунов Эдиге Бегалиевич | C26: Музыкальный руководитель | D26: средне профессиальное | E26: Астраханский коледж культуры и искусств | F26: 1.7 | H26: 5500 | I26: 1.3 | J26: =SUM(H26*I26)*AF26 -> 10725 | K26: 0.05 | L26: =SUM(J26*K26) -> 536.25 | N26: 0 | O26: 0 | P26: 0 | Q26: 0 | R26: 0 | T26: 0 | V26: 0 | W26: 0 | Y26: 0 | AA26: 0 | AC26: =H26*I26*AB26*AF26 -> 0 | AD26: =SUM(J26,L26,W26,Y26,AA26,AC26) -> 11261.25 | AF26: 1.5 | AH26: 7882.875 | AI26: 0.8 | AJ26: 9009 | AK26: 28153.125
B27: Итого | J27: =SUM(J17:J26) -> 52250 | L27: =SUM(L17:L26) -> 7411.25 | N27: =SUM(N17:N26) -> 0 | O27: 0 | P27: 0 | Q27: 0 | R27: 0 | S27: 0 | T27: 0 | U27: 0 | V27: 0 | W27: 0 | Y27: =SUM(Y17:Y26) -> 5280 | Z27: =SUM(Z17:Z26) -> 0 | AC27: =SUM(AC17:AC26) -> 5156.25 | AD27: =SUM(AD17:AD26) -> 70097.5 | AF27: =SUM(AF17:AF26) -> 7.5 | AG27: =SUM(AG17:AG26) -> 0 | AH27: =SUM(AH17:AH26) -> 49068.25 | AJ27: =SUM(AJ17:AJ26) -> 56078 | AK27: =SUM(AK17:AK26) -> 175243.75
B28: 3 квалификационный уровень
A29: 13 | B29: Аргалева Галина Гри горьевна | C29: Воспитатель | D29: Среднее-профессиональное | E29: Чебоксарский пед.колледж, диплом Ут № 742637 | F29: 20.11 | G29: соответствие Приказ № 37 от 26.02.2015 | H29: 5500 | I29: 1.3 | J29: =SUM(H29*I29)*AF29 -> 7150 | K29: 0.2 | L29: =SUM(J29*K29) -> 1430 | M29: 0 | N29: =SUM(J29*M29) -> 0 | O29: 0 | P29: =SUM(J29*O29) -> 0 | R29: =SUM(J29*Q29) -> 0 | T29: =SUM(J29*S29) -> 0 | V29: =SUM(J29*U29) -> 0 | W29: =SUM(N29,P29,R29,T29,V29) -> 0 | X29: 0 | Y29: =SUM(J29*X29) -> 0 | AA29: =SUM(J29*Z29) -> 0 | AC29: =SUM(J29*AB29) -> 0 | AD29: =SUM(J29,L29,W29,Y29,AA29,AC29) -> 8580 | AF29: 1 | AH29: =AD29*0.7 -> 6006 | AI29: 0.8 | AJ29: =AD29*AI29 -> 6864 | AK29: =AD29+AH29+AJ29 -> 21450
A30: 14 | B30: Азнабаева Салима Исмагиловна | C30: Воспитатель | D30: Высшее | E30: Стерлитамакский государственный педагогический унститут | F30: 23.5 | H30: 5500 | I30: 1.5 | J30: =SUM(H30*I30)*AF30 -> 8250 | K30: 0.2 | L30: =SUM(J30*K30) -> 1650 | M30: 0 | N30: =SUM(J30*M30) -> 0 | O30: 0 | P30: =SUM(J30*O30) -> 0 | R30: =SUM(J30*Q30) -> 0 | T30: =SUM(J30*S30) -> 0 | V30: =SUM(J30*U30) -> 0 | W30: =SUM(N30,P30,R30,T30,V30) -> 0 | X30: 0 | Y30: =SUM(J30*X30) -> 0 | AA30: =SUM(J30*Z30) -> 0 | AC30: =SUM(J30*AB30) -> 0 | AD30: =SUM(J30,L30,W30,Y30,AA30,AC30) -> 9900 | AF30: 1 | AH30: 6930 | AI30: 0.8 | AJ30: 7920 | AK30: 24750
A31: 15 | B31: Ахмедова Кацура Джентимировна | C31: Воспитатель | D31: средне-профессиональное | E31: Черкесское пед училище Диплом № СТ 211301 | F31: 12 | H31: 5500 | I31: 1.3 | J31: =SUM(H31*I31)*AF31 -> 10725 | K31: 0.2 | L31: =SUM(J31*K31) -> 2145 | M31: 0 | N31: =SUM(J31*M31) -> 0 | O31: 0 | P31: =SUM(J31*O31) -> 0 | R31: =SUM(J31*Q31) -> 0 | T31: =SUM(J31*S31) -> 0 | V31: =SUM(J31*U31) -> 0 | W31: =SUM(N31,P31,R31,T31,V31) -> 0 | X31: 0 | Y31: =SUM(J31*X31) -> 0 | AA31: =SUM(J31*Z31) -> 0 | AC31: =SUM(J31*AB31) -> 0 | AD31: =SUM(J31,L31,W31,Y31,AA31,AC31) -> 12870 | AF31: 1.5 | AH31: 9009 | AI31: 0.8 | AJ31: 10296 | AK31: 32175
A32: 16 | B32: Банбатова Бэлла Данисолтановна | C32: Воспитатель | D32: Высшее | E32: Дагестанский гс.пед институт диплом ЦВ 394728 от 25.05.1994 | F32: 23.7 | G32: магистр 1 кв кат протокол ДО ЯНАО от 25.11.2016 № 4 | H32: 5500 | I32: 1.5 | J32: =SUM(H32*I32)*AF32 -> 8250 | K32: 0.2 | L32: =SUM(J32*K32) -> 1650 | M32: 0 | N32: =SUM(J32*M32) -> 0 | O32: 0 | P32: =SUM(J32*O32) -> 0 | R32: =SUM(J32*Q32) -> 0 | T32: =SUM(J32*S32) -> 0 | V32: =SUM(J32*U32) -> 0 | W32: =SUM(N32,P32,R32,T32,V32) -> 0 | X32: 0.3 | Y32: =SUM(J32*X32) -> 2475 | AA32: =SUM(J32*Z32) -> 0 | AC32: =SUM(J32*AB32) -> 0 | AD32: =SUM(J32,L32,W32,Y32,AA32,AC32) -> 12375 | AF32: 1 | AH32: 8662.5 | AI32: 0.8 | AJ32: 9900 | AK32: 30937.5
A33: 17 | B33: Байгельдиева Мадина Исламовна | C33: Воспитатель | D33: Среднее-профессиональное | E33: Черкесское пед.училище, диплом СБ 0817254 | F33: 13.3 | G33: соответствие Приказ от 23.04.2014 № 82 | H33: 5500 | I33: 1.3 | J33: =SUM(H33*I33)*AF33 -> 10725 | K33: 0.2 | L33: =SUM(J33*K33) -> 2145 | N33: =SUM(J33*M33) -> 0 | O33: 0 | P33: =SUM(J33*O33) -> 0 | R33: =SUM(J33*Q33) -> 0 | T33: =SUM(J33*S33) -> 0 | V33: =SUM(J33*U33) -> 0 | W33: =SUM(N33,P33,R33,T33,V33) -> 0 | Y33: =SUM(J33*X33) -> 0 | AA33: =SUM(J33*Z33) -> 0 | AC33: =SUM(J33*AB33) -> 0 | AD33: =SUM(J33,L33,W33,Y33,AA33,AC33) -> 12870 | AF33: 1.5 | AH33: 9009 | AI33: 0.8 | AJ33: 10296 | AK33: 32175
A34: 18 | B34: вакансия | C34: воспитатль (логопедическая группы) | D34: Высшее | H34: 5500 | I34: 1.5 | L34: =SUM(J34*K34) -> 0 | M34: 0 | N34: 0 | P34: 0 | R34: 0 | T34: 0 | V34: 0 | W34: 0 | Y34: 0 | AA34: =SUM(J34*Z34) -> 0 | AB34: 1.25 | AC34: =H34*I34*AB34*AF34 -> 15468.75 | AD34: =AC34 -> 15468.75 | AF34: 1.5 | AH34: 10828.125 | AI34: 0.8 | AJ34: 12375 | AK34: 38671.875
A35: 19 | B35: Драган Галина Пантелеевна | C35: Воспитатель (логопедическакя группа) | D35: Высшее | E35: Тюменский государственный университет Диплом бакалавра № 107224 037 2969 от 21 04..2015. регистрационный номер 1199 | F35: 28.1 | G35: 1 категория Протокол аттестационной комиссии от 29.01.2016 | H35: 5500 | I35: 1.4 | J35: =SUM(H35*I35)*AF35 -> 11550 | K35: 0.2 | L35: 2310 | M35: 0 | N35: =SUM(J35*M35) -> 0 | O35: 0.2 | P35: 2310 | R35: 0 | T35: 0 | V35: 0 | W35: 2310 | X35: 0.3 | Y35: 3465 | AA35: 0 | AC35: 0 | AD35: 19635 | AF35: 1.5 | AH35: 13744.5 | AI35: 0.8 | AJ35: 15708 | AK35: 49087.5
A36: 20 | B36: Даутова Саният Саидовна | C36: Воспитатель (логопедическакя группа) | D36: Высшее | E36: Дагестанский гос.пед.университет, диплом БВС 03188684 | F36: 14.1 | G36: 1 кат Протокол заседаниея Аттестацион комиссии от 23.10.2015 г | H36: 5500 | I36: 1.5 | J36: =SUM(H36*I36)*AF36 -> 8250 | K36: 0.2 | L36: 1650 | N36: =SUM(J36*M36) -> 0 | O36: 0.2 | P36: 1650 | R36: 0 | T36: 0 | V36: 0 | W36: 1650 | X36: 0.3 | Y36: 2475 | AA36: 0 | AC36: 0 | AD36: 14025 | AF36: 1 | AH36: 9817.5 | AI36: 0.8 | AJ36: 11220 | AK36: 35062.5
A37: 21 | B37: Даутова Саният Саидовна | C37: Воспитатель | D37: Высшее | E37: Дагестанский гос.пед.университет, диплом БВС 03188684 | F37: 12 | G37: 1 кат Протокол заседаниея Аттестацион комиссии от 23.10.2015 г | H37: 5500 | I37: 1.5 | J37: =SUM(H37*I37)*AF37 -> 4125 | K37: 0.2 | L37: =SUM(J37*K37) -> 825 | N37: =SUM(J37*M37) -> 0 | P37: =SUM(J37*O37) -> 0 | R37: =SUM(J37*Q37) -> 0 | T37: =SUM(J37*S37) -> 0 | V37: =SUM(J37*U37) -> 0 | W37: =SUM(N37,P37,R37,T37,V37) -> 0 | X37: 0.3 | Y37: =SUM(J37*X37) -> 1237.5 | AA37: =SUM(J37*Z37) -> 0 | AC37: =SUM(J37*AB37) -> 0 | AD37: =SUM(J37,L37,W37,Y37,AA37,AC37) -> 6187.5 | AF37: 0.5 | AH37: =AD37*0.7 -> 4331.25 | AI37: 0.8 | AJ37: =AD37*AI37 -> 4950 | AK37: =AD37+AH37+AJ37 -> 15468.75
A38: 22 | B38: Джемакулова Марита Борисовна | C38: Воспитатель (логопедическакя группа) | D38: Высшее | E38: Ростовский гос.экономический университет диплом ДВС 1840516 Диплом профессиональной подготовке АНОО" Институт развития современных образовательных бехнологий 015 06 0006566 от 15.11.2014 | F38: 11.05 | G38: 1 кат протокол заседания Аттестац комиссии ЯНАО от 28.12.2015 № 05 | H38: 5500 | I38: 1.5 | J38: 12375 | K38: 0.2 | L38: 2475 | M38: 0 | N38: 0 | O38: 0.2 | P38: 2475 | R38: 0 | T38: 0 | V38: 0 | W38: 2475 | X38: 0.3 | Y38: 3712.5 | AA38: 0 | AC38: 0 | AD38: 21037.5 | AF38: 1.5 | AH38: 14726.25 | AI38: 0.8 | AJ38: 16830 | AK38: 52593.75
A39: 23 | B39: Джазова Залина Азаматовна | C39: Воспитатель | D39: средне профессиальное | E39: Карасаево-Черкеский педагогичсекий коллежд диплом 110905 1101094 от 30.06.2014 | F39: 2.11 | H39: 5500 | I39: 1.3 | J39: 7150 | K39: 0.05 | L39: 357.5 | M39: 0 | N39: 0 | O39: 0 | P39: 0 | R39: 0 | T39: 0 | V39: 0 | W39: 0 | Y39: 0 | AA39: 0 | AC39: 0 | AD39: 7507.5 | AF39: 1 | AH39: 5255.25 | AI39: 0.4 | AJ39: 3003 | AK39: 15765.75
A40: 24 | B40: Канглиева Джанке Крымгереевна | C40: Воспитатель (логопедическакя группа) | D40: Высшее | E40: Карачаево-Черкесский пед. институт диплом ДВС 0788990 | F40: 18.4 | G40: 1 кат протокол заседания Аттестац комиссии ЯНАО от 28.12.2015 № 05 | H40: 5500 | I40: 1.5 | J40: 8250 | K40: 0.2 | L40: 1650 | M40: 0 | N40: 0 | O40: 0.2 | P40: 1650 | R40: 0 | T40: 0 | V40: 0 | W40: 1650 | X40: 0.3 | Y40: 2475 | AA40: 0 | AC40: 0 | AD40: 14025 | AF40: 1 | AH40: 9817.5 | AI40: 0.8 | AJ40: 11220 | AK40: 35062.5
A41: 25 | B41: Канглиева Джанке Крымгереевна | C41: Воспитатель | D41: Высшее | E41: Карачаево-Черкесский пед. институт диплом ДВС 0788990 | F41: 18.4 | G41: 1 кат протокол заседания Аттестац комиссии ЯНАО от 28.12.2015 № 05 | H41: 5500 | I41: 1.5 | J41: =SUM(H41*I41)*AF41 -> 4125 | K41: 0.2 | L41: =SUM(J41*K41) -> 825 | M41: 0 | N41: =SUM(J41*M41) -> 0 | O41: 0 | P41: =SUM(J41*O41) -> 0 | R41: =SUM(J41*Q41) -> 0 | T41: =SUM(J41*S41) -> 0 | V41: =SUM(J41*U41) -> 0 | W41: =SUM(N41,P41,R41,T41,V41) -> 0 | X41: 0.3 | Y41: =SUM(J41*X41) -> 1237.5 | AA41: =SUM(J41*Z41) -> 0 | AC41: =SUM(J41*AB41) -> 0 | AD41: =SUM(J41,L41,W41,Y41,AA41,AC41) -> 6187.5 | AF41: 0.5 | AH41: =AD41*0.7 -> 4331.25 | AI41: 0.8 | AJ41: =AD41*AI41 -> 4950 | AK41: =AD41+AH41+AJ41 -> 15468.75
A42: 26 | B42: Карасова Заира Азаматовна | C42: Воспитатель | D42: Высшее | E42: Северо-кавказский федеральный университет КА 37470 | F42: 10.9 | H42: 5500 | I42: 1.5 | J42: =SUM(H42*I42)*AF42 -> 8250 | K42: 0.2 | L42: =SUM(J42*K42) -> 1650 | M42: 0 | N42: =SUM(J42*M42) -> 0 | O42: 0 | P42: =SUM(J42*O42) -> 0 | R42: =SUM(J42*Q42) -> 0 | T42: =SUM(J42*S42) -> 0 | V42: =SUM(J42*U42) -> 0 | W42: =SUM(N42,P42,R42,T42,V42) -> 0 | Y42: =SUM(J42*X42) -> 0 | AA42: =SUM(J42*Z42) -> 0 | AC42: =SUM(J42*AB42) -> 0 | AD42: =SUM(J42,L42,W42,Y42,AA42,AC42) -> 9900 | AF42: 1 | AH42: 6930 | AI42: 0.8 | AJ42: 7920 | AK42: 24750
A43: 27 | B43: вакансия | C43: воспитатель | D43: высшее | F43: 0 | H43: 5500 | I43: 1.5 | L43: =SUM(J43*K43) -> 0 | M43: 0 | N43: =SUM(J43*M43) -> 0 | O43: 0 | P43: =SUM(J43*O43) -> 0 | R43: =SUM(J43*Q43) -> 0 | T43: =SUM(J43*S43) -> 0 | V43: =SUM(J43*U43) -> 0 | W43: =SUM(N43,P43,R43,T43,V43) -> 0 | Y43: =SUM(J43*X43) -> 0 | AA43: =SUM(J43*Z43) -> 0 | AB43: 1.25 | AC43: =H43*I43*AB43*AF43 -> 12890.625 | AD43: =SUM(J43,L43,W43,Y43,AA43,AC43) -> 12890.625 | AF43: 1.25 | AH43: =AD43*0.7 -> 9023.4375 | AI43: 0.8 | AJ43: =AD43*AI43 -> 10312.5 | AK43: =AD43+AH43+AJ43 -> 32226.5625
A44: 28 | B44: Кумратова Бела Тахировна | C44: Воспитатель | D44: Высшее | E44: Карачаево- Черкесский пед институт ВСВ 0669123 | F44: 16.5 | H44: 5500 | I44: 1.5 | J44: =SUM(H44*I44)*AF44 -> 12375 | K44: 0.2 | L44: =SUM(J44*K44) -> 2475 | N44: =SUM(J44*M44) -> 0 | O44: 0 | P44: =SUM(J44*O44) -> 0 | R44: =SUM(J44*Q44) -> 0 | T44: =SUM(J44*S44) -> 0 | V44: =SUM(J44*U44) -> 0 | W44: =SUM(N44,P44,R44,T44,V44) -> 0 | Y44: =SUM(J44*X44) -> 0 | AA44: =SUM(J44*Z44) -> 0 | AC44: =SUM(J44*AB44) -> 0 | AD44: =SUM(J44,L44,W44,Y44,AA44,AC44) -> 14850 | AF44: 1.5 | AH44: 10395 | AI44: 0.8 | AJ44: 11880 | AK44: 37125
A45: 29 | B45: Курячая Наталья Владимировна | C45: Воспитатель | D45: Высшее | E45: Тобольская государ. пед. академия, КА № 85444, | F45: 17.2 | G45: высшая кв.кат. Протокол заседания Аттестационнной комиссии от 31.10.2016 № 3 | H45: 5500 | I45: 1.5 | J45: 12375 | K45: 0.2 | L45: 2475 | M45: 0 | N45: 0 | O45: 0 | P45: 0 | R45: 0 | T45: 0 | V45: 0 | W45: 0 | X45: 0.5 | Y45: 6187.5 | AA45: 0 | AC45: 0 | AD45: =J45+L45+W45+Y45+AA45+AC45 -> 21037.5 | AF45: 1.5 | AH45: 14726.25 | AI45: 0.8 | AJ45: 16830 | AK45: 52593.75
A46: 30 | B46: Кумукова Крымхан Муссовна | C46: психолог | D46: Высшее | E46: Ставропольский гос.университет,диплом ВСВ 1371547 | F46: 14.9 | G46: I-кв.кат. Приказ № 554 от 31.03.2015 | H46: 5500 | I46: 1.5 | J46: =SUM(H46*I46)*AF46 -> 8250 | K46: 0.2 | L46: =SUM(J46*K46) -> 1650 | M46: 0 | N46: =SUM(J46*M46) -> 0 | O46: 0 | P46: =SUM(J46*O46) -> 0 | R46: =SUM(J46*Q46) -> 0 | T46: =SUM(J46*S46) -> 0 | V46: =SUM(J46*U46) -> 0 | W46: =SUM(N46,P46,R46,T46,V46) -> 0 | X46: 0 | Y46: =SUM(J46*X46) -> 0 | AA46: =SUM(J46*Z46) -> 0 | AC46: =SUM(J46*AB46) -> 0 | AD46: =J46+L46+W46+Y46+AA46+AC46 -> 9900 | AF46: 1 | AH46: =AD46*0.7 -> 6930 | AI46: 1.8 | AJ46: =AD46*AI46 -> 17820 | AK46: =AD46+AH46+AJ46 -> 34650
A47: 31 | B47: Кумукова Крымхан Муссовна | C47: психолог | D47: Высшее | E47: Ставропольский гос.университет,диплом ВСВ 1371547 | F47: 14.9 | G47: I-кв.кат. Приказ № 554 от 31.03.2015 | H47: 5500 | I47: 1.5 | J47: =SUM(H47*I47)*AF47 -> 4125 | K47: 0.2 | L47: =SUM(J47*K47) -> 825 | M47: 0 | N47: =SUM(J47*M47) -> 0 | O47: 0 | P47: =SUM(J47*O47) -> 0 | R47: =SUM(J47*Q47) -> 0 | T47: =SUM(J47*S47) -> 0 | V47: =SUM(J47*U47) -> 0 | W47: =SUM(N47,P47,R47,T47,V47) -> 0 | X47: 0 | Y47: =SUM(J47*X47) -> 0 | AA47: =SUM(J47*Z47) -> 0 | AC47: =SUM(J47*AB47) -> 0 | AD47: =J47+L47+W47+Y47+AA47+AC47 -> 4950 | AF47: 0.5 | AH47: =AD47*0.7 -> 3465 | AI47: 1.8 | AJ47: =AD47*AI47 -> 8910 | AK47: =AD47+AH47+AJ47 -> 17325
A48: 32 | B48: Левина Инна Петровна | C48: Воспитатель | D48: Высшее | E48: Московский открытый социальный унивеситет диплом ВСГ 0407346 от 14.05.2004 | F48: 1.11 | H48: 5500 | I48: 1.5 | J48: =SUM(H48*I48)*AF48 -> 8250 | K48: 0.05 | L48: =SUM(J48*K48) -> 412.5 | M48: 0 | N48: =SUM(J48*M48) -> 0 | O48: 0 | P48: =SUM(J48*O48) -> 0 | R48: =SUM(J48*Q48) -> 0 | T48: =SUM(J48*S48) -> 0 | V48: =SUM(J48*U48) -> 0 | W48: =SUM(N48,P48,R48,T48,V48) -> 0 | Y48: =SUM(J48*X48) -> 0 | AA48: =SUM(J48*Z48) -> 0 | AC48: =SUM(J48*AB48) -> 0 | AD48: =SUM(J48,L48,W48,Y48,AA48,AC48) -> 8662.5 | AF48: 1 | AH48: 6063.75 | AI48: 0.8 | AJ48: 6930 | AK48: 21656.25
A49: 33 | B49: Нечта Людмила Михайловна | C49: Воспитатель (логопедическакя группа) | D49: Высшее | E49: Тобольский гос.пед.институт диплом АВС 0949201 | F49: 27.06 | G49: высшая Приказ ДО ЯНАО № 607 от 3.04.2015 | H49: 5500 | I49: 1.5 | J49: 8250 | K49: 0.2 | L49: 1650 | M49: 0 | N49: 0 | O49: 0.2 | P49: 1650 | R49: 0 | T49: 0 | V49: 0 | W49: 1650 | X49: 0.5 | Y49: 4125 | AA49: 0 | AC49: 0 | AD49: 15675 | AF49: 1 | AH49: 10972.5 | AI49: 0.8 | AJ49: 12540 | AK49: 39187.5
A50: 34 | B50: Нечта Людмила Михайловна | C50: Воспитатель | D50: Высшее | E50: Тобольский гос.пед.институт диплом АВС 0949201 | F50: 27.06 | G50: высшая Приказ ДО ЯНАО № 607 от 3.04.2015 | H50: 5500 | I50: 1.5 | J50: =SUM(H50*I50)*AF50 -> 4125 | K50: 0.2 | L50: =SUM(J50*K50) -> 825 | M50: 0 | N50: =SUM(J50*M50) -> 0 | O50: 0 | P50: =SUM(J50*O50) -> 0 | R50: =SUM(J50*Q50) -> 0 | T50: =SUM(J50*S50) -> 0 | V50: =SUM(J50*U50) -> 0 | W50: 0 | X50: 0.5 | Y50: 2062.5 | AA50: 0 | AC50: 0 | AD50: 7012.5 | AF50: 0.5 | AH50: 4908.75 | AI50: 0.8 | AJ50: 5610 | AK50: 17531.25
A51: 35 | B51: Ногаева Разияхан Мавсаровна | C51: Воспитатель | D51: Высшее | E51: Дагестанский гос. универститет, диплом ВСВ 0783852 | F51: 15.3 | G51: 1 категория протокол заседания Атесстационной комиссс ДО ЯНАО № 7 от26.02.2016 | H51: 5500 | I51: 1.5 | J51: 8250 | K51: 0.2 | L51: 1650 | M51: 0 | N51: 0 | O51: 0 | P51: 0 | R51: 0 | T51: 0 | V51: 0 | W51: 0 | X51: 0.3 | Y51: 2475 | AA51: 0 | AC51: 0 | AD51: 12375 | AF51: 1 | AH51: 8662.5 | AI51: 0.8 | AJ51: 9900 | AK51: 30937.5
A52: 36 | B52: Озова Тамара Адамеевна | C52: Воспитатель | D52: Высшее | E52: Ставропольский гос.университет, диплом БСВ 0469689 | F52: 23.4 | G52: 1 -я кат Пр № 554 от 31.03.2014 ДО | H52: 5500 | I52: 1.5 | J52: 12375 | K52: 0.2 | L52: 2475 | M52: 0 | N52: 0 | O52: 0 | P52: 0 | R52: 0 | T52: 0 | V52: 0 | W52: 0 | X52: 0.3 | Y52: 3712.5 | AA52: 0 | AC52: 0 | AD52: 18562.5 | AF52: 1.5 | AH52: 12993.75 | AI52: 0.8 | AJ52: 14850 | AK52: 46406.25
A53: 37 | B53: Пашаева Насиба Магомед кызы | C53: Воспитатель | D53: Высшее | E53: Азербайджанский гос.пед.университет диплом АВ-1 217306 | F53: 19.7 | G53: Соответствие Пр.№ 66 от 28.02.2014 | H53: 5500 | I53: 1.5 | J53: 12375 | K53: 0.2 | L53: 2475 | M53: 0 | N53: 0 | O53: 0 | P53: 0 | R53: 0 | T53: 0 | V53: 0 | W53: 0 | Y53: 0 | AA53: 0 | AC53: 0 | AD53: 14850 | AF53: 1.5 | AH53: 10395 | AI53: 0.8 | AJ53: 11880 | AK53: 37125
A54: 38 | B54: Саттарова Дильнора Рахметовна | C54: Воспитатель | D54: среднепрофессиональное | E54: новоуренгойский пед колледж | F54: 2.11 | H54: 5500 | I54: 1.3 | J54: 7150 | K54: 0.05 | L54: 357.5 | M54: 0 | N54: 0 | O54: 0 | P54: 0 | R54: 0 | T54: 0 | V54: 0 | W54: 0 | Y54: 0 | AA54: 0 | AC54: 0 | AD54: 7507.5 | AF54: 1 | AH54: 5255.25 | AI54: 0.8 | AJ54: 6006 | AK54: 18768.75
A55: 39 | B55: Санглибаева Марьяна Магарбиевна | C55: воспитатель | D55: высшее | E55: Ставропольский госуд университет Диплом ВСГ № 0886241 2009 г | F55: 8 | H55: 5500 | I55: 1.5 | J55: 8250 | K55: 0.1 | L55: =SUM(J55*K55) -> 825 | M55: 0 | N55: =SUM(J55*M55) -> 0 | O55: 0 | P55: 0 | R55: 0 | T55: 0 | V55: =SUM(J55*U55) -> 0 | W55: 0 | Y55: 0 | AA55: 0 | AB55: =SUM(Y55*AA55) -> 0 | AD55: 9075 | AF55: 1 | AH55: 6352.5 | AI55: 0.8 | AJ55: 7260 | AK55: 22687.5
A56: 40 | B56: вакансия | C56: воспитатель | H56: 5500 | I56: 1.5 | L56: =SUM(J56*K56) -> 0 | N56: 0 | P56: =SUM(J56*O56) -> 0 | R56: =SUM(J56*Q56) -> 0 | T56: =SUM(J56*S56) -> 0 | V56: 0 | W56: 0 | Y56: =SUM(J56*X56) -> 0 | AA56: =SUM(J56*Z56) -> 0 | AB56: 1.25 | AC56: =H56*I56*AB56*AF56 -> 18046.875 | AD56: 18046.875 | AF56: 1.75 | AH56: 12632.8125 | AI56: 0.8 | AJ56: 14437.5 | AK56: 45117.1875
B57: Итого | J57: =SUM(J29:J56) -> 215325 | L57: =SUM(L29:L56) -> 38857.5 | N57: =SUM(N29:N56) -> 0 | P57: =SUM(P29:P56) -> 9735 | Q57: 0 | R57: 0 | S57: 0 | T57: 0 | U57: 0 | V57: 0 | Y57: =SUM(Y29:Y56) -> 35640 | Z57: =SUM(Z29:Z56) -> 0 | AA57: =SUM(AA29:AA56) -> 0 | AC57: =SUM(AC29:AC56) -> 46406.25 | AD57: 345963.75 | AE57: 0 | AF57: 31.5 | AG57: 0 | AH57: 242174.625 | AJ57: =SUM(AJ29:AJ56) -> 288618 | AK57: =SUM(AK29:AK56) -> 876756.375
B58: 4 квалификационный уровень
A59: 43 | B59: Аппель Иван Генрихович | C59: Учитель-логопед | D59: Высшее | E59: Свердловский пед.институт Диплом КВ 854005 | F59: 42 | G59: 1 кат протокол заседания Аттестац комиссии ЯНАО от 27 11.2015 | H59: 5500 | I59: 1.5 | J59: =SUM(H59*I59)*AF59 -> 8250 | K59: 0.2 | L59: =SUM(J59*K59) -> 1650 | N59: =SUM(J59*M59) -> 0 | O59: 0.4 | P59: =SUM(J59*O59) -> 3300 | R59: =SUM(J59*Q59) -> 0 | T59: =SUM(J59*S59) -> 0 | V59: =SUM(J59*U59) -> 0 | W59: =SUM(N59,P59,R59,T59,V59) -> 3300 | X59: 0.3 | Y59: =SUM(J59*X59) -> 2475 | AA59: =SUM(J59*Z59) -> 0 | AC59: =SUM(J59*AB59) -> 0 | AD59: =SUM(J59,L59,W59,Y59,AA59,AC59) -> 15675 | AF59: 1 | AH59: =AD59*0.7 -> 10972.5 | AI59: 0.8 | AJ59: =AD59*AI59 -> 12540 | AK59: =AD59+AH59+AJ59 -> 39187.5
A60: 44 | B60: Аппель Иван Генрихович | C60: Учитель-логопед | D60: Высшее | E60: Свердловский пед.институт Диплом КВ 854005 | F60: 42 | G60: 1 кат протокол заседания Аттестац комиссии ЯНАО от 27 11.2015 | H60: 5500 | I60: 1.5 | J60: =SUM(H60*I60)*AF60 -> 4125 | K60: 0.2 | L60: =SUM(J60*K60) -> 825 | N60: =SUM(J60*M60) -> 0 | O60: 0.2 | P60: =SUM(J60*O60) -> 825 | R60: =SUM(J60*Q60) -> 0 | T60: =SUM(J60*S60) -> 0 | V60: =SUM(J60*U60) -> 0 | W60: =SUM(N60,P60,R60,T60,V60) -> 825 | X60: 0.3 | Y60: =SUM(J60*X60) -> 1237.5 | AA60: =SUM(J60*Z60) -> 0 | AC60: =SUM(J60*AB60) -> 0 | AD60: =SUM(J60,L60,W60,Y60,AA60,AC60) -> 7012.5 | AF60: 0.5 | AH60: =AD60*0.7 -> 4908.75 | AI60: 0.8 | AJ60: =AD60*AI60 -> 5610 | AK60: =AD60+AH60+AJ60 -> 17531.25
A61: 45 | B61: Ихсанова Наталья Анатольевна | C61: Учитель-логопед | D61: Высшее | E61: Московский открытый социальный унивеситет | F61: 8.05 | G61: 1 кат приказ № 964 от 28.05.2015 ЯЕАО | H61: 5500 | I61: 1.5 | J61: =SUM(H61*I61)*AF61 -> 8250 | K61: 0.1 | L61: =SUM(J61*K61) -> 825 | N61: =SUM(J61*M61) -> 0 | O61: 0.2 | P61: =SUM(J61*O61) -> 1650 | R61: =SUM(J61*Q61) -> 0 | T61: =SUM(J61*S61) -> 0 | V61: =SUM(J61*U61) -> 0 | W61: =SUM(N61,P61,R61,T61,V61) -> 1650 | X61: 0.3 | Y61: =SUM(J61*X61) -> 2475 | AA61: =SUM(J61*Z61) -> 0 | AC61: =SUM(J61*AB61) -> 0 | AD61: 13200 | AF61: 1 | AH61: =AD61*0.7 -> 9240 | AI61: 0.8 | AJ61: =AD61*AI61 -> 10560 | AK61: =AD61+AH61+AJ61 -> 33000
A62: 46 | B62: Ихсанова Наталья Анатольевна | C62: Учитель-логопед | D62: Высшее | E62: Московский открытый социальный унивеситет | F62: 8.05 | G62: 1 кат приказ № 964 от 28.05.2015 ЯНАО | H62: 5500 | I62: 1.5 | J62: =SUM(H62*I62)*AF62 -> 4125 | K62: 0.1 | L62: =SUM(J62*K62) -> 412.5 | N62: =SUM(J62*M62) -> 0 | O62: 0.2 | P62: =SUM(J62*O62) -> 825 | R62: =SUM(J62*Q62) -> 0 | T62: =SUM(J62*S62) -> 0 | V62: =SUM(J62*U62) -> 0 | W62: =SUM(N62,P62,R62,T62,V62) -> 825 | X62: 0.3 | Y62: =SUM(J62*X62) -> 1237.5 | AA62: =SUM(J62*Z62) -> 0 | AC62: =SUM(J62*AB62) -> 0 | AD62: 6600 | AF62: 0.5 | AH62: =AD62*0.7 -> 4620 | AI62: 0.8 | AJ62: =AD62*AI62 -> 5280 | AK62: =AD62+AH62+AJ62 -> 16500
A63: п | B63: Итого | J63: =SUM(J59:J62) -> 24750 | L63: =SUM(L59:L62) -> 3712.5 | N63: =SUM(N59:N62) -> 0 | P63: 6600 | R63: =SUM(R59:R62) -> 0 | T63: 0 | V63: 0 | Y63: =SUM(Y59:Y62) -> 7425 | Z63: 0 | AA63: 0 | AB63: 0 | AC63: 0 | AD63: =SUM(AD59:AD62) -> 42487.5 | AE63: 0 | AF63: =SUM(AF59:AF62) -> 3 | AG63: 0 | AH63: =SUM(AH59:AH62) -> 29741.25 | AJ63: =SUM(AJ59:AJ62) -> 33990 | AK63: =SUM(AK59:AK62) -> 106218.75
A65: Итого | J65: =J63+J57+J27 -> 292325 | K65: 0 | L65: 49981.25 | M65: 0 | N65: 0 | O65: 0 | P65: 16335 | Q65: 0 | R65: 0 | S65: 0 | T65: 0 | U65: 0 | V65: 0 | W65: 0 | X65: 0 | Y65: 48345 | Z65: 0 | AA65: 0 | AB65: 0 | AC65: 51562.5 | AD65: 458548.75 | AE65: 0 | AF65: 42 | AG65: 0 | AH65: 320984.125 | AI65: 0 | AJ65: 378686 | AK65: 1158218.875
B67: Заведующий МБДОУ "Детский сад "Руслан" | AA67: Б. А. Джемакулова
B69: Ведущий экономист | AA69: В. А. Тычкина
B71: Специалист по кадрам | AA71: Л.И.Утяганова

Sheet декретСлуж
Z1: УТВЕРЖДЕНО
Z2: Приказом МБДОУ "Детский сад " "Руслан"
Z3: № 296 от 09.12.2016
A6: ТАРИФИКАЦИОННЫЙ СПИСОК
A7: работников профессиональной квалификационной группы должностей служащих
A8: Муниципальное бюджетное дошкольное образовательное учреждение " Детский сад "Руслан"
A9: (наименование образовательного учреждения)
A10: по состоянию на 01.09.2017 года
B11: декрет
A12: № | B12: Фамилия, Имя, Отчество | C12: Должность | D12: Уровень образования | E12: Наименование образовательного учреждения, дата окончания, полученная специальность | F12: Стаж работы | G12: Квалификационная категория, наличие ученой степени, звания, наград | H12: Базовый оклад | I12: Коэффициент уровня образования | K12: Коэффициент стажа | M12: Коэффициент специфики работы | O12: Коэффициент квалификации | Q12: Коэффициент масштаба управления | S12: Коэффициент уровня управления | U12: Коэффициент вакансий | W12: Итого должностной оклад | X12: Количество занимаемых ставок | Y12: Итого должностной оклад с нагрузкой | Z12: Районный коэффициент | AA12: Процентная надбавка за работу в районах Крайнего севера | AC12: Всего должностных окладов в месяц
I13: К1 | J13: сумма | K13: К2 | L13: сумма | M13: К 3 - указать наименование основания повышения | N13: сумма | O13: К4 | P13: сумма | Q13: К5 | R13: сумма | S13: К6 | T13: сумма | U13: К8 | V13: сумма | AA13: коэф-т | AB13: сумма
B15: ПКГ работников учебно-вспомогательного персонала 2 уровня
B16: 1 квалификационный уровень
A17: 1 | B17: Аджикурманова Айбат Акмурзаевна | C17: Младший воспитатель | D17: высшее | F17: 2.9 | H17: 4094 | I17: 1.3 | J17: =SUM(H17*I17)*X17 -> 5322.2 | K17: 0.05 | L17: =SUM(J17*K17) -> 266.11 | M17: 0 | N17: =SUM(J17*M17) -> 0 | P17: =SUM(J17*O17) -> 0 | R17: =SUM(J17*Q17) -> 0 | T17: =SUM(J17*S17) -> 0 | V17: =SUM(J17*U17) -> 0 | W17: =SUM(J17,L17,N17,P17,R17,T17,V17) -> 5588.31 | X17: 1 | Y17: =W17 -> 5588.31 | Z17: =SUM(Y17*0.7) -> 3911.817 | AA17: 0.8 | AB17: =SUM(Y17*AA17) -> 4470.648 | AC17: =Y17+Z17+AB17 -> 13970.775
A18: 2 | B18: Джаватханова Диана Надирхановна | C18: Младший воспитатель | D18: средне | F18: 5 | H18: 4094 | I18: 1.3 | J18: =SUM(H18*I18)*X18 -> 5322.2 | K18: 0.1 | L18: =SUM(J18*K18) -> 532.22 | M18: 0 | N18: =SUM(J18*M18) -> 0 | P18: =SUM(J18*O18) -> 0 | R18: =SUM(J18*Q18) -> 0 | T18: =SUM(J18*S18) -> 0 | V18: =SUM(J18*U18) -> 0 | W18: =SUM(J18,L18,N18,P18,R18,T18,V18) -> 5854.42 | X18: 1 | Y18: =W18 -> 5854.42 | Z18: =SUM(Y18*0.7) -> 4098.094 | AA18: 0.8 | AB18: =SUM(Y18*AA18) -> 4683.536 | AC18: =Y18+Z18+AB18 -> 14636.05
A19: 3 | B19: Бекболатова Фарида Тагировна | C19: младший воспитатель | D19: Среднее-профессиональное | E19: Хасаюртский пед колледж диплом ОБСГА № 0000548 | F19: 2.3 | H19: 4094 | I19: 1.3 | J19: =SUM(H19*I19)*X19 -> 5322.2 | K19: 0.05 | L19: =SUM(J19*K19) -> 266.11 | M19: 0 | N19: =SUM(J19*M19) -> 0 | P19: =SUM(J19*O19) -> 0 | R19: =SUM(J19*Q19) -> 0 | T19: =SUM(J19*S19) -> 0 | V19: =SUM(J19*U19) -> 0 | W19: =SUM(J19,L19,N19,P19,R19,T19,V19) -> 5588.31 | X19: 1 | Y19: =W19 -> 5588.31 | Z19: =SUM(Y19*0.7) -> 3911.817 | AA19: 0.8 | AB19: =SUM(Y19*AA19) -> 4470.648 | AC19: =Y19+Z19+AB19 -> 13970.775
A20: 4 | B20: Заиц Мария Григорьевна | C20: Младший воспитатель | D20: среднепрофессиональное | E20: проффессиональное училище МССР Диплом Б 268525 от 27.06.88 | F20: 2.1 | H20: 4094 | I20: 1.3 | J20: =SUM(H20*I20)*X20 -> 5322.2 | K20: 0.05 | L20: =SUM(J20*K20) -> 266.11 | M20: 0 | N20: =SUM(J20*M20) -> 0 | P20: =SUM(J20*O20) -> 0 | R20: =SUM(J20*Q20) -> 0 | T20: =SUM(J20*S20) -> 0 | V20: =SUM(J20*U20) -> 0 | W20: =SUM(J20,L20,N20,P20,R20,T20,V20) -> 5588.31 | X20: 1 | Y20: =W20 -> 5588.31 | Z20: =SUM(Y20*0.7) -> 3911.817 | AA20: 0.8 | AB20: =SUM(Y20*AA20) -> 4470.648 | AC20: =Y20+Z20+AB20 -> 13970.775
A21: 5 | B21: Мухтарова Зарема Нуровна | C21: Младший воспитатель | D21: среднепрофессиональное | E21: Дагестанский пед колледж Диплом АК 1225555 от 17.06.2005 | F21: 4 | H21: 4094 | I21: 1.3 | J21: 5322.2 | K21: 0.1 | L21: =SUM(J21*K21) -> 532.22 | M21: 0 | N21: =SUM(J21*M21) -> 0 | P21: =SUM(J21*O21) -> 0 | R21: =SUM(J21*Q21) -> 0 | T21: =SUM(J21*S21) -> 0 | V21: =SUM(J21*U21) -> 0 | W21: =SUM(J21,L21,N21,P21,R21,T21,V21) -> 5854.42 | X21: 1 | Y21: =W21 -> 5854.42 | Z21: 4098.094 | AA21: 0.8 | AB21: 4683.536 | AC21: =Y21+Z21+AB21 -> 14636.05
A22: 6 | B22: Тулпарханова Лариса Жумадиновна | C22: Младший воспитатель | D22: сренее | F22: 3 | H22: 4094 | I22: 1.1 | J22: =SUM(H22*I22)*X22 -> 4503.4 | K22: 0.1 | L22: =SUM(J22*K22) -> 450.34 | M22: 0 | N22: =SUM(J22*M22) -> 0 | P22: =SUM(J22*O22) -> 0 | R22: =SUM(J22*Q22) -> 0 | T22: =SUM(J22*S22) -> 0 | V22: =SUM(J22*U22) -> 0 | W22: =SUM(J22,L22,N22,P22,R22,T22,V22) -> 4953.74 | X22: 1 | Y22: =W22 -> 4953.74 | Z22: =SUM(Y22*0.7) -> 3467.618 | AA22: 0.8 | AB22: =SUM(Y22*AA22) -> 3962.992 | AC22: =Y22+Z22+AB22 -> 12384.35
A23: 7 | B23: Кукоева Светлана Муратовна | C23: 2 | D23: Среднее-профессиональное | E23: Карачаево-Черкесский проф колледж Диплом СБ 1711177 от 22.06.03 | F23: 4 | H23: 4094 | I23: 1.3 | J23: 5322.2 | K23: 0.1 | L23: =SUM(J23*K23) -> 532.22 | M23: 0 | N23: =SUM(J23*M23) -> 0 | P23: =SUM(J23*O23) -> 0 | R23: =SUM(J23*Q23) -> 0 | T23: =SUM(J23*S23) -> 0 | V23: =SUM(J23*U23) -> 0 | W23: =SUM(J23,L23,N23,P23,R23,T23,V23) -> 5854.42 | X23: 1 | Y23: =W23 -> 5854.42 | Z23: =SUM(Y23*0.7) -> 4098.094 | AA23: 0.8 | AB23: =SUM(Y23*AA23) -> 4683.536 | AC23: =Y23+Z23+AB23 -> 14636.05
A24: 8 | B24: Москвитина Марина Васильевна | C24: вахтер | H24: 4094 | I24: 1 | J24: 4094 | K24: =SUM(G24*J24) -> 0 | L24: =SUM(G24,I24,K24) -> 1 | M24: 1 | N24: =L24 -> 1 | P24: 0 | R24: =N24+O24+Q24 -> 1 | T24: 0 | V24: 0 | W24: 4094 | X24: 1 | Y24: 4094 | Z24: =SUM(Y24*0.7) -> 2865.8 | AA24: 0.8 | AB24: =SUM(Y24*AA24) -> 3275.2 | AC24: =Y24+Z24+AB24 -> 10235
B25: ИТОГО | J25: =SUM(J20:J24) -> 24564 | L25: =SUM(L20:L24) -> 1781.89 | M25: 1 | N25: 1 | O25: 0 | P25: 0 | Q25: 0 | R25: 1 | S25: 0 | T25: 0 | U25: 0 | V25: 0 | W25: 26344.89 | X25: 5 | Y25: 26344.89 | Z25: 18441.423 | AB25: =SUM(AB20:AB24) -> 21075.912 | AC25: =SUM(AC20:AC24) -> 65862.225
B26: ПКГ работников общеотраслевых должностей служащих 1 уровня | J26: =SUM(J25) -> 24564 | L26: =SUM(L25) -> 1781.89 | M26: 1 | N26: 1 | O26: 0 | P26: 0 | Q26: 0 | R26: 1 | S26: 0 | T26: 0 | U26: 0 | V26: 0 | W26: 26344.89 | X26: 5 | Y26: 26344.89 | Z26: 18441.423 | AB26: 21075.912 | AC26: 65862.225
B27: 1 квалификационный уровень
A28: 9 | B28: Эгиева Пятимат Ахмедовна | C28: Делопроизводитель | D28: Высшее | E28: Российский государственный социальный университет Диплом ВСГ 2808134 2008 г | F28: 2 | H28: 4094 | I28: 1.3 | J28: =SUM(H28*I28)*X28 -> 5322.2 | K28: 0.05 | L28: =SUM(J28*K28) -> 266.11 | M28: 0 | N28: =SUM(J28*M28) -> 0 | P28: =SUM(J28*O28) -> 0 | R28: =SUM(J28*Q28) -> 0 | T28: =SUM(J28*S28) -> 0 | V28: =H28*I28*U28*X28 -> 0 | W28: =SUM(J28,L28,N28,P28,R28,T28,V28) -> 5588.31 | X28: 1 | Y28: =W28 -> 5588.31 | Z28: =SUM(Y28*0.7) -> 3911.817 | AA28: 0.8 | AB28: =SUM(Y28*AA28) -> 4470.648 | AC28: =Y28+Z28+AB28 -> 13970.775
A29: 10 | B29: Курмангулова Регина Магомедовна | C29: Делопроизводитель | D29: Высшее | E29: КЧР технологическая академияДиплом ВСГ 1051873 2009 | F29: 2.5 | H29: 4094 | I29: 1.3 | J29: =SUM(H29*I29)*X29 -> 5322.2 | K29: 0.05 | L29: =SUM(J29*K29) -> 266.11 | M29: 0 | N29: =SUM(J29*M29) -> 0 | P29: =SUM(J29*O29) -> 0 | R29: =SUM(J29*Q29) -> 0 | T29: =SUM(J29*S29) -> 0 | V29: =H29*I29*U29*X29 -> 0 | W29: =SUM(J29,L29,N29,P29,R29,T29,V29) -> 5588.31 | X29: 1 | Y29: =W29 -> 5588.31 | Z29: =SUM(Y29*0.7) -> 3911.817 | AA29: 0.8 | AB29: =SUM(Y29*AA29) -> 4470.648 | AC29: =Y29+Z29+AB29 -> 13970.775
B30: Итого | J30: =SUM(J28:J29) -> 10644.4 | K30: 0.1 | L30: 532.22 | M30: 0 | N30: 0 | O30: 0 | P30: 0 | Q30: 0 | R30: 0 | S30: 0 | T30: 0 | U30: 0 | V30: 0 | W30: 11176.62 | X30: 2 | Y30: 11176.62 | Z30: 7823.634 | AB30: =SUM(AB28:AB29) -> 8941.296 | AC30: =SUM(AC28:AC29) -> 27941.55
B31: 2 квалификационный уровень
B32: Итого по профессиональной квалификационной группе "СЛУЖАЩИЕ" | J32: =J26+J30 -> 35208.4 | K32: 0.1 | L32: 2314.11 | M32: 1 | N32: 1 | O32: 0 | P32: 0 | Q32: 0 | R32: 1 | S32: 0 | T32: 0 | U32: 0 | V32: 0 | W32: 37521.51 | X32: 7 | Y32: 37521.51 | Z32: 26265.057 | AA32: 0 | AB32: 30017.208 | AC32: 93803.775
B34: Зам зав по АХР МБДОУ "Детский сад "Руслан" | U34: Н. М. Рубаник
B36: Ведущий экономист | U36: В. А. Тычкина
B39: Специалист по кадрам | U39: К.А. Булгарова
B44: Исп. | C44: К. А. Булгарова
B45: тел. | C45: 23-13-38

Sheet служащие
Z1: УТВЕРЖДЕНО
Z2: Приказом МБДОУ "Детский сад " "Руслан"
Z3: № от г
A6: ТАРИФИКАЦИОННЫЙ СПИСОК
A7: работников профессиональной квалификационной группы должностей служащих
A8: Муниципальное бюджетное дошкольное образовательное учреждение " Детский сад "Руслан"
A9: (наименование образовательного учреждения)
A10: по состоянию на 01.09.2017
A12: № | B12: Фамилия, Имя, Отчество | C12: Должность | D12: Уровень образования | E12: Наименование образовательного учреждения, дата окончания, полученная специальность | F12: Стаж работы | G12: Квалификационная категория, наличие ученой степени, звания, наград | H12: Базовый оклад | I12: Коэффициент уровня образования | K12: Коэффициент стажа | M12: Коэффициент специфики работы | O12: Коэффициент квалификации | Q12: Коэффициент масштаба управления | S12: Коэффициент уровня управления | U12: Коэффициент вакансий | W12: Итого должностной оклад | X12: Количество занимаемых ставок | Y12: Итого должностной оклад с нагрузкой | Z12: Районный коэффициент | AA12: Процентная надбавка за работу в районах Крайнего севера | AC12: Всего должностных окладов в месяц
I13: К1 | J13: сумма | K13: К2 | L13: сумма | M13: К 3 - указать наименование основания повышения | N13: сумма | O13: К4 | P13: сумма | Q13: К5 | R13: сумма | S13: К6 | T13: сумма | U13: К8 | V13: сумма | AA13: коэф-т | AB13: сумма
B15: ПКГ работников учебно-вспомогательного персонала 2 уровня
B16: 1 квалификационный уровень
A17: 1 | B17: Аллахвердиева Гюлара Сабир кызы | C17: Младший воспитатель | D17: Среднее (полное) общее | F17: 8.1 | H17: 4094 | I17: 1.1 | J17: =SUM(H17*I17)*X17 -> 6755.1 | K17: 0.1 | L17: =SUM(J17*K17) -> 675.51 | M17: 0 | N17: =SUM(J17*M17) -> 0 | P17: =SUM(J17*O17) -> 0 | R17: =SUM(J17*Q17) -> 0 | T17: =SUM(J17*S17) -> 0 | V17: =SUM(J17*U17) -> 0 | W17: =SUM(J17,L17,N17,P17,R17,T17,V17) -> 7430.61 | X17: 1.5 | Y17: =W17 -> 7430.61 | Z17: =SUM(Y17*0.7) -> 5201.427 | AA17: 0.8 | AB17: =SUM(Y17*AA17) -> 5944.488 | AC17: =Y17+Z17+AB17 -> 18576.525
A18: 2 | B18: Арсланбекова Мариям Имуровна | C18: Младший воспитатель | D18: среднее | F18: 1.9 | H18: 4094 | I18: 1.1 | J18: 6755.1 | K18: 0.05 | L18: 337.755 | M18: 0 | N18: 0 | P18: 0 | R18: 0 | T18: 0 | V18: 0 | W18: =SUM(J18,L18,N18,P18,R18,T18,V18) -> 7092.855 | X18: 1.5 | Y18: =W18 -> 7092.855 | Z18: 4964.9985 | AA18: 0.8 | AB18: 5674.284 | AC18: =Y18+Z18+AB18 -> 17732.1375
A19: 3 | B19: вакансия | C19: младший воспитатель | H19: 4094 | I19: 1.3 | L19: =SUM(J19*K19) -> 0 | M19: 0 | N19: =SUM(J19*M19) -> 0 | P19: =SUM(J19*O19) -> 0 | R19: =SUM(J19*Q19) -> 0 | T19: =SUM(J19*S19) -> 0 | U19: 1.25 | V19: =H19*I19*U19 -> 6652.75 | W19: =SUM(J19,L19,N19,P19,R19,T19,V19) -> 6652.75 | X19: 1.5 | Y19: =W19 -> 6652.75 | Z19: 4656.925 | AA19: 0.8 | AB19: 5322.2 | AC19: =Y19+Z19+AB19 -> 16631.875
A20: 4 | B20: вакансия | C20: младший воспитатель | H20: 4094 | I20: 1.3 | L20: =SUM(J20*K20) -> 0 | M20: 0 | N20: =SUM(J20*M20) -> 0 | P20: =SUM(J20*O20) -> 0 | R20: =SUM(J20*Q20) -> 0 | T20: =SUM(J20*S20) -> 0 | U20: 1.25 | V20: =H20*I20*U20 -> 6652.75 | W20: 6652.75 | X20: 2 | Y20: =W20 -> 6652.75 | Z20: 4656.925 | AA20: 0.8 | AB20: =SUM(Y20*AA20) -> 5322.2 | AC20: =Y20+Z20+AB20 -> 16631.875
A21: 5 | B21: Иманмурзаева Лариса Исмамгереевна | C21: младший воспитатель | D21: среднее | F21: 5.1 | H21: 4094 | I21: 1.1 | J21: 6755.1 | K21: 0.1 | L21: =SUM(J21*K21) -> 675.51 | M21: 0 | N21: =SUM(J21*M21) -> 0 | P21: =SUM(J21*O21) -> 0 | R21: =SUM(J21*Q21) -> 0 | T21: =SUM(J21*S21) -> 0 | V21: =SUM(J21*U21) -> 0 | W21: =SUM(J21,L21,N21,P21,R21,T21,V21) -> 7430.61 | X21: 1.5 | Y21: =W21 -> 7430.61 | Z21: 5201.427 | AA21: 0.8 | AB21: 5944.488 | AC21: =Y21+Z21+AB21 -> 18576.525
A22: 6 | B22: Гулиева Сабира Гулу кызы | C22: Младший воспитатель | D22: Среднее (полное) общее | F22: 12.5 | H22: 4094 | I22: 1.1 | J22: =SUM(H22*I22)*X22 -> 4503.4 | K22: 0.2 | L22: 900.68 | M22: 0 | N22: 0 | P22: 0 | R22: 0 | T22: 0 | V22: 0 | W22: 5404.08 | X22: 1 | Y22: 5404.08 | Z22: 3782.856 | AA22: 0.8 | AB22: =SUM(Y22*AA22) -> 4323.264 | AC22: 13510.2
A23: 7 | B23: Горват Наталья Петровна | C23: Младший воспитатель | D23: средне | F23: 16.9 | H23: 4094 | I23: 1.1 | J23: 6755.1 | K23: 0.2 | L23: =SUM(J23*K23) -> 1351.02 | M23: 0 | N23: =SUM(J23*M23) -> 0 | P23: =SUM(J23*O23) -> 0 | R23: =SUM(J23*Q23) -> 0 | T23: =SUM(J23*S23) -> 0 | V23: =SUM(J23*U23) -> 0 | W23: =SUM(J23,L23,N23,P23,R23,T23,V23) -> 8106.12 | X23: 1.5 | Y23: =W23 -> 8106.12 | Z23: 5674.284 | AA23: 0.8 | AB23: =SUM(Y23*AA23) -> 6484.896 | AC23: =Y23+Z23+AB23 -> 20265.3
A24: 8 | B24: Гамидова Кенюль Абдулла кызы | C24: Младший воспитатель | D24: Среднее (полное) общее | F24: 7.6 | H24: 4094 | I24: 1.1 | J24: 4503.4 | K24: 0.1 | L24: 450.34 | M24: 0.12 | N24: 540.408 | P24: 0 | R24: 0 | T24: 0 | V24: 0 | W24: 5494.148 | X24: 1 | Y24: 5494.148 | Z24: 3845.9036 | AA24: 0.8 | AB24: 4395.3184 | AC24: 13735.37
A25: 9 | B25: Кульмалиева Лейла Маки гызы | C25: Младший воспитатель | D25: Среднее (полное) общее | F25: 3.1 | H25: 4094 | I25: 1.1 | J25: 6755.1 | K25: 0.1 | L25: 675.51 | M25: 0.12 | N25: 810.612 | P25: 0 | R25: 0 | T25: 0 | V25: 0 | W25: 8241.222 | X25: 1.5 | Y25: 8241.222 | Z25: 5768.8554 | AA25: 0.8 | AB25: =SUM(Y25*AA25) -> 6592.9776 | AC25: 20603.055
A26: 10 | B26: Курманалиева Аминат Хайбуллаевна | C26: младший воспитатель | D26: среднее | F26: 3.9 | H26: 4094 | I26: 1.1 | J26: 6755.1 | K26: 1.1 | L26: 7430.61 | M26: 0 | N26: 0 | P26: 0 | R26: 0 | T26: 0 | V26: 0 | W26: 14185.71 | X26: 1.5 | Y26: 14185.71 | Z26: 9929.997 | AA26: 0.8 | AB26: =SUM(Y26*AA26) -> 11348.568 | AC26: 35464.275
A27: 11 | B27: Мамедова Балыш Али кызы | C27: Младший воспитатель | D27: Среднее | F27: 15.11 | H27: 4094 | I27: 1.1 | J27: 6755.1 | K27: 0.2 | L27: 1351.02 | M27: 0 | N27: 0 | P27: 0 | R27: 0 | T27: 0 | V27: 0 | W27: 8106.12 | X27: 1.5 | Y27: 8106.12 | Z27: 5674.284 | AA27: 0.8 | AB27: 6484.896 | AC27: 20265.3
A28: 12 | B28: Мурзаева Шавла Абдулнасуровна | C28: Младший воспитатель | D28: Среднее (полное) общее | F28: 8.1 | H28: 4094 | I28: 1.1 | J28: 6755.1 | K28: 0.1 | L28: =SUM(J28*K28) -> 675.51 | M28: 0 | N28: 0 | P28: =SUM(J28*O28) -> 0 | R28: =SUM(J28*Q28) -> 0 | T28: =SUM(J28*S28) -> 0 | V28: 0 | W28: =SUM(J28,L28,N28,P28,R28,T28,V28) -> 7430.61 | X28: 1.5 | Y28: =W28 -> 7430.61 | Z28: 5201.427 | AA28: 0.8 | AB28: =SUM(Y28*AA28) -> 5944.488 | AC28: =Y28+Z28+AB28 -> 18576.525
A29: 13 | B29: Отарбиева Тоита Вахирсолтановна | C29: Младший воспитатель | D29: Среднее | F29: 4.1 | H29: 4094 | I29: 1.1 | J29: =SUM(H29*I29)*X29 -> 6755.1 | K29: 0.1 | L29: =SUM(J29*K29) -> 675.51 | M29: 0.12 | N29: =SUM(J29*M29) -> 810.612 | P29: =SUM(J29*O29) -> 0 | R29: =SUM(J29*Q29) -> 0 | T29: =SUM(J29*S29) -> 0 | V29: =SUM(J29*U29) -> 0 | W29: =SUM(J29,L29,N29,P29,R29,T29,V29) -> 8241.222 | X29: 1.5 | Y29: =W29 -> 8241.222 | Z29: =SUM(Y29*0.7) -> 5768.8554 | AA29: 0.8 | AB29: =SUM(Y29*AA29) -> 6592.9776 | AC29: =Y29+Z29+AB29 -> 20603.055
A30: 14 | B30: Пашаева Гюльбиниз Музаффар кызы | C30: Младший воспитатель | D30: Среднее (полное) общее | F30: 11.5 | H30: 4094 | I30: 1.1 | J30: 6755.1 | K30: 0.2 | L30: 1351.02 | M30: 0 | N30: 0 | P30: 0 | R30: 0 | T30: 0 | V30: 0 | W30: 8106.12 | X30: 1.5 | Y30: 8106.12 | Z30: 5674.284 | AA30: 0.8 | AB30: 6484.896 | AC30: 20265.3
A31: 15 | B31: Элимханова Зулихан Салмановна | C31: Младший воспитатель | D31: Среднее (полное) общее | F31: 6 | H31: 4094 | I31: 1.1 | J31: =SUM(H31*I31)*X31 -> 4503.4 | K31: 0.1 | L31: =SUM(J31*K31) -> 450.34 | M31: 0 | N31: =SUM(J31*M31) -> 0 | P31: =SUM(J31*O31) -> 0 | R31: =SUM(J31*Q31) -> 0 | T31: =SUM(J31*S31) -> 0 | V31: =SUM(J31*U31) -> 0 | W31: =SUM(J31,L31,N31,P31,R31,T31,V31) -> 4953.74 | X31: 1 | Y31: =W31 -> 4953.74 | Z31: =SUM(Y31*0.7) -> 3467.618 | AA31: 0.8 | AB31: =SUM(Y31*AA31) -> 3962.992 | AC31: =Y31+Z31+AB31 -> 12384.35
A32: 16 | B32: Шайдаева Марина Мусиновна | C32: Младший воспитатель | D32: средне специальное | E32: Дагестанский механический техникум Диплом СБ № 0904476 | F32: 5.8 | H32: 4094 | I32: 1.3 | J32: =SUM(H32*I32)*X32 -> 5322.2 | K32: 0.1 | L32: =SUM(J32*K32) -> 532.22 | M32: 0 | N32: =SUM(J32*M32) -> 0 | P32: =SUM(J32*O32) -> 0 | R32: =SUM(J32*Q32) -> 0 | T32: =SUM(J32*S32) -> 0 | V32: =SUM(J32*U32) -> 0 | W32: =SUM(J32,L32,N32,P32,R32,T32,V32) -> 5854.42 | X32: 1 | Y32: =W32 -> 5854.42 | Z32: 4098.094 | AA32: 0.8 | AB32: =SUM(Y32*AA32) -> 4683.536 | AC32: =Y32+Z32+AB32 -> 14636.05
A33: 17 | B33: Халидова Эмина Артуровна | C33: Младший воспитатель | D33: средне | F33: 0 | H33: 4094 | I33: 1.1 | J33: =SUM(H33*I33)*X33 -> 4503.4 | K33: 0.05 | L33: =SUM(J33*K33) -> 225.17 | M33: 0 | N33: =SUM(J33*M33) -> 0 | P33: =SUM(J33*O33) -> 0 | R33: =SUM(J33*Q33) -> 0 | T33: =SUM(J33*S33) -> 0 | V33: =SUM(J33*U33) -> 0 | W33: =SUM(J33,L33,N33,P33,R33,T33,V33) -> 4728.57 | X33: 1 | Y33: =W33 -> 4728.57 | Z33: =SUM(Y33*0.7) -> 3309.999 | AA33: 0.8 | AB33: =SUM(Y33*AA33) -> 3782.856 | AC33: =Y33+Z33+AB33 -> 11821.425
B34: Итого | J34: =SUM(J17:J33) -> 90886.8 | L34: =SUM(L17:L33) -> 17757.725 | N34: =SUM(N17:N33) -> 2161.632 | P34: =SUM(P17:P33) -> 0 | R34: =SUM(R17:R33) -> 0 | S34: =SUM(S17:S33) -> 0 | T34: =SUM(T17:T33) -> 0 | V34: =SUM(V17:V33) -> 13305.5 | W34: =SUM(W17:W33) -> 124111.657 | X34: =SUM(X17:X33) -> 23.5 | Y34: =SUM(Y17:Y33) -> 124111.657 | Z34: =SUM(Z17:Z33) -> 86878.1599 | AB34: =SUM(AB17:AB33) -> 99289.3256 | AC34: =SUM(AC17:AC33) -> 310279.1425
B35: 2 квалификационный уровень
J36: =SUM(H36*I36) -> 0 | L36: =SUM(J36*K36) -> 0 | N36: =SUM(J36*M36) -> 0 | P36: =SUM(J36*O36) -> 0 | R36: =SUM(J36*Q36) -> 0 | T36: =SUM(J36*S36) -> 0 | V36: =SUM(J36*U36) -> 0 | W36: =SUM(J36,L36,N36,P36,R36,T36,V36) -> 0 | Y36: =SUM(W36*X36) -> 0 | Z36: =SUM(Y36*0.7) -> 0 | AA36: 0.8 | AB36: =SUM(Y36*AA36) -> 0 | AC36: =ROUND(Y36+Z36+AB36,2) -> 0
J37: =SUM(H37*I37) -> 0 | L37: =SUM(J37*K37) -> 0 | N37: =SUM(J37*M37) -> 0 | P37: =SUM(J37*O37) -> 0 | R37: =SUM(J37*Q37) -> 0 | T37: =SUM(J37*S37) -> 0 | V37: =SUM(J37*U37) -> 0 | W37: =SUM(J37,L37,N37,P37,R37,T37,V37) -> 0 | Y37: =SUM(W37*X37) -> 0 | Z37: =SUM(Y37*0.7) -> 0 | AA37: 0.8 | AB37: =SUM(Y37*AA37) -> 0 | AC37: =ROUND(Y37+Z37+AB37,2) -> 0
B38: Итого | J38: =SUM(J36:J37) -> 0 | L38: =SUM(L36:L37) -> 0 | N38: =SUM(N36:N37) -> 0 | P38: =SUM(P36:P37) -> 0 | R38: =SUM(R36:R37) -> 0 | T38: =SUM(T36:T37) -> 0 | V38: =SUM(V36:V37) -> 0 | W38: =SUM(W36:W37) -> 0 | X38: =SUM(X36:X37) -> 0 | Y38: =SUM(Y36:Y37) -> 0 | Z38: =SUM(Z36:Z37) -> 0 | AB38: =SUM(AB36:AB37) -> 0 | AC38: =SUM(AC36:AC37) -> 0
B40: ПКГ работников учебно-вспомогательного персонала 1 уровня
P42: =SUM(J42*O42) -> 0 | R42: =SUM(J42*Q42) -> 0 | T42: =SUM(J42*S42) -> 0 | V42: =SUM(J42*U42) -> 0 | W42: =SUM(J42,L42,N42,P42,R42,T42,V42) -> 0 | Y42: =SUM(W42*X42) -> 0 | Z42: =SUM(Y42*0.7) -> 0 | AA42: 0.8 | AB42: =SUM(Y42*AA42) -> 0 | AC42: =ROUND(Y42+Z42+AB42,2) -> 0
B43: Итого | J43: =SUM(J42:J42) -> 0 | L43: =SUM(L42:L42) -> 0 | N43: =SUM(N42:N42) -> 0 | P43: =SUM(P42:P42) -> 0 | R43: =SUM(R42:R42) -> 0 | T43: =SUM(T42:T42) -> 0 | V43: =SUM(V42:V42) -> 0 | W43: =SUM(W42:W42) -> 0 | X43: =SUM(X42:X42) -> 0 | Y43: =SUM(Y42:Y42) -> 0 | Z43: =SUM(Z42:Z42) -> 0 | AB43: =SUM(AB42:AB42) -> 0 | AC43: =SUM(AC42:AC42) -> 0
B45: ПКГ работников общеотраслевых должностей служащих 1 уровня
B46: 1 квалификационный уровень
A48: 18 | B48: Утяганова Ляля Ильгамовна | C48: Специалист по охране труда | D48: Высшее | E48: Башкирский государственный университет диплом № 285 2015 г | F48: 1.5 | H48: 4094 | I48: 1.4 | J48: =SUM(H48*I48)*X48 -> 5731.6 | K48: 0.05 | L48: =SUM(J48*K48) -> 286.58 | N48: =SUM(J48*M48) -> 0 | P48: =SUM(J48*O48) -> 0 | R48: =SUM(J48*Q48) -> 0 | T48: =SUM(J48*S48) -> 0 | V48: =SUM(J48*U48) -> 0 | W48: =SUM(J48,L48,N48,P48,R48,T48,V48) -> 6018.18 | X48: 1 | Y48: =W48 -> 6018.18 | Z48: =SUM(Y48*0.7) -> 4212.726 | AA48: 0.8 | AB48: =SUM(Y48*AA48) -> 4814.544 | AC48: =Y48+Z48+AB48 -> 15045.45
A49: 19 | B49: Утяганова Ляля Ильгамовна | C49: Делопроизводитель (внутр. совместит.) | D49: Высшее | E49: Башкирский государственный университет диплом № 285 2015 г | F49: 0.1 | H49: 4094 | I49: 1.3 | J49: =SUM(H49*I49)*X49 -> 2661.1 | K49: 0.05 | L49: =SUM(J49*K49) -> 133.055 | N49: =SUM(J49*M49) -> 0 | P49: =SUM(J49*O49) -> 0 | R49: =SUM(J49*Q49) -> 0 | T49: =SUM(J49*S49) -> 0 | V49: =SUM(J49*U49) -> 0 | W49: =SUM(J49,L49,N49,P49,R49,T49,V49) -> 2794.155 | X49: 0.5 | Y49: =W49 -> 2794.155 | Z49: =SUM(Y49*0.7) -> 1955.9085 | AA49: 0.8 | AB49: =SUM(Y49*AA49) -> 2235.324 | AC49: =Y49+Z49+AB49 -> 6985.3875
A50: 20 | B50: Булгарова Крымхан Амирбиевна | C50: Делопроизводитель (внешний совместитель) | D50: Высшее | E50: г Москва "Российский новый университет" диплом ВСВ 1166320 от 26.01.2006 | H50: 4094 | I50: 1.4 | J50: =SUM(H50*I50)*X50 -> 2865.8 | K50: 0.05 | L50: =SUM(J50*K50) -> 143.29 | M50: 0 | N50: =SUM(J50*M50) -> 0 | P50: =SUM(J50*O50) -> 0 | R50: =SUM(J50*Q50) -> 0 | T50: =SUM(J50*S50) -> 0 | V50: =H50*I50*U50*X50 -> 0 | W50: =SUM(J50,L50,N50,P50,R50,T50,V50) -> 3009.09 | X50: 0.5 | Y50: =W50 -> 3009.09 | Z50: =SUM(Y50*0.7) -> 2106.363 | AA50: 0.8 | AB50: =SUM(Y50*AA50) -> 2407.272 | AC50: =Y50+Z50+AB50 -> 7522.725
B51: Итого | J51: =SUM(J48:J50) -> 11258.5 | L51: =SUM(L48:L50) -> 562.925 | N51: =SUM(N48:N50) -> 0 | P51: =SUM(P48:P50) -> 0 | Q51: =SUM(Q48:Q50) -> 0 | R51: =SUM(R48:R50) -> 0 | S51: =SUM(S48:S50) -> 0 | T51: =SUM(T48:T50) -> 0 | V51: =SUM(V48:V50) -> 0 | W51: =SUM(W48:W50) -> 11821.425 | X51: =SUM(X48:X50) -> 2 | Y51: =SUM(Y48:Y50) -> 11821.425 | Z51: =SUM(Z48:Z50) -> 8274.9975 | AB51: =SUM(AB48:AB50) -> 9457.14 | AC51: =SUM(AC48:AC50) -> 29553.5625
B52: 2 квалификационный уровень
J53: =SUM(H53*I53) -> 0 | L53: =SUM(J53*K53) -> 0 | N53: =SUM(J53*M53) -> 0 | P53: =SUM(J53*O53) -> 0 | R53: =SUM(J53*Q53) -> 0 | T53: =SUM(J53*S53) -> 0 | V53: =SUM(J53*U53) -> 0 | W53: =SUM(J53,L53,N53,P53,R53,T53,V53) -> 0 | Y53: =SUM(W53*X53) -> 0 | Z53: =SUM(Y53*0.7) -> 0 | AA53: 0.8 | AB53: =SUM(Y53*AA53) -> 0 | AC53: =ROUND(Y53+Z53+AB53,2) -> 0
B54: Итого | J54: =SUM(J53:J53) -> 0 | L54: =SUM(L53:L53) -> 0 | N54: =SUM(N53:N53) -> 0 | P54: =SUM(P53:P53) -> 0 | R54: =SUM(R53:R53) -> 0 | T54: =SUM(T53:T53) -> 0 | V54: =SUM(V53:V53) -> 0 | W54: =SUM(W53:W53) -> 0 | X54: =SUM(X53:X53) -> 0 | Y54: =SUM(Y53:Y53) -> 0 | Z54: =SUM(Z53:Z53) -> 0 | AB54: =SUM(AB53:AB53) -> 0 | AC54: =SUM(AC53:AC53) -> 0
B56: ПКГ работников общеотраслевых должностей служащих 2 уровня
B57: 1 квалификационный уровень
J58: =SUM(H58*I58) -> 0 | L58: =SUM(J58*K58) -> 0 | N58: =SUM(J58*M58) -> 0 | P58: =SUM(J58*O58) -> 0 | R58: =SUM(J58*Q58) -> 0 | T58: =SUM(J58*S58) -> 0 | V58: =SUM(J58*U58) -> 0 | W58: =SUM(J58,L58,N58,P58,R58,T58,V58) -> 0 | Y58: =SUM(W58*X58) -> 0 | Z58: =SUM(Y58*0.7) -> 0 | AA58: 0.8 | AB58: =SUM(Y58*AA58) -> 0 | AC58: =ROUND(Y58+Z58+AB58,2) -> 0
B59: Итого | J59: =SUM(J58:J58) -> 0 | L59: =SUM(L58:L58) -> 0 | N59: =SUM(N58:N58) -> 0 | P59: =SUM(P58:P58) -> 0 | R59: =SUM(R58:R58) -> 0 | T59: =SUM(T58:T58) -> 0 | V59: =SUM(V58:V58) -> 0 | W59: =SUM(W58:W58) -> 0 | X59: =SUM(X58:X58) -> 0 | Y59: =SUM(Y58:Y58) -> 0 | Z59: =SUM(Z58:Z58) -> 0 | AB59: =SUM(AB58:AB58) -> 0 | AC59: =SUM(AC58:AC58) -> 0
B60: 2 квалификационный уровень
J61: =SUM(H61*I61) -> 0 | L61: =SUM(J61*K61) -> 0 | N61: =SUM(J61*M61) -> 0 | P61: =SUM(J61*O61) -> 0 | R61: =SUM(J61*Q61) -> 0 | T61: =SUM(J61*S61) -> 0 | V61: =SUM(J61*U61) -> 0 | W61: =SUM(J61,L61,N61,P61,R61,T61,V61) -> 0 | Y61: =SUM(W61*X61) -> 0 | Z61: =SUM(Y61*0.7) -> 0 | AA61: 0.8 | AB61: =SUM(Y61*AA61) -> 0 | AC61: =ROUND(Y61+Z61+AB61,2) -> 0
B62: Итого | J62: =SUM(J61:J61) -> 0 | L62: =SUM(L61:L61) -> 0 | N62: =SUM(N61:N61) -> 0 | P62: =SUM(P61:P61) -> 0 | R62: =SUM(R61:R61) -> 0 | T62: =SUM(T61:T61) -> 0 | V62: =SUM(V61:V61) -> 0 | W62: =SUM(W61:W61) -> 0 | X62: =SUM(X61:X61) -> 0 | Y62: =SUM(Y61:Y61) -> 0 | Z62: =SUM(Z61:Z61) -> 0 | AB62: =SUM(AB61:AB61) -> 0 | AC62: =SUM(AC61:AC61) -> 0
B63: 3 квалификационный уровень
A64: 22 | B64: Дзакураева Людмила Михайловна | C64: Шеф-повар | D64: Среднее-профессиональное | E64: Нальчинский технологический техникум Роспотребсоюза, диплом НТ №114869 от 03.03.1989г | F64: 25.11 | H64: 4094 | I64: 1.3 | J64: =SUM(H64*I64)*X64 -> 5322.2 | K64: 0.2 | L64: =SUM(J64*K64) -> 1064.44 | M64: 0 | N64: =SUM(J64*M64) -> 0 | P64: =SUM(J64*O64) -> 0 | Q64: 0.6 | R64: =SUM(J64*Q64) -> 3193.32 | S64: 0.6 | T64: =SUM(J64*S64) -> 3193.32 | V64: =SUM(J64*U64) -> 0 | W64: =SUM(J64,L64,N64,P64,R64,T64,V64) -> 12773.28 | X64: 1 | Y64: =W64 -> 12773.28 | Z64: =SUM(Y64*0.7) -> 8941.296 | AA64: 0.8 | AB64: =SUM(Y64*AA64) -> 10218.624 | AC64: =Y64+Z64+AB64 -> 31933.2
B65: Итого | J65: =SUM(J64:J64) -> 5322.2 | L65: =SUM(L64:L64) -> 1064.44 | N65: =SUM(N64:N64) -> 0 | P65: =SUM(P64:P64) -> 0 | R65: =SUM(R64:R64) -> 3193.32 | T65: =SUM(T64:T64) -> 3193.32 | V65: =SUM(V64:V64) -> 0 | W65: =SUM(W64:W64) -> 12773.28 | X65: =SUM(X64:X64) -> 1 | Y65: =SUM(Y64:Y64) -> 12773.28 | Z65: =SUM(Z64:Z64) -> 8941.296 | AB65: =SUM(AB64:AB64) -> 10218.624 | AC65: =SUM(AC64:AC64) -> 31933.2
B66: 4 квалификационный уровень
J67: =SUM(H67*I67) -> 0 | L67: =SUM(J67*K67) -> 0 | N67: =SUM(J67*M67) -> 0 | P67: =SUM(J67*O67) -> 0 | R67: =SUM(J67*Q67) -> 0 | T67: =SUM(J67*S67) -> 0 | V67: =SUM(J67*U67) -> 0 | W67: =SUM(J67,L67,N67,P67,R67,T67,V67) -> 0 | Y67: =SUM(W67*X67) -> 0 | Z67: =SUM(Y67*0.7) -> 0 | AA67: 0.8 | AB67: =SUM(Y67*AA67) -> 0 | AC67: =ROUND(Y67+Z67+AB67,2) -> 0
B68: Итого | J68: =SUM(J67:J67) -> 0 | L68: =SUM(L67:L67) -> 0 | N68: =SUM(N67:N67) -> 0 | P68: =SUM(P67:P67) -> 0 | R68: =SUM(R67:R67) -> 0 | T68: =SUM(T67:T67) -> 0 | V68: =SUM(V67:V67) -> 0 | W68: =SUM(W67:W67) -> 0 | X68: =SUM(X67:X67) -> 0 | Y68: =SUM(Y67:Y67) -> 0 | Z68: =SUM(Z67:Z67) -> 0 | AB68: =SUM(AB67:AB67) -> 0 | AC68: =SUM(AC67:AC67) -> 0
B69: 5 квалификационный уровень
J70: =SUM(H70*I70) -> 0 | L70: =SUM(J70*K70) -> 0 | N70: =SUM(J70*M70) -> 0 | P70: =SUM(J70*O70) -> 0 | R70: =SUM(J70*Q70) -> 0 | T70: =SUM(J70*S70) -> 0 | V70: =SUM(J70*U70) -> 0 | W70: =SUM(J70,L70,N70,P70,R70,T70,V70) -> 0 | Y70: =SUM(W70*X70) -> 0 | Z70: =SUM(Y70*0.7) -> 0 | AA70: 0.8 | AB70: =SUM(Y70*AA70) -> 0 | AC70: =ROUND(Y70+Z70+AB70,2) -> 0
B71: Итого | J71: =SUM(J70:J70) -> 0 | L71: =SUM(L70:L70) -> 0 | N71: =SUM(N70:N70) -> 0 | P71: =SUM(P70:P70) -> 0 | R71: =SUM(R70:R70) -> 0 | T71: =SUM(T70:T70) -> 0 | V71: =SUM(V70:V70) -> 0 | W71: =SUM(W70:W70) -> 0 | X71: =SUM(X70:X70) -> 0 | Y71: =SUM(Y70:Y70) -> 0 | Z71: =SUM(Z70:Z70) -> 0 | AB71: =SUM(AB70:AB70) -> 0 | AC71: =SUM(AC70:AC70) -> 0
B73: ПКГ работников общеотраслевых должностей служащих 3 уровня
B74: 1 квалификационный уровень
A75: 23 | B75: Утяганова Ляля Ильгамовна | C75: Специалист по кадрам (совмещение) | D75: Высшее | E75: Башкирский государственный университете диплом № 285 2015 г | F75: 0 | H75: 4094 | I75: 1.5 | J75: =SUM(H75*I75)*X75 -> 3070.5 | K75: 0.05 | L75: =SUM(J75*K75) -> 153.525 | N75: =SUM(J75*M75) -> 0 | P75: =SUM(J75*O75) -> 0 | R75: =SUM(J75*Q75) -> 0 | T75: =SUM(J75*S75) -> 0 | V75: =SUM(J75*U75) -> 0 | W75: =SUM(J75,L75,N75,P75,R75,T75,V75) -> 3224.025 | X75: 0.5 | Y75: =W75 -> 3224.025 | Z75: =SUM(Y75*0.7) -> 2256.8175 | AA75: 0.8 | AB75: =SUM(Y75*AA75) -> 2579.22 | AC75: =Y75+Z75+AB75 -> 8060.0625
A76: 24 | B76: вакансия | C76: Специалист по кадрам | H76: 4094 | I76: 1.5 | L76: =SUM(J76*K76) -> 0 | N76: =SUM(J76*M76) -> 0 | P76: =SUM(J76*O76) -> 0 | R76: =SUM(J76*Q76) -> 0 | T76: =SUM(J76*S76) -> 0 | U76: 1.25 | V76: =H76*I76*U76 -> 7676.25 | W76: =SUM(J76,L76,N76,P76,R76,T76,V76) -> 7676.25 | X76: 0.5 | Y76: =W76 -> 7676.25 | Z76: =SUM(Y76*0.7) -> 5373.375 | AA76: 1.8 | AB76: =SUM(Y76*AA76) -> 13817.25 | AC76: =Y76+Z76+AB76 -> 26866.875
A77: 25 | B77: Даховник Екатерина Васильевна | C77: экономист (внешний совместит) | D77: средне- профессиальное | F77: 10.8 | H77: 4094 | I77: 1.5 | J77: =SUM(H77*I77)*X77 -> 1535.25 | K77: 0.2 | L77: =SUM(J77*K77) -> 307.05 | N77: =SUM(J77*M77) -> 0 | P77: =SUM(J77*O77) -> 0 | R77: =SUM(J77*Q77) -> 0 | T77: =SUM(J77*S77) -> 0 | V77: =SUM(J77*U77) -> 0 | W77: =SUM(J77,L77,N77,P77,R77,T77,V77) -> 1842.3 | X77: 0.25 | Y77: =W77 -> 1842.3 | Z77: =SUM(Y77*0.7) -> 1289.61 | AA77: 0.8 | AB77: =SUM(Y77*AA77) -> 1473.84 | AC77: =ROUND(Y77+Z77+AB77,2) -> 4605.75
B78: Итого | J78: =SUM(J75:J77) -> 4605.75 | L78: =SUM(L75:L77) -> 460.575 | N78: =SUM(N75:N77) -> 0 | P78: =SUM(P75:P77) -> 0 | R78: =SUM(R75:R77) -> 0 | T78: =SUM(T75:T77) -> 0 | V78: =SUM(V75:V77) -> 7676.25 | W78: =SUM(W75:W77) -> 12742.575 | X78: =SUM(X75:X77) -> 1.25 | Y78: =SUM(Y75:Y77) -> 12742.575 | Z78: =SUM(Z75:Z77) -> 8919.8025 | AB78: =SUM(AB75:AB77) -> 17870.31 | AC78: =SUM(AC75:AC77) -> 39532.6875
B79: 2 квалификационный уровень
J80: =SUM(H80*I80) -> 0 | L80: =SUM(J80*K80) -> 0 | N80: =SUM(J80*M80) -> 0 | P80: =SUM(J80*O80) -> 0 | R80: =SUM(J80*Q80) -> 0 | T80: =SUM(J80*S80) -> 0 | V80: =SUM(J80*U80) -> 0 | W80: =SUM(J80,L80,N80,P80,R80,T80,V80) -> 0 | Y80: =SUM(W80*X80) -> 0 | Z80: =SUM(Y80*0.7) -> 0 | AA80: 0.8 | AB80: =SUM(Y80*AA80) -> 0 | AC80: =ROUND(Y80+Z80+AB80,2) -> 0
B81: Итого | J81: =SUM(J80:J80) -> 0 | L81: =SUM(L80:L80) -> 0 | N81: =SUM(N80:N80) -> 0 | P81: =SUM(P80:P80) -> 0 | R81: =SUM(R80:R80) -> 0 | T81: =SUM(T80:T80) -> 0 | V81: =SUM(V80:V80) -> 0 | W81: =SUM(W80:W80) -> 0 | X81: =SUM(X80:X80) -> 0 | Y81: =SUM(Y80:Y80) -> 0 | Z81: =SUM(Z80:Z80) -> 0 | AB81: =SUM(AB80:AB80) -> 0 | AC81: =SUM(AC80:AC80) -> 0
B82: 3 квалификационный уровень
A83: 26 | B83: Зубарев Максим Геннадьевич | C83: инженер (внешний совместитель) | D83: высшее | F83: 1 | H83: 4094 | I83: 1.5 | J83: =SUM(H83*I83)*X83 -> 3070.5 | K83: 0.05 | L83: =SUM(J83*K83) -> 153.525 | N83: =SUM(J83*M83) -> 0 | P83: =SUM(J83*O83) -> 0 | R83: =SUM(J83*Q83) -> 0 | T83: =SUM(J83*S83) -> 0 | V83: =SUM(J83*U83) -> 0 | W83: =SUM(J83,L83,N83,P83,R83,T83,V83) -> 3224.025 | X83: 0.5 | Y83: =W83 -> 3224.025 | Z83: =SUM(Y83*0.7) -> 2256.8175 | AA83: 0.8 | AB83: =SUM(Y83*AA83) -> 2579.22 | AC83: =ROUND(Y83+Z83+AB83,2) -> 8060.06
J84: =SUM(H84*I84) -> 0 | L84: =SUM(J84*K84) -> 0 | N84: =SUM(J84*M84) -> 0 | P84: =SUM(J84*O84) -> 0 | R84: =SUM(J84*Q84) -> 0 | T84: =SUM(J84*S84) -> 0 | V84: =SUM(J84*U84) -> 0 | W84: =SUM(J84,L84,N84,P84,R84,T84,V84) -> 0 | Y84: =SUM(W84*X84) -> 0 | Z84: =SUM(Y84*0.7) -> 0 | AA84: 0.8 | AB84: =SUM(Y84*AA84) -> 0 | AC84: =ROUND(Y84+Z84+AB84,2) -> 0
B85: Итого | J85: =SUM(J83:J84) -> 3070.5 | L85: =SUM(L83:L84) -> 153.525 | N85: =SUM(N83:N84) -> 0 | P85: =SUM(P83:P84) -> 0 | R85: =SUM(R83:R84) -> 0 | T85: =SUM(T83:T84) -> 0 | V85: =SUM(V83:V84) -> 0 | W85: =SUM(W83:W84) -> 3224.025 | X85: =SUM(X83:X84) -> 0.5 | Y85: =SUM(Y83:Y84) -> 3224.025 | Z85: =SUM(Z83:Z84) -> 2256.8175 | AB85: =SUM(AB83:AB84) -> 2579.22 | AC85: =SUM(AC83:AC84) -> 8060.06
B86: 4 квалификационный уровень
J87: =SUM(H87*I87) -> 0 | L87: =SUM(J87*K87) -> 0 | N87: =SUM(J87*M87) -> 0 | P87: =SUM(J87*O87) -> 0 | R87: =SUM(J87*Q87) -> 0 | T87: =SUM(J87*S87) -> 0 | V87: =SUM(J87*U87) -> 0 | W87: =SUM(J87,L87,N87,P87,R87,T87,V87) -> 0 | Y87: =SUM(W87*X87) -> 0 | Z87: =SUM(Y87*0.7) -> 0 | AA87: 0.8 | AB87: =SUM(Y87*AA87) -> 0 | AC87: =ROUND(Y87+Z87+AB87,2) -> 0
B88: Итого | J88: =SUM(J87:J87) -> 0 | L88: =SUM(L87:L87) -> 0 | N88: =SUM(N87:N87) -> 0 | P88: =SUM(P87:P87) -> 0 | R88: =SUM(R87:R87) -> 0 | T88: =SUM(T87:T87) -> 0 | V88: =SUM(V87:V87) -> 0 | W88: =SUM(W87:W87) -> 0 | X88: =SUM(X87:X87) -> 0 | Y88: =SUM(Y87:Y87) -> 0 | Z88: =SUM(Z87:Z87) -> 0 | AB88: =SUM(AB87:AB87) -> 0 | AC88: =SUM(AC87:AC87) -> 0
B89: 5 квалификационный уровень
J90: =SUM(H90*I90) -> 0 | L90: =SUM(J90*K90) -> 0 | N90: =SUM(J90*M90) -> 0 | P90: =SUM(J90*O90) -> 0 | R90: =SUM(J90*Q90) -> 0 | T90: =SUM(J90*S90) -> 0 | V90: =SUM(J90*U90) -> 0 | W90: =SUM(J90,L90,N90,P90,R90,T90,V90) -> 0 | Y90: =SUM(W90*X90) -> 0 | Z90: =SUM(Y90*0.7) -> 0 | AA90: 0.8 | AB90: =SUM(Y90*AA90) -> 0 | AC90: =ROUND(Y90+Z90+AB90,2) -> 0
B91: Итого | J91: =SUM(J90:J90) -> 0 | L91: =SUM(L90:L90) -> 0 | N91: =SUM(N90:N90) -> 0 | P91: =SUM(P90:P90) -> 0 | R91: =SUM(R90:R90) -> 0 | T91: =SUM(T90:T90) -> 0 | V91: =SUM(V90:V90) -> 0 | W91: =SUM(W90:W90) -> 0 | X91: =SUM(X90:X90) -> 0 | Y91: =SUM(Y90:Y90) -> 0 | Z91: =SUM(Z90:Z90) -> 0 | AB91: =SUM(AB90:AB90) -> 0 | AC91: =SUM(AC90:AC90) -> 0
B92: ПКГ работников общеотраслевых должностей служащих 4 уровня
B93: 1 квалификационный уровень
J94: =SUM(H94*I94) -> 0 | L94: =SUM(J94*K94) -> 0 | N94: =SUM(J94*M94) -> 0 | P94: =SUM(J94*O94) -> 0 | R94: =SUM(J94*Q94) -> 0 | T94: =SUM(J94*S94) -> 0 | V94: =SUM(J94*U94) -> 0 | W94: =SUM(J94,L94,N94,P94,R94,T94,V94) -> 0 | Y94: =SUM(W94*X94) -> 0 | Z94: =SUM(Y94*0.7) -> 0 | AA94: 0.8 | AB94: =SUM(Y94*AA94) -> 0 | AC94: =ROUND(Y94+Z94+AB94,2) -> 0
B95: Итого | J95: =SUM(J94:J94) -> 0 | L95: =SUM(L94:L94) -> 0 | N95: =SUM(N94:N94) -> 0 | P95: =SUM(P94:P94) -> 0 | R95: =SUM(R94:R94) -> 0 | T95: =SUM(T94:T94) -> 0 | V95: =SUM(V94:V94) -> 0 | W95: =SUM(W94:W94) -> 0 | X95: =SUM(X94:X94) -> 0 | Y95: =SUM(Y94:Y94) -> 0 | Z95: =SUM(Z94:Z94) -> 0 | AB95: =SUM(AB94:AB94) -> 0 | AC95: =SUM(AC94:AC94) -> 0
B96: 2 квалификационный уровень
J97: =SUM(H97*I97) -> 0 | L97: =SUM(J97*K97) -> 0 | N97: =SUM(J97*M97) -> 0 | P97: =SUM(J97*O97) -> 0 | R97: =SUM(J97*Q97) -> 0 | T97: =SUM(J97*S97) -> 0 | V97: =SUM(J97*U97) -> 0 | W97: =SUM(J97,L97,N97,P97,R97,T97,V97) -> 0 | Y97: =SUM(W97*X97) -> 0 | Z97: =SUM(Y97*0.7) -> 0 | AA97: 0.8 | AB97: =SUM(Y97*AA97) -> 0 | AC97: =ROUND(Y97+Z97+AB97,2) -> 0
B98: Итого | J98: =SUM(J97:J97) -> 0 | L98: =SUM(L97:L97) -> 0 | N98: =SUM(N97:N97) -> 0 | P98: =SUM(P97:P97) -> 0 | R98: =SUM(R97:R97) -> 0 | T98: =SUM(T97:T97) -> 0 | V98: =SUM(V97:V97) -> 0 | W98: =SUM(W97:W97) -> 0 | X98: =SUM(X97:X97) -> 0 | Y98: =SUM(Y97:Y97) -> 0 | Z98: =SUM(Z97:Z97) -> 0 | AB98: =SUM(AB97:AB97) -> 0 | AC98: =SUM(AC97:AC97) -> 0
B100: Итого по профессиональной квалификационной группе "СЛУЖАЩИЕ" | J100: =SUM(J34,J38,J43,J51,J54,J59,J62,J65,J68,J71,J78,J81,J85,J88,J91,J95,J98) -> 115143.75 | L100: =SUM(L34,L38,L43,L51,L54,L59,L62,L65,L68,L71,L78,L81,L85,L88,L91,L95,L98) -> 19999.19 | N100: =SUM(N34,N38,N43,N51,N54,N59,N62,N65,N68,N71,N78,N81,N85,N88,N91,N95,N98) -> 2161.632 | P100: =SUM(P34,P38,P43,P51,P54,P59,P62,P65,P68,P71,P78,P81,P85,P88,P91,P95,P98) -> 0 | R100: =SUM(R34,R38,R43,R51,R54,R59,R62,R65,R68,R71,R78,R81,R85,R88,R91,R95,R98) -> 3193.32 | T100: =SUM(T34,T38,T43,T51,T54,T59,T62,T65,T68,T71,T78,T81,T85,T88,T91,T95,T98) -> 3193.32 | V100: =SUM(V34,V38,V43,V51,V54,V59,V62,V65,V68,V71,V78,V81,V85,V88,V91,V95,V98) -> 20981.75 | W100: =SUM(W34,W38,W43,W51,W54,W59,W62,W65,W68,W71,W78,W81,W85,W88,W91,W95,W98) -> 164672.962 | X100: =SUM(X34,X38,X43,X51,X54,X59,X62,X65,X68,X71,X78,X81,X85,X88,X91,X95,X98) -> 28.25 | Y100: =SUM(Y34,Y38,Y43,Y51,Y54,Y59,Y62,Y65,Y68,Y71,Y78,Y81,Y85,Y88,Y91,Y95,Y98) -> 164672.962 | Z100: =SUM(Z34,Z38,Z43,Z51,Z54,Z59,Z62,Z65,Z68,Z71,Z78,Z81,Z85,Z88,Z91,Z95,Z98) -> 115271.0734 | AB100: =SUM(AB34,AB38,AB43,AB51,AB54,AB59,AB62,AB65,AB68,AB71,AB78,AB81,AB85,AB88,AB91,AB95,AB98) -> 139414.6196 | AC100: =SUM(AC34,AC38,AC43,AC51,AC54,AC59,AC62,AC65,AC68,AC71,AC78,AC81,AC85,AC88,AC91,AC95,AC98) -> 419358.6525
B102: Заведующий | U102: Б.А.Джемакулова
B104: Ведущий экономист | U104: В. А. Тычкина
B107: Специалист по кадрам | U107: Л.И | V107: Утяганова
B112: Исп. | C112: К. А. Булгарова
B113: тел. | C113: 23-13-38

Sheet Мед. персонал
Z1: УТВЕРЖДЕНО
Z2: Приказом МБДОУ "Детский сад ""Руслан"
Z3: № 296 от 09.12.2016
A6: ТАРИФИКАЦИОННЫЙ СПИСОК
A7: ДОЛЖНОСТЕЙ МЕДИЦИНСКИХ И ФАРМАЦЕВТИЧЕСКИХ РАБОТНИКОВ
A8: Муниципальное бюджетное дошкольное образовательное учреждение "Детский сад "Руслан"
A9: (наименование образовательного учреждения)
A10: по состоянию на 01.01.2017года
A12: № | B12: Фамилия, Имя, Отчество | C12: Должность | D12: Уровень образования | E12: Наименование образовательного учреждения, дата окончания, полученная специальность | F12: Стаж работы | G12: Квалификационная категория, наличие ученой степени, звания, наград | H12: Базовый оклад | I12: Коэффициент уровня образования | K12: Коэффициент стажа | M12: Коэффициент специфики работы | O12: Коэффициент квалификации | Q12: Коэффициент масштаба управления | S12: Коэффициент уровня управления | U12: Коэффициент вакансий | W12: Итого должностной оклад | X12: Количество занимаемых ставок | Y12: Итого должностной оклад с нагрузкой | Z12: Районный коэффициент | AA12: Процентная надбавка за работу в районах Крайнего севера | AC12: Всего должностных окладов в месяц
I13: К1 | J13: сумма | K13: К2 | L13: сумма | M13: К 3 - указать наименование основания повышения | N13: сумма | O13: К4 | P13: сумма | Q13: К5 | R13: сумма | S13: К6 | T13: сумма | U13: К8 | V13: сумма | AA13: коэф-т | AB13: сумма
B14: ПКГ работников среднего медицинского и фармацевтического персонала
B15: 2 квалификационный уровень
A16: 1 | B16: Ханмурзаева Анжела Казбековна | C16: Медицинская сестра диетическая | D16: Астраханский медйцинский колледж | F16: 15.4 | H16: 4094 | I16: 1.3 | J16: =SUM(H16*I16)*X16 -> 2661.1 | K16: 0.2 | L16: =SUM(J16*K16) -> 532.22 | N16: =SUM(H16*M16) -> 0 | P16: =SUM(J16*O16) -> 0 | R16: =SUM(J16*Q16) -> 0 | T16: =SUM(J16*S16) -> 0 | V16: =H16*I16*U16*X16 -> 0 | W16: =J16+L16+N16+P16+R16+T16+V16 -> 3193.32 | X16: 0.5 | Y16: =W16 -> 3193.32 | Z16: =SUM(Y16*0.7) -> 2235.324 | AA16: 0.8 | AB16: =SUM(Y16*AA16) -> 2554.656 | AC16: =Y16+Z16+AB16 -> 7983.3
A17: 2 | B17: Суюнова Фариза Магомедовна | C17: Медицинская сестра диетическая | H17: 4094 | I17: 1.3 | J17: =SUM(H17*I17)*X17 -> 2661.1 | K17: 0.2 | L17: =SUM(J17*K17) -> 532.22 | W17: =J17+L17+N17+P17+R17+T17+V17 -> 3193.32 | X17: 0.5 | Y17: =W17 -> 3193.32 | Z17: =SUM(Y17*0.7) -> 2235.324 | AA17: 0.8 | AB17: =SUM(Y17*AA17) -> 2554.656 | AC17: =Y17+Z17+AB17 -> 7983.3
J18: =SUM(J16:J17) -> 5322.2 | L18: =SUM(L16:L17) -> 1064.44 | M18: =M16 -> 0 | N18: 0 | O18: 0 | P18: 0 | Q18: 0 | R18: 0 | S18: 0 | T18: 0 | V18: 0 | W18: =SUM(W16:W17) -> 6386.64 | X18: =SUM(X16:X17) -> 1 | Y18: =SUM(Y16:Y17) -> 6386.64 | Z18: =SUM(Z16:Z17) -> 4470.648 | AB18: =SUM(AB16:AB17) -> 5109.312 | AC18: =SUM(AC16:AC17) -> 15966.6
B20: Заведующий МБДОУ " Детский сад "Руслан" | L20: Б.А.Джемакулова
B22: Ведущий экономист | L22: В. А. Тычкина
B25: Специалист по кадрам | L25: Л.И.Утяганова
B30: Исп. | C30: Л.И.Утяганова
B31: тел. | C31: 23-13-38

Sheet декретРаб
O1: УТВЕРЖДЕНО
O2: Приказом МБДОУ "Детский сад" "Руслан"
O3: № от 0
A5: ТАРИФИКАЦИОННЫЙ СПИСОК
A6: работников профессиональной квалификационной группы профессий рабочих
A7: Муниципальное бюджетное дошкольное образовательное учреждение" Детский сад" "Руслан"
A8: (наименование образовательного учреждения)
A9: по состоянию на 01.09 2017 года
B10: декрет
A11: № | B11: Фамилия, Имя, Отчество | C11: Должность | D11: Разряд по тарифной сетке | E11: Базовый оклад | F11: Тарифный коэффициент (коэффициент разряда) | H11: Коэффициент специфики работы | J11: Коэффициент вакансий | L11: Итого должностной оклад | M11: Количество занимаемых ставок | N11: Итого должностной оклад с нагрузкой | O11: Районный коэффициент | P11: Процентная надбавка за работу в районах Крайнего севера | R11: Всего должностных окладов в месяц
F12: Кр | G12: сумма | H12: К 3 - указать наименование основания повышения | I12: сумма | J12: К8 | K12: сумма | P12: коэф-т | Q12: сумма
B13: ПКГ работников общеотраслевых профессий 1 уровня
B14: 1 квалификационный уровень
A15: 1 | B15: Болтукаева Залимат Ибрагимовна | C15: кух.рабочий | D15: 1 | E15: 4094 | F15: 1 | G15: =SUM(E15*F15)*M15 -> 4094 | H15: 0 | I15: =SUM(G15*H15) -> 0 | K15: =SUM(G15*J15) -> 0 | L15: =SUM(G15,I15,K15) -> 4094 | M15: 1 | N15: =L15 -> 4094 | O15: =SUM(N15*0.7) -> 2865.8 | P15: 0.8 | Q15: =SUM(N15*P15) -> 3275.2 | R15: =N15+O15+Q15 -> 10235
A16: 2 | B16: Джаватханова Диана Надирхановна | C16: Уборщик бассейна (внутр.совместитель) | D16: 1 | E16: 4094 | F16: 1 | G16: =SUM(E16*F16)*M16 -> 2047 | H16: 0 | I16: =SUM(G16*H16) -> 0 | K16: =SUM(G16*J16) -> 0 | L16: =SUM(G16,I16,K16) -> 2047 | M16: 0.5 | N16: =L16 -> 2047 | O16: =SUM(N16*0.7) -> 1432.9 | P16: 0.8 | Q16: =SUM(N16*P16) -> 1637.6 | R16: =N16+O16+Q16 -> 5117.5
A17: 3 | B17: Закавова Джанет Бамматовна | C17: кух.рабочий | D17: 2 | E17: 4094 | F17: 1 | G17: =SUM(E17*F17)*M17 -> 4094 | H17: 0 | I17: =SUM(G17*H17) -> 0 | K17: =SUM(G17*J17) -> 0 | L17: =SUM(G17,I17,K17) -> 4094 | M17: 1 | N17: =L17 -> 4094 | O17: =SUM(N17*0.7) -> 2865.8 | P17: 0.8 | Q17: =SUM(N17*P17) -> 3275.2 | R17: =N17+O17+Q17 -> 10235
A18: 4 | B18: Саламова Хидайт Саитхусейновнавна | C18: кух.рабочий | D18: 1 | E18: 4094 | F18: 1 | G18: =SUM(E18*F18)*M18 -> 4094 | H18: 0 | I18: =SUM(G18*H18) -> 0 | K18: =SUM(G18*J18) -> 0 | L18: =SUM(G18,I18,K18) -> 4094 | M18: 1 | N18: =L18 -> 4094 | O18: =SUM(N18*0.7) -> 2865.8 | P18: 0.8 | Q18: =SUM(N18*P18) -> 3275.2 | R18: =N18+O18+Q18 -> 10235
A19: 5 | B19: Найманова Фатима Якубовна | C19: вахтер | D19: 2 | E19: 4094 | F19: 1 | G19: 4094 | H19: 0 | I19: 0 | K19: 0 | L19: 4094 | M19: 1 | N19: 4094 | O19: =SUM(N19*0.7) -> 2865.8 | P19: 0.8 | Q19: 3275.2 | R19: 10235
A20: 6 | B20: Островская Елена Александровна | C20: Сторож | D20: 1 | E20: 4094 | F20: 1 | G20: =SUM(E20*F20)*M20 -> 4094 | H20: 0 | I20: =SUM(G20*H20) -> 0 | K20: =SUM(G20*J20) -> 0 | L20: =SUM(G20,I20,K20) -> 4094 | M20: 1 | N20: =L20 -> 4094 | O20: =SUM(N20*0.7) -> 2865.8 | P20: 0.8 | Q20: =SUM(N20*P20) -> 3275.2 | R20: =N20+O20+Q20 -> 10235
B21: Итого | G21: =SUM(G15:G20) -> 22517 | H21: 0 | I21: 0 | J21: 0 | K21: 0 | L21: 22517 | M21: 5.5 | N21: 22517 | O21: 15761.9 | Q21: =SUM(Q15:Q20) -> 18013.6 | R21: =SUM(R15:R20) -> 56292.5
B22: Итого по профессиональной квалификационной группе "РАБОЧИЕ"
B24: Заведующий МБДОУ " Детский сад "Руслан" | L24: Б.А.Джемакулова
B26: Ведущий экономист | L26: В. А. Тычкина
B28: Специалист по кадрам | L28: Л.И.Утяганова
B29: Исп. Л.И.Утяганова
B30: тел.

Sheet рабочие
O1: УТВЕРЖДЕНО
O2: Приказом МБДОУ "Детский сад" "Руслан"
O3: № от
A5: ТАРИФИКАЦИОННЫЙ СПИСОК
A6: работников профессиональной квалификационной группы профессий рабочих
A7: Муниципальное бюджетное дошкольное образовательное учреждение" Детский сад" "Руслан"
A8: (наименование образовательного учреждения)
A9: по состоянию на 01.09.2017 года
A11: № | B11: Фамилия, Имя, Отчество | C11: Должность | D11: Разряд по тарифной сетке | E11: Базовый оклад | F11: Тарифный коэффициент (коэффициент разряда) | H11: Коэффициент специфики работы | J11: Коэффициент вакансий | L11: Итого должностной оклад | M11: Количество занимаемых ставок | N11: Итого должностной оклад с нагрузкой | O11: Районный коэффициент | P11: Процентная надбавка за работу в районах Крайнего севера | R11: Всего должностных окладов в месяц
F12: Кр | G12: сумма | H12: К 3 - указать наименование основания повышения | I12: сумма | J12: К8 | K12: сумма | P12: коэф-т | Q12: сумма
B13: ПКГ работников общеотраслевых профессий 1 уровня
B14: 1 квалификационный уровень
A15: 1 | B15: Керейтова Гульнара Амербиевна | C15: Кладовщик | D15: 1 | E15: 4094 | F15: 1 | G15: =SUM(E15*F15)*M15 -> 4094 | H15: 0 | I15: =SUM(G15*H15) -> 0 | K15: =SUM(G15*J15) -> 0 | L15: =SUM(G15,I15,K15) -> 4094 | M15: 1 | N15: =L15 -> 4094 | O15: =SUM(N15*0.7) -> 2865.8 | P15: 0.8 | Q15: =SUM(N15*P15) -> 3275.2 | R15: =N15+O15+Q15 -> 10235
A16: 2 | B16: Керейтова Гульнара Амербиевна | C16: Грузчик (совмещение) | D16: 1 | E16: 4094 | F16: 1 | G16: =SUM(E16*F16)*M16 -> 2047 | H16: 0 | I16: 0 | K16: 0 | L16: 2047 | M16: 0.5 | N16: =L16 -> 2047 | O16: 1432.9 | P16: 0.8 | Q16: 1637.6 | R16: =N16+O16+Q16 -> 5117.5
A17: 3 | B17: Ильясова Земфира Мурзабековна | C17: кухонный рабочий | D17: 2 | E17: 4094 | F17: 1 | G17: 6141 | H17: 0 | I17: 0 | K17: 0 | L17: 6141 | M17: 1.5 | N17: 6141 | O17: 4298.7 | P17: 0.8 | Q17: 4912.8 | R17: 15352.5
A18: 4 | B18: Гереева Валида Гусейхановна | C18: кухонный рабочий | D18: 2 | E18: 4094 | F18: 1 | G18: 6141 | H18: 0 | I18: 0 | K18: 0 | L18: 6141 | M18: 1.5 | N18: 6141 | O18: =SUM(N18*0.7) -> 4298.7 | P18: 0.8 | Q18: 4912.8 | R18: 15352.5
A19: 5 | B19: Ганбарова Эсмира Мустафа кызы | C19: Машинист по стирке и ремонту спецодежды | D19: 2 | E19: 4094 | F19: 1 | G19: =SUM(E19*F19)*M19 -> 4094 | H19: 0 | I19: =SUM(G19*H19) -> 0 | K19: =SUM(G19*J19) -> 0 | L19: =SUM(G19,I19,K19) -> 4094 | M19: 1 | N19: =L19 -> 4094 | O19: 2865.8 | P19: 0.8 | Q19: =SUM(N19*P19) -> 3275.2 | R19: =N19+O19+Q19 -> 10235
C20: Машинист по стирке и ремонту спецодежды (внутр.сов-во) | D20: 2 | E20: 4094 | F20: 1 | G20: =SUM(E20*F20)*M20 -> 2047 | H20: 0 | I20: =SUM(G20*H20) -> 0 | K20: =SUM(G20*J20) -> 0 | L20: =SUM(G20,I20,K20) -> 2047 | M20: 0.5 | N20: =L20 -> 2047 | O20: =SUM(N20*0.7) -> 1432.9 | P20: 0.8 | Q20: =SUM(N20*P20) -> 1637.6 | R20: =N20+O20+Q20 -> 5117.5
C21: Машинист по стирке и ремонту спецодежды (РЗО) | D21: 2 | E21: 4094 | F21: 1 | G21: =SUM(E21*F21)*M21 -> 1023.5 | I21: =SUM(G21*H21) -> 0 | K21: =SUM(G21*J21) -> 0 | L21: =SUM(G21,I21,K21) -> 1023.5 | M21: 0.25 | N21: =L21 -> 1023.5 | O21: =SUM(N21*0.7) -> 716.45 | P21: 80 | Q21: =SUM(N21*P21) -> 81880 | R21: =N21+O21+Q21 -> 83619.95
A22: 6 | B22: Кукаева Тайбат Азаматовна | C22: Кастелянша | D22: 2 | E22: 4094 | F22: 1 | G22: 4094 | H22: 0 | I22: 0 | K22: 0 | L22: 4094 | M22: 1 | N22: 4094 | O22: 2865.8 | P22: 0.8 | Q22: 3275.2 | R22: 10235
A23: 7 | B23: Кондрат Владимир Николаевич | C23: дворник | D23: 1 | E23: 4094 | F23: 1 | G23: 4094 | H23: 0 | I23: 0 | K23: 0 | L23: 4094 | M23: 1 | N23: 4094 | O23: 2865.8 | P23: 0.8 | Q23: 3275.2 | R23: 10235
A24: 8 | B24: Кумуков Ибрагим Шахимович | C24: Плотник | D24: 2 | E24: 4094 | F24: 1 | G24: 2047 | H24: 0 | I24: 0 | K24: 0 | L24: 2047 | M24: 0.5 | N24: 2047 | O24: 1432.9 | P24: 0.8 | Q24: 1637.6 | R24: 5117.5
A25: 9 | B25: Маршалюк Владислава Анатольевна | C25: вахтер | D25: 2 | E25: 4094 | F25: 1 | G25: 6141 | H25: 0 | I25: 0 | K25: 0 | L25: 6141 | M25: 1.5 | N25: 6141 | O25: 4298.7 | P25: 0.8 | Q25: 4912.8 | R25: 15352.5
A26: 10 | B26: вакансия | C26: вахтер | D26: 2 | E26: 4094 | F26: 1 | G26: =SUM(E26*F26)*M26 -> 2047 | H26: 0 | I26: =SUM(G26*H26) -> 0 | K26: =SUM(G26*J26) -> 0 | L26: =SUM(G26,I26,K26) -> 2047 | M26: 0.5 | N26: =L26 -> 2047 | O26: =SUM(N26*0.7) -> 1432.9 | P26: 0.8 | Q26: =SUM(N26*P26) -> 1637.6 | R26: 5117.5
A27: 11 | B27: Пилюшина Ксения Олеговна | C27: Уборщик служебных помещений | D27: 1 | E27: 4094 | F27: 1 | G27: 7164.5 | H27: 0 | I27: 0 | K27: 0 | L27: 7164.5 | M27: 1.75 | N27: 7164.5 | O27: 5015.15 | P27: 0.8 | Q27: 5731.6 | R27: =N27+O27+Q27 -> 17911.25
A28: 12 | B28: вакансия | C28: Уборщик служебных помещений | D28: 1 | E28: 4094 | F28: 1 | G28: =SUM(E28*F28)*M28 -> 3070.5 | H28: 0 | I28: =SUM(G28*H28) -> 0 | K28: =SUM(G28*J28) -> 0 | L28: =SUM(G28,I28,K28) -> 3070.5 | M28: 0.75 | N28: =L28 -> 3070.5 | O28: 2149.35 | P28: 0.8 | Q28: =SUM(N28*P28) -> 2456.4 | R28: =N28+O28+Q28 -> 7676.25
A29: 13 | B29: Кукаева Тайбат Азаматовна | C29: Уборщик бассейна | D29: 1 | E29: 4094 | F29: 1 | G29: =SUM(E29*F29)*M29 -> 2047 | H29: 0 | I29: =SUM(G29*H29) -> 0 | K29: =SUM(G29*J29) -> 0 | L29: =SUM(G29,I29,K29) -> 2047 | M29: 0.5 | N29: =L29 -> 2047 | O29: 1432.9 | P29: 0.8 | Q29: =SUM(N29*P29) -> 1637.6 | R29: =N29+O29+Q29 -> 5117.5
A30: 14 | B30: вакансия | C30: Уборщик бассейна | D30: 1 | E30: 4094 | F30: 1 | G30: =SUM(E30*F30)*M30 -> 2047 | H30: 0 | I30: =SUM(G30*H30) -> 0 | K30: =SUM(G30*J30) -> 0 | L30: =SUM(G30,I30,K30) -> 2047 | M30: 0.5 | N30: =L30 -> 2047 | O30: =SUM(N30*0.7) -> 1432.9 | P30: 80 | Q30: =SUM(N30*P30) -> 163760 | R30: =N30+O30+Q30 -> 167239.9
A31: 15 | B31: Байбекова Людмила Владимировна | C31: Садовник | D31: 1 | E31: 4094 | F31: 1 | G31: =SUM(E31*F31)*M31 -> 4094 | H31: 0 | I31: =SUM(G31*H31) -> 0 | K31: =SUM(G31*J31) -> 0 | L31: =SUM(G31,I31,K31) -> 4094 | M31: 1 | N31: =L31 -> 4094 | O31: =SUM(N31*0.7) -> 2865.8 | P31: 0.8 | Q31: =SUM(N31*P31) -> 3275.2 | R31: =N31+O31+Q31 -> 10235
A32: 16 | B32: вакансия | C32: Сторож | D32: 1 | E32: 4094 | F32: 1 | G32: 4094 | H32: 0 | I32: 0 | K32: 0 | L32: 4094 | M32: 1 | N32: 4094 | O32: 2865.8 | P32: 0.8 | Q32: 3275.2 | R32: 10235
A33: 17 | B33: Магеррамов Расиб Энвер оглы | C33: Сторож | D33: 1 | E33: 4094 | F33: 1 | G33: 4094 | H33: 0 | I33: 0 | K33: 0 | L33: 4094 | M33: 1 | N33: 4094 | O33: 2865.8 | P33: 0.8 | Q33: 3275.2 | R33: 10235
A34: 18 | B34: Кумуков Ибрагим Шахимович | C34: Сторож | D34: 1 | E34: 4094 | F34: 1 | G34: 4094 | H34: 0 | I34: =SUM(G34*H34) -> 0 | K34: =SUM(G34*J34) -> 0 | L34: =SUM(G34,I34,K34) -> 4094 | M34: 1 | N34: 4094 | O34: 2865.8 | P34: 0.8 | Q34: =SUM(N34*P34) -> 3275.2 | R34: 10235
B35: Итого | G35: =SUM(G15:G34) -> 74715.5 | H35: =SUM(H15:H34) -> 0 | I35: =SUM(I15:I34) -> 0 | K35: =SUM(K15:K34) -> 0 | L35: =SUM(L15:L34) -> 74715.5 | M35: =SUM(M15:M34) -> 18.25 | N35: =SUM(N15:N34) -> 74715.5 | O35: =SUM(O15:O34) -> 52300.85 | Q35: =SUM(Q15:Q34) -> 302956 | R35: =SUM(R15:R34) -> 429972.35
B36: 2 квалификационный уровень
B38: Итого | G38: 0 | I38: 0 | K38: =SUM(K48:K50) -> 0 | L38: 0 | M38: 0 | N38: 0 | O38: 0 | Q38: 0 | R38: 0
B40: ПКГ работников общеотраслевых профессий 2 уровня
B41: 1 квалификационный уровень
A42: 19 | B42: Алимова Татьяна Асхадовна | C42: Повар | D42: 3 | E42: 4094 | F42: 1 | G42: =SUM(E42*F42)*M42 -> 4094 | H42: 0 | I42: =SUM(G42*H42) -> 0 | K42: =SUM(G42*J42) -> 0 | L42: =SUM(G42,I42,K42) -> 4094 | M42: 1 | N42: =L42 -> 4094 | O42: =SUM(N42*0.7) -> 2865.8 | P42: 0.8 | Q42: =SUM(N42*P42) -> 3275.2 | R42: =N42+O42+Q42 -> 10235
C43: Повар (сов-во) | E43: 4094 | F43: 0.5 | G43: =SUM(E43*F43)*M43 -> 1023.5 | L43: =SUM(G43,I43,K43) -> 1023.5 | M43: 0.5 | N43: =L43 -> 1023.5 | O43: =SUM(N43*0.7) -> 716.45 | P43: 1.8 | Q43: =SUM(N43*P43) -> 1842.3 | R43: =N43+O43+Q43 -> 3582.25
C44: Повар РЗО | E44: 4094 | F44: 0.25 | G44: 255.875 | L44: 255.875 | M44: 0.25 | N44: 255.875 | O44: 179.1125 | P44: 2.8 | Q44: 716.45 | R44: 1151.4375
A45: 20 | B45: Керейтова Светлана Рахметовна | C45: Повар | D45: 5 | E45: 4094 | F45: 1.16 | G45: =SUM(E45*F45)*M45 -> 4749.04 | H45: 0 | I45: =SUM(G45*H45) -> 0 | K45: =SUM(G45*J45) -> 0 | L45: =SUM(G45,I45,K45) -> 4749.04 | M45: 1 | N45: =L45 -> 4749.04 | O45: =SUM(N45*0.7) -> 3324.328 | P45: 0.8 | Q45: =SUM(N45*P45) -> 3799.232 | R45: =N45+O45+Q45 -> 11872.6
C46: Повар (сов-во) | E46: 4094 | F46: 1.16 | G46: 2374.52 | L46: =SUM(G46,I46,K46) -> 2374.52 | M46: 0.5 | N46: =L46 -> 2374.52 | O46: =SUM(N46*0.7) -> 1662.164 | P46: 1.8 | Q46: =SUM(N46*P46) -> 4274.136 | R46: =N46+O46+Q46 -> 8310.82
C47: Повар РЗО | E47: 4094 | F47: 1.156 | G47: 1183.166 | L47: 1183.166 | M47: 0.25 | N47: 1183.166 | O47: 828.2162 | P47: 2.8 | Q47: 3312.8648 | R47: 5324.247
A48: 21 | B48: вакансия | C48: Повар | D48: 5 | E48: 4094 | F48: 1.16 | G48: =SUM(E48*F48)*M48 -> 4749.04 | H48: 0 | I48: =SUM(G48*H48) -> 0 | K48: =SUM(G48*J48) -> 0 | L48: =SUM(G48,I48,K48) -> 4749.04 | M48: 1 | N48: =L48 -> 4749.04 | O48: =SUM(N48*0.7) -> 3324.328 | P48: 0.8 | Q48: =SUM(N48*P48) -> 3799.232 | R48: =N48+O48+Q48 -> 11872.6
A49: 22 | B49: вакансия | C49: Повар | D49: 5 | E49: 4094 | F49: 1.16 | G49: =SUM(E49*F49)*M49 -> 2374.52 | H49: 0 | I49: =SUM(G49*H49) -> 0 | K49: =SUM(G49*J49) -> 0 | L49: =SUM(G49,I49,K49) -> 2374.52 | M49: 0.5 | N49: =L49 -> 2374.52 | O49: =SUM(N49*0.7) -> 1662.164 | P49: 0.8 | Q49: =SUM(N49*P49) -> 1899.616 | R49: =N49+O49+Q49 -> 5936.3
A50: 23 | B50: Дзакураева Людмила Михайловна | C50: Повар | D50: 5 | E50: 4094 | F50: 1.16 | G50: =SUM(E50*F50)*M50 -> 2374.52 | H50: 0 | I50: =SUM(G50*H50) -> 0 | K50: =SUM(G50*J50) -> 0 | L50: =SUM(G50,I50,K50) -> 2374.52 | M50: 0.5 | N50: =L50 -> 2374.52 | O50: =SUM(N50*0.7) -> 1662.164 | P50: 0.8 | Q50: =SUM(N50*P50) -> 1899.616 | R50: =N50+O50+Q50 -> 5936.3
B51: Итого | G51: =SUM(G42:G50) -> 23178.181 | I51: =SUM(I42:I50) -> 0 | K51: =SUM(K42:K50) -> 0 | L51: =SUM(L42:L50) -> 23178.181 | M51: =SUM(M42:M50) -> 5.5 | N51: =SUM(N42:N50) -> 23178.181 | O51: =SUM(O42:O50) -> 16224.7267 | Q51: =SUM(Q42:Q50) -> 24818.6468 | R51: =SUM(R42:R50) -> 64221.5545
B52: 2 квалификационный уровень
G53: =SUM(E53*F53) -> 0 | I53: =SUM(G53*H53) -> 0 | K53: =SUM(G53*J53) -> 0 | L53: =SUM(G53,I53,K53) -> 0 | N53: =SUM(L53*M53) -> 0 | O53: =SUM(N53*0.7) -> 0 | P53: 0.8 | Q53: =SUM(N53*P53) -> 0 | R53: =ROUND(N53+O53+Q53,2) -> 0
B54: Итого | G54: =SUM(G53:G53) -> 0 | I54: =SUM(I53:I53) -> 0 | K54: =SUM(K53:K53) -> 0 | L54: =SUM(L53:L53) -> 0 | M54: =SUM(M53:M53) -> 0 | N54: =SUM(N53:N53) -> 0 | O54: =SUM(O53:O53) -> 0 | Q54: =SUM(Q53:Q53) -> 0 | R54: =SUM(R53:R53) -> 0
B55: 3 квалификационный уровень
G56: =SUM(E56*F56) -> 0 | I56: =SUM(G56*H56) -> 0 | K56: =SUM(G56*J56) -> 0 | L56: =SUM(G56,I56,K56) -> 0 | N56: =SUM(L56*M56) -> 0 | O56: =SUM(N56*0.7) -> 0 | P56: 0.8 | Q56: =SUM(N56*P56) -> 0 | R56: =ROUND(N56+O56+Q56,2) -> 0
B57: Итого | G57: =SUM(G56:G56) -> 0 | I57: =SUM(I56:I56) -> 0 | K57: =SUM(K56:K56) -> 0 | L57: =SUM(L56:L56) -> 0 | M57: =SUM(M56:M56) -> 0 | N57: =SUM(N56:N56) -> 0 | O57: =SUM(O56:O56) -> 0 | Q57: =SUM(Q56:Q56) -> 0 | R57: =SUM(R56:R56) -> 0
B58: 4 квалификационный уровень
G59: =SUM(E59*F59) -> 0 | I59: =SUM(G59*H59) -> 0 | K59: =SUM(G59*J59) -> 0 | L59: =SUM(G59,I59,K59) -> 0 | N59: =SUM(L59*M59) -> 0 | O59: =SUM(N59*0.7) -> 0 | P59: 0.8 | Q59: =SUM(N59*P59) -> 0 | R59: =ROUND(N59+O59+Q59,2) -> 0
B60: Итого | G60: =SUM(G59:G59) -> 0 | I60: =SUM(I59:I59) -> 0 | K60: =SUM(K59:K59) -> 0 | L60: =SUM(L59:L59) -> 0 | M60: =SUM(M59:M59) -> 0 | N60: =SUM(N59:N59) -> 0 | O60: =SUM(O59:O59) -> 0 | Q60: =SUM(Q59:Q59) -> 0 | R60: =SUM(R59:R59) -> 0
B61: Итого по профессиональной квалификационной группе "РАБОЧИЕ" | G61: =SUM(G35,G38,G51,G54,G57,G60) -> 97893.681 | I61: =SUM(I35,I38,I51,I54,I57,I60) -> 0 | K61: =SUM(K35,K38,K51,K54,K57,K60) -> 0 | L61: =SUM(L35,L38,L51,L54,L57,L60) -> 97893.681 | M61: =SUM(M35,M38,M51,M54,M57,M60) -> 23.75 | N61: =SUM(N35,N38,N51,N54,N57,N60) -> 97893.681 | O61: =SUM(O35,O38,O51,O54,O57,O60) -> 68525.5767 | Q61: =SUM(Q35,Q38,Q51,Q54,Q57,Q60) -> 327774.6468 | R61: =SUM(R35,R38,R51,R54,R57,R60) -> 494193.9045
M62: 23.75
B63: Заведующий МБДОУ " Детский сад "Руслан" | L63: Б.А.Джемакулова
B65: Ведущий экономист | L65: В. А. Тычкина
B67: Специалист по кадрам | L67: Л.И.Утяганова
B68: Исп. | C68: Л.И.Утяганова
B69: тел. | C69: 23-13-38

Sheet приложение к тариф
K1: Приложение
K2: к тарификационному списку
K3: общеобразовательных учреждлений
A4: Сетка учебных часов
A6: (наименование учреждения)
A7: на 2017 / 2018 учебный год
A9: Класс | B9: Количество обучающихся / классов | D9: Количество часов по БУП | E9: Количество дополнительных часов на деление классов на группы | M9: Всего
E10: Иностранный язык | F10: Технология | G10: ОИ и ВТ | H10: Физ-ра | I10: ОБЖ | J10: Химия | K10: Физика | L10: Элективные учебные предметы
A11: 1А | M11: =SUM(D11:L11) -> 0
A12: 1Б | M12: =SUM(D12:L12) -> 0
A13: 1В | M13: =SUM(D13:L13) -> 0
A14: 1.. | M14: =SUM(D14:L14) -> 0
A15: Итого | B15: =SUM(B11:C14) -> 0 | D15: =SUM(D11:D14) -> 0 | E15: =SUM(E11:E14) -> 0 | F15: 0 | G15: 0 | H15: 0 | I15: 0 | J15: 0 | K15: 0 | L15: 0 | M15: 0
A16: 2А | M16: =SUM(D16:L16) -> 0
A17: 2Б | M17: =SUM(D17:L17) -> 0
A18: 2В | M18: =SUM(D18:L18) -> 0
A19: 2.. | M19: =SUM(D19:L19) -> 0
A20: Итого | B20: =SUM(B16:C19) -> 0 | D20: =SUM(D16:D19) -> 0 | E20: 0 | F20: 0 | G20: 0 | H20: 0 | I20: 0 | J20: 0 | K20: 0 | L20: 0 | M20: 0
A21: 3А | M21: =SUM(D21:L21) -> 0
A22: 3Б | M22: =SUM(D22:L22) -> 0
A23: 3В | M23: =SUM(D23:L23) -> 0
A24: 3.. | M24: =SUM(D24:L24) -> 0
A25: Итого | B25: =SUM(B21:C24) -> 0 | D25: =SUM(D21:D24) -> 0 | E25: 0 | F25: 0 | G25: 0 | H25: 0 | I25: 0 | J25: 0 | K25: 0 | L25: 0 | M25: 0
A26: 4А | M26: =SUM(D26:L26) -> 0
A27: 4Б | M27: =SUM(D27:L27) -> 0
A28: 4В | M28: =SUM(D28:L28) -> 0
A29: 4.. | M29: =SUM(D29:L29) -> 0
A30: Итого | B30: =SUM(B26:C29) -> 0 | D30: =SUM(D26:D29) -> 0 | E30: 0 | F30: 0 | G30: 0 | H30: 0 | I30: 0 | J30: 0 | K30: 0 | L30: 0 | M30: 0
A31: Всего начальное общее образование | B31: =SUM(B15,B20,B25,B30) -> 0 | C31: =SUM(C15,C20,C25,C30) -> 0 | D31: =SUM(D15,D20,D25,D30) -> 0 | E31: 0 | F31: 0 | G31: 0 | H31: 0 | I31: 0 | J31: 0 | K31: 0 | L31: 0 | M31: =SUM(M15,M20,M25,M30) -> 0 | N31: =SUM(D31:L31)-M31 -> 0
A32: 5А | M32: =SUM(D32:L32) -> 0
A33: 5Б | M33: =SUM(D33:L33) -> 0
A34: 5В | M34: =SUM(D34:L34) -> 0
A35: 5.. | M35: =SUM(D35:L35) -> 0
A36: Итого | B36: =SUM(B32:C35) -> 0 | D36: =SUM(D32:D35) -> 0 | E36: 0 | F36: 0 | G36: 0 | H36: 0 | I36: 0 | J36: 0 | K36: 0 | L36: 0 | M36: 0
A37: 6А | M37: =SUM(D37:L37) -> 0
A38: 6Б | M38: =SUM(D38:L38) -> 0
A39: 6В | M39: =SUM(D39:L39) -> 0
A40: 6.. | M40: =SUM(D40:L40) -> 0
A41: Итого | B41: =SUM(B37:C40) -> 0 | D41: =SUM(D37:D40) -> 0 | E41: 0 | F41: 0 | G41: 0 | H41: 0 | I41: 0 | J41: 0 | K41: 0 | L41: 0 | M41: 0
A42: 7А | M42: =SUM(D42:L42) -> 0
A43: 7Б | M43: =SUM(D43:L43) -> 0
A44: 7В | M44: =SUM(D44:L44) -> 0
A45: 7.. | M45: =SUM(D45:L45) -> 0
A46: Итого | B46: =SUM(B42:C45) -> 0 | D46: =SUM(D42:D45) -> 0 | E46: 0 | F46: 0 | G46: 0 | H46: 0 | I46: 0 | J46: 0 | K46: 0 | L46: 0 | M46: 0
A47: 8А | M47: =SUM(D47:L47) -> 0
A48: 8Б | M48: =SUM(D48:L48) -> 0
A49: 8В | M49: =SUM(D49:L49) -> 0
A50: 8.. | M50: =SUM(D50:L50) -> 0
A51: Итого | B51: =SUM(B47:C50) -> 0 | D51: =SUM(D47:D50) -> 0 | E51: 0 | F51: 0 | G51: 0 | H51: 0 | I51: 0 | J51: 0 | K51: 0 | L51: 0 | M51: 0
A52: 9А | M52: =SUM(D52:L52) -> 0
A53: 9Б | M53: =SUM(D53:L53) -> 0
A54: 9В | M54: =SUM(D54:L54) -> 0
A55: 9.. | M55: =SUM(D55:L55) -> 0
A56: Итого | B56: =SUM(B52:C55) -> 0 | D56: =SUM(D52:D55) -> 0 | E56: 0 | F56: 0 | G56: 0 | H56: 0 | I56: 0 | J56: 0 | K56: 0 | L56: 0 | M56: 0
A57: Всего основное общее образование | B57: =SUM(B36,B41,B46,B51,B56) -> 0 | C57: =SUM(C36,C41,C46,C51,C56) -> 0 | D57: 0 | E57: 0 | F57: 0 | G57: 0 | H57: 0 | I57: 0 | J57: 0 | K57: 0 | L57: 0 | M57: =SUM(M36,M41,M46,M51,M56) -> 0 | N57: =SUM(D57:L57)-M57 -> 0
A58: 10А | M58: =SUM(D58:L58) -> 0
A59: 10Б | M59: =SUM(D59:L59) -> 0
A60: 10В | M60: =SUM(D60:L60) -> 0
M61: =SUM(D61:L61) -> 0
A62: Итого | B62: =SUM(B58:C61) -> 0 | D62: =SUM(D58:D61) -> 0 | E62: 0 | F62: 0 | G62: 0 | H62: 0 | I62: 0 | J62: 0 | K62: 0 | L62: 0 | M62: 0
A63: 11А | M63: =SUM(D63:L63) -> 0
A64: 11Б | M64: =SUM(D64:L64) -> 0
A65: 11В | M65: =SUM(D65:L65) -> 0
M66: =SUM(D66:L66) -> 0
A67: Итого | B67: =SUM(B63:C66) -> 0 | D67: =SUM(D63:D66) -> 0 | E67: 0 | F67: 0 | G67: 0 | H67: 0 | I67: 0 | J67: 0 | K67: 0 | L67: 0 | M67: 0
A68: 12А | M68: =SUM(D68:L68) -> 0
A69: 12Б | M69: =SUM(D69:L69) -> 0
A70: 12В | M70: =SUM(D70:L70) -> 0
M71: =SUM(D71:L71) -> 0
A72: Итого | B72: =SUM(B68:C71) -> 0 | D72: =SUM(D68:D71) -> 0 | E72: 0 | F72: 0 | G72: 0 | H72: 0 | I72: 0 | J72: 0 | K72: 0 | L72: 0 | M72: 0
A73: Всего среднее общее образование | B73: =SUM(B62,B67,B72,) -> 0 | C73: =SUM(C62,C67,C72,) -> 0 | D73: 0 | E73: 0 | F73: 0 | G73: 0 | H73: 0 | I73: 0 | J73: 0 | K73: 0 | L73: 0 | M73: 0 | N73: =SUM(D73:L73)-M73 -> 0
A75: Руководитель учреждения
A77: Заместитель руководителя
A79: Исп.
A80: тел.

Sheet приложение к тариф (2)
B1: Приложение
B2: к тарификационному списку
B3: учреждений дополнительного образования
A8: Сетка учебных часов
A10: (наименование учреждения)
A11: на 2016 / 2017учебный год
A13: Объединения/ группы | B13: Количество обучающихся / групп | D13: Количество часов по программе
A15: Техническое творчество
A16: 1 группа | B16: 15
A17: 2 группа | B17: 15
A18: 3 группа | B18: 15
A20: Итого | B20: =SUM(B16:C19) -> 45 | C20: 3 | D20: =SUM(D16:D19) -> 0
A21: Эколого-биологические
A26: Итого | B26: =SUM(B22:C25) -> 0 | D26: =SUM(D22:D25) -> 0
A27: Туристско-краеведческие
A32: Итого | B32: =SUM(B28:C31) -> 0 | D32: =SUM(D28:D31) -> 0
A33: Художественного творчества
A38: Итого | B38: =SUM(B34:C37) -> 0 | D38: =SUM(D34:D37) -> 0
A39: Культурологические
A44: Итого | B44: =SUM(B40:C43) -> 0 | D44: =SUM(D40:D43) -> 0
A45: Спортивно-технические
A50: Итого | B50: =SUM(B46:C49) -> 0 | D50: =SUM(D46:D49) -> 0
A51: Спортивные
A52: 1. Спортивно-оздоровительный этап
A53: - групповое обучение весь период обучения | B53: =SUM(B54:C57) -> 45 | C53: 3
A54: 1 группа | B54: 15
A55: 2 группа | B55: 15
A56: 3 группа | B56: 15
A58: 2. Этап начальной спортивной подгоотовки
A59: - групповое обучение первый год | B59: =SUM(B60:C62) -> 45 | C59: 3
A60: 1 группа | B60: 15
A61: 2 группа | B61: 15
A62: 3 группа | B62: 15
A64: - групповое обучение второй, третий год | B64: =SUM(B65:C67) -> 45 | C64: 3
A65: 1 группа | B65: 15
A66: 2 группа | B66: 15
A67: 3 группа | B67: 15
A69: 3. Учебно-тренировочный этап
A70: - групповое обучение первый год | B70: =SUM(B71:C73) -> 45 | C70: 3
A71: 1 группа | B71: 15
A72: 2 группа | B72: 15
A73: 3 группа | B73: 15
A74: - групповое обучение второй год | B74: =SUM(B75:C77) -> 45 | C74: 3
A75: 1 группа | B75: 15
A76: 2 группа | B76: 15
A77: 3 группа | B77: 15
A78: - групповое обучение третий год | B78: =SUM(B79:C81) -> 45 | C78: 3
A79: 1 группа | B79: 15
A80: 2 группа | B80: 15
A81: 3 группа | B81: 15
A82: - групповое обучение четвертый год | B82: =SUM(B83:C85) -> 45 | C82: 3
A83: 1 группа | B83: 15
A84: 2 группа | B84: 15
A85: 3 группа | B85: 15
A86: - групповое обучение пятый год | B86: =SUM(B87:C89) -> 45 | C86: 3
A87: 1 группа | B87: 15
A88: 2 группа | B88: 15
A89: 3 группа | B89: 15
A90: Итого | B90: =SUM(B53,B59,B64,B70,B74,B78,B82,B86) -> 360 | C90: =SUM(C53,C59,C64,C70,C74,C78,C82,C86) -> 24 | D90: =SUM(D64:D74) -> 0
A91: Всего часов | B91: =SUM(B20,B26,B32,B38,B44,B50,B90) -> 405 | C91: =SUM(C20,C26,C32,C38,C44,C50,C90) -> 27 | D91: =SUM(D20,D26,D32,D38,D44,D50,D90) -> 0
A93: Руководитель учреждения
A95: Заместитель руководителя
A97: Исп.
A98: тел.
A100: Информация для согласования (за 2012-2013 у.г. заполняется отделом труда и заработной платы МКУ ЦФХОД)
A101: Наименование | B101: 2012/2013 у.г. | C101: 2013/2014 у.г. | D101: Отклонение
A102: 1. Количество часов | D102: =SUM(C102-B102) -> 0
A103: 2. Количество ставок, работающих по учебному плану | D103: =SUM(C103-B103) -> 0
A104: 3. Общее количество ставок в учреждении | D104: =SUM(C104-B104) -> 0
A105: 4. Соотношение (п.3-п.2)/п.2*100 | D105: =SUM(C105-B105) -> 0

Sheet приложение к тариф (3)
O1: Приложение
O2: к тарификационному списку
O3: учреждений дошкольного образования
A8: Информация о численности воспитанников, количестве плановых и действующих группах
A9: Муниципальное бюджетное дошкольное образовательное учреждение " Детский сад " Руслан"
A10: (наименование учреждения)
A12: Наименование | B12: Группы общеразвивающей направленности | I12: Группы компенсирующей направленности | L12: Группы оздоровительной направленности | P12: Группы комбинированной направленности | R12: Итого
B13: дети до 3 лет | D13: дети старше 3 лет | G13: разновозастные группы | I13: дети до 3 лет | J13: дети старше 3 лет | L13: дети до 3 лет | N13: дети старше 3 лет | P13: дети до 3 лет | Q13: дети старше 3 лет
B14: 3-5 часов | C14: 12 часов | D14: 3-5 часов | E14: 12 часов | F14: 24 часов | G14: 3-5 часов | H14: 12 часов | I14: 12 часов | J14: 3-5 часов | K14: 12 часов | L14: 12 часов | M14: 24 часов | N14: 12 часов | O14: 24 часов | P14: 12 часов | Q14: 12 часов
A15: на 01.09.2016 года
A16: Плановые группы | R16: =SUM(B16:Q16) -> 0
A17: Действующие группы | B17: 1 | E17: 9 | K17: 3 | R17: 12
A18: Численность воспитанников | B18: 15 | E18: 226 | K18: 39 | R18: 280
A19: на 01.01.2017 года
A20: Плановые группы | R20: =SUM(B20:Q20) -> 0
A21: Действующие группы | E21: 9 | K21: 3 | R21: =SUM(B21:Q21) -> 12
A22: Численность воспитанников | B22: 15 | E22: 223 | K22: 39 | R22: 280
A23: с 01.09.2017года
A24: Плановые группы | C24: 3 | E24: 11 | K24: 3 | R24: 17
A25: Действующие группы | B25: 1 | C25: 2 | E25: 7 | K25: 3 | R25: 13
A26: Численность воспитанников | B26: 15 | C26: 58 | E26: 204 | K26: 38 | R26: =SUM(B26:Q26) -> 315
A27: с 01.09.2017года
A28: Плановые группы | R28: =SUM(B28:Q28) -> 0
A29: Действующие группы | R29: =SUM(B29:Q29) -> 0
A30: Численность воспитанников
A34: Руководитель учреждения | O34: Б. А. Джемакулова
A36: Главный специалист | O36: В.А.Тычкина
A39: Исп. | B39: Л. И. Утяганова
A40: тел. | B40: 23-13-38

Sheet Лист2

Sheet Лист3

Sheet Лист4

Sheet Лист5

Sheet Лист6

Sheet Лист7

Sheet Лист8

Sheet Лист9

Sheet Лист10

Sheet Лист11

Sheet Лист12

Sheet Лист13

Sheet Лист14

Sheet Лист15

Sheet Лист16
